Workbook

Sheet חשוב

Sheet xlookup בתוך xlookup
A1: מעמד לקוח | B1: תחילת ההשקעה | C1: סכום השקעה | D1: מספר קרן | E1: ערך השקעה נכון להיום | F1: ערך ההשקעה בשקלים | R1: ערך ההשקעה בשקלים
A2: שכיר | B2: 2022-09-15 | C2: 2500 | D2: 10 | E2: 16761.87789 | F2: =(E2-_xlfn.XLOOKUP(A2,$L$25:$L$27,_xlfn.XLOOKUP(D2,$M$24:$Q$24,$M$25:$Q$27))*E2)*$K$21 -> 45206.78466 | H2: חוק: בכל פעם שנקבל טבלה עם קטגוריות בשורות ובעמודות (דומה לריבוע הקסם) נעבוד עם XLOOKUP בתוך XLOOKUP | R2: =(Q2-(_xlfn.XLOOKUP(L2,$Q$13:$Q$15,_xlfn.XLOOKUP(O2,$R$12:$V$12,$R$13:$V$15)))*Q2)*$N$4 -> 45206.78466
A3: עצמאי | B3: 2022-03-12 | C3: 146726 | D3: 13 | E3: 214094.1126 | F3: =(E3-_xlfn.XLOOKUP(A3,$L$25:$L$27,_xlfn.XLOOKUP(D3,$M$24:$Q$24,$M$25:$Q$27))*E3)*$K$21 -> 530953.3993 | R3: =(Q3-(_xlfn.XLOOKUP(L3,$Q$13:$Q$15,_xlfn.XLOOKUP(O3,$R$12:$V$12,$R$13:$V$15)))*Q3)*$N$4 -> 530953.3993
A4: שכיר | B4: 2022-09-29 | C4: 253094 | D4: 10 | E4: 307637.3388 | F4: =(E4-_xlfn.XLOOKUP(A4,$L$25:$L$27,_xlfn.XLOOKUP(D4,$M$24:$Q$24,$M$25:$Q$27))*E4)*$K$21 -> 829697.9028 | R4: =(Q4-(_xlfn.XLOOKUP(L4,$Q$13:$Q$15,_xlfn.XLOOKUP(O4,$R$12:$V$12,$R$13:$V$15)))*Q4)*$N$4 -> 829697.9028
A5: שכיר | B5: 2022-12-29 | C5: 70131 | D5: 14 | E5: 332458.0998 | F5: =(E5-_xlfn.XLOOKUP(A5,$L$25:$L$27,_xlfn.XLOOKUP(D5,$M$24:$Q$24,$M$25:$Q$27))*E5)*$K$21 -> 917251.8974 | R5: =(Q5-(_xlfn.XLOOKUP(L5,$Q$13:$Q$15,_xlfn.XLOOKUP(O5,$R$12:$V$12,$R$13:$V$15)))*Q5)*$N$4 -> 917251.8974
A6: שכיר | B6: 2022-02-05 | C6: 63372 | D6: 15 | E6: 1229261.975 | F6: =(E6-_xlfn.XLOOKUP(A6,$L$25:$L$27,_xlfn.XLOOKUP(D6,$M$24:$Q$24,$M$25:$Q$27))*E6)*$K$21 -> 3429640.911 | R6: =(Q6-(_xlfn.XLOOKUP(L6,$Q$13:$Q$15,_xlfn.XLOOKUP(O6,$R$12:$V$12,$R$13:$V$15)))*Q6)*$N$4 -> 3429640.911
A7: עצמאי | B7: 2022-05-19 | C7: 72483 | D7: 15 | E7: 1877660.419 | F7: =(E7-_xlfn.XLOOKUP(A7,$L$25:$L$27,_xlfn.XLOOKUP(D7,$M$24:$Q$24,$M$25:$Q$27))*E7)*$K$21 -> 4947635.203 | R7: =(Q7-(_xlfn.XLOOKUP(L7,$Q$13:$Q$15,_xlfn.XLOOKUP(O7,$R$12:$V$12,$R$13:$V$15)))*Q7)*$N$4 -> 4947635.203
A8: עצמאי | B8: 2022-07-11 | C8: 108877 | D8: 13 | E8: 986671.1231 | F8: =(E8-_xlfn.XLOOKUP(A8,$L$25:$L$27,_xlfn.XLOOKUP(D8,$M$24:$Q$24,$M$25:$Q$27))*E8)*$K$21 -> 2446944.385 | R8: =(Q8-(_xlfn.XLOOKUP(L8,$Q$13:$Q$15,_xlfn.XLOOKUP(O8,$R$12:$V$12,$R$13:$V$15)))*Q8)*$N$4 -> 2446944.385
A9: עצמאי | B9: 2022-05-05 | C9: 96681 | D9: 10 | E9: 191421.767 | F9: =(E9-_xlfn.XLOOKUP(A9,$L$25:$L$27,_xlfn.XLOOKUP(D9,$M$24:$Q$24,$M$25:$Q$27))*E9)*$K$21 -> 522198.5803 | K9: במבחן קיבלנו את טבלת העזר הבאה: | R9: =(Q9-(_xlfn.XLOOKUP(L9,$Q$13:$Q$15,_xlfn.XLOOKUP(O9,$R$12:$V$12,$R$13:$V$15)))*Q9)*$N$4 -> 522198.5803
A10: עצמאי | B10: 2022-10-27 | C10: 66590 | D10: 15 | E10: 377756.6835 | F10: =(E10-_xlfn.XLOOKUP(A10,$L$25:$L$27,_xlfn.XLOOKUP(D10,$M$24:$Q$24,$M$25:$Q$27))*E10)*$K$21 -> 995388.8611 | R10: =(Q10-(_xlfn.XLOOKUP(L10,$Q$13:$Q$15,_xlfn.XLOOKUP(O10,$R$12:$V$12,$R$13:$V$15)))*Q10)*$N$4 -> 995388.8611
A11: בעל שליטה | B11: 2022-05-26 | C11: 224708 | D11: 10 | E11: 3453180.52 | F11: =(E11-_xlfn.XLOOKUP(A11,$L$25:$L$27,_xlfn.XLOOKUP(D11,$M$24:$Q$24,$M$25:$Q$27))*E11)*$K$21 -> 9206179.265 | R11: =(Q11-(_xlfn.XLOOKUP(L11,$Q$13:$Q$15,_xlfn.XLOOKUP(O11,$R$12:$V$12,$R$13:$V$15)))*Q11)*$N$4 -> 9206179.265
A12: שכיר | B12: 2022-07-17 | C12: 49492 | D12: 14 | E12: 2044762.053 | F12: =(E12-_xlfn.XLOOKUP(A12,$L$25:$L$27,_xlfn.XLOOKUP(D12,$M$24:$Q$24,$M$25:$Q$27))*E12)*$K$21 -> 5641498.505 | R12: =(Q12-(_xlfn.XLOOKUP(M24,$Q$13:$Q$15,_xlfn.XLOOKUP(P24,$R$12:$V$12,$R$13:$V$15)))*Q12)*$N$4 -> 5641498.505
A13: שכיר | B13: 2022-04-28 | C13: 76982 | D13: 13 | E13: 2617985.431 | F13: =(E13-_xlfn.XLOOKUP(A13,$L$25:$L$27,_xlfn.XLOOKUP(D13,$M$24:$Q$24,$M$25:$Q$27))*E13)*$K$21 -> 5924501.029 | R13: =(Q13-(_xlfn.XLOOKUP(M25,$Q$13:$Q$15,_xlfn.XLOOKUP(P25,$R$12:$V$12,$R$13:$V$15)))*Q13)*$N$4 -> 5924501.029
A14: בעל שליטה | B14: 2022-09-13 | C14: 184883 | D14: 10 | E14: 2226133.638 | F14: =(E14-_xlfn.XLOOKUP(A14,$L$25:$L$27,_xlfn.XLOOKUP(D14,$M$24:$Q$24,$M$25:$Q$27))*E14)*$K$21 -> 5934872.28 | R14: =(Q14-(_xlfn.XLOOKUP(M26,$Q$13:$Q$15,_xlfn.XLOOKUP(P26,$R$12:$V$12,$R$13:$V$15)))*Q14)*$N$4 -> 5934872.28
A15: בעל שליטה | B15: 2022-10-12 | C15: 8780 | D15: 10 | E15: 122381.7519 | F15: =(E15-_xlfn.XLOOKUP(A15,$L$25:$L$27,_xlfn.XLOOKUP(D15,$M$24:$Q$24,$M$25:$Q$27))*E15)*$K$21 -> 326269.7504 | R15: =(Q15-(_xlfn.XLOOKUP(M27,$Q$13:$Q$15,_xlfn.XLOOKUP(P27,$R$12:$V$12,$R$13:$V$15)))*Q15)*$N$4 -> 326269.7504
A16: שכיר | B16: 2022-11-18 | C16: 46900 | D16: 14 | E16: 80582.93183 | F16: =(E16-_xlfn.XLOOKUP(A16,$L$25:$L$27,_xlfn.XLOOKUP(D16,$M$24:$Q$24,$M$25:$Q$27))*E16)*$K$21 -> 222328.3089 | R16: =(Q16-(_xlfn.XLOOKUP(L16,$Q$13:$Q$15,_xlfn.XLOOKUP(O16,$R$12:$V$12,$R$13:$V$15)))*Q16)*$N$4 -> 222328.3089
A17: שכיר | B17: 2022-05-25 | C17: 162174 | D17: 14 | E17: 1078268.713 | F17: =(E17-_xlfn.XLOOKUP(A17,$L$25:$L$27,_xlfn.XLOOKUP(D17,$M$24:$Q$24,$M$25:$Q$27))*E17)*$K$21 -> 2974943.379 | R17: =(Q17-(_xlfn.XLOOKUP(L17,$Q$13:$Q$15,_xlfn.XLOOKUP(O17,$R$12:$V$12,$R$13:$V$15)))*Q17)*$N$4 -> 2974943.379
A18: שכיר | B18: 2022-12-09 | C18: 10321 | D18: 14 | E18: 372444.8688 | F18: =(E18-_xlfn.XLOOKUP(A18,$L$25:$L$27,_xlfn.XLOOKUP(D18,$M$24:$Q$24,$M$25:$Q$27))*E18)*$K$21 -> 1027575.393 | R18: =(Q18-(_xlfn.XLOOKUP(L18,$Q$13:$Q$15,_xlfn.XLOOKUP(O18,$R$12:$V$12,$R$13:$V$15)))*Q18)*$N$4 -> 1027575.393
A19: שכיר | B19: 2022-06-22 | C19: 56091 | D19: 15 | E19: 1453028.304 | F19: =(E19-_xlfn.XLOOKUP(A19,$L$25:$L$27,_xlfn.XLOOKUP(D19,$M$24:$Q$24,$M$25:$Q$27))*E19)*$K$21 -> 4053948.968 | K19: השאלה ממועד ב 2023, שאלה מספר 1, 10 נקודות | R19: =(Q19-(_xlfn.XLOOKUP(L19,$Q$13:$Q$15,_xlfn.XLOOKUP(O19,$R$12:$V$12,$R$13:$V$15)))*Q19)*$N$4 -> 4053948.968
A20: עצמאי | B20: 2022-07-10 | C20: 12866 | D20: 10 | E20: 133822.7353 | F20: =(E20-_xlfn.XLOOKUP(A20,$L$25:$L$27,_xlfn.XLOOKUP(D20,$M$24:$Q$24,$M$25:$Q$27))*E20)*$K$21 -> 365068.4218 | R20: =(Q20-(_xlfn.XLOOKUP(L20,$Q$13:$Q$15,_xlfn.XLOOKUP(O20,$R$12:$V$12,$R$13:$V$15)))*Q20)*$N$4 -> 365068.4218
A21: עצמאי | B21: 2022-07-01 | C21: 71270 | D21: 13 | E21: 142479.5203 | F21: =(E21-_xlfn.XLOOKUP(A21,$L$25:$L$27,_xlfn.XLOOKUP(D21,$M$24:$Q$24,$M$25:$Q$27))*E21)*$K$21 -> 353349.2104 | K21: 3.1 | L21: שער הדולר שנתון | R21: =(Q21-(_xlfn.XLOOKUP(L21,$Q$13:$Q$15,_xlfn.XLOOKUP(O21,$R$12:$V$12,$R$13:$V$15)))*Q21)*$N$4 -> 353349.2104
A22: עצמאי | B22: 2022-02-01 | C22: 10129 | D22: 14 | E22: 22812.4486 | F22: =(E22-_xlfn.XLOOKUP(A22,$L$25:$L$27,_xlfn.XLOOKUP(D22,$M$24:$Q$24,$M$25:$Q$27))*E22)*$K$21 -> 57989.24435 | R22: =(Q22-(_xlfn.XLOOKUP(L22,$Q$13:$Q$15,_xlfn.XLOOKUP(O22,$R$12:$V$12,$R$13:$V$15)))*Q22)*$N$4 -> 57989.24435
A23: בעל שליטה | B23: 2022-01-17 | C23: 143689 | D23: 13 | E23: 1900016.8 | F23: =(E23-_xlfn.XLOOKUP(A23,$L$25:$L$27,_xlfn.XLOOKUP(D23,$M$24:$Q$24,$M$25:$Q$27))*E23)*$K$21 -> 4417539.061 | R23: =(Q23-(_xlfn.XLOOKUP(L23,$Q$13:$Q$15,_xlfn.XLOOKUP(O23,$R$12:$V$12,$R$13:$V$15)))*Q23)*$N$4 -> 4417539.061
A24: בעל שליטה | B24: 2022-02-09 | C24: 25719 | D24: 12 | E24: 186489.1191 | F24: =(E24-_xlfn.XLOOKUP(A24,$L$25:$L$27,_xlfn.XLOOKUP(D24,$M$24:$Q$24,$M$25:$Q$27))*E24)*$K$21 -> 508742.3168 | L24: מעמד לקוח/מספר קרן | M24: 10 | N24: 13 | O24: 14 | P24: 15 | Q24: 12 | R24: =(#REF!-(_xlfn.XLOOKUP(#REF!,$Q$13:$Q$15,_xlfn.XLOOKUP(#REF!,$R$12:$V$12,$R$13:$V$15)))*#REF!)*$N$4 -> 
A25: שכיר | B25: 2022-09-16 | C25: 215746 | D25: 14 | E25: 1094342.881 | F25: =(E25-_xlfn.XLOOKUP(A25,$L$25:$L$27,_xlfn.XLOOKUP(D25,$M$24:$Q$24,$M$25:$Q$27))*E25)*$K$21 -> 3019292.008 | L25: עצמאי | M25: 0.12 | N25: 0.2 | O25: 0.18 | P25: 0.15 | Q25: 0.09 | R25: =(#REF!-(_xlfn.XLOOKUP(#REF!,$Q$13:$Q$15,_xlfn.XLOOKUP(#REF!,$R$12:$V$12,$R$13:$V$15)))*#REF!)*$N$4 -> 
A26: בעל שליטה | B26: 2022-11-28 | C26: 131191 | D26: 10 | E26: 203520.3 | F26: =(E26-_xlfn.XLOOKUP(A26,$L$25:$L$27,_xlfn.XLOOKUP(D26,$M$24:$Q$24,$M$25:$Q$27))*E26)*$K$21 -> 542585.1198 | L26: בעל שליטה | M26: 0.14 | N26: 0.25 | O26: 0.16 | P26: 0.14 | Q26: 0.12 | R26: =(#REF!-(_xlfn.XLOOKUP(#REF!,$Q$13:$Q$15,_xlfn.XLOOKUP(#REF!,$R$12:$V$12,$R$13:$V$15)))*#REF!)*$N$4 -> 
L27: שכיר | M27: 0.13 | N27: 0.27 | O27: 0.11 | P27: 0.1 | Q27: 0.26
A32: דוגמה נוספת ממועד א 2023 שפותרים אותה בעזרת איקס-לוק-אפ בתוך איקס-לוק-אפ:
I46: הטבת לקוח פר חודש התקשרות ועיר מגורים
C48: רבעון / עיר | D48: רעננה | E48: כפר סבא | F48: חולון | G48: ראשון לציון | H48: רחובות | I48: נס-ציונה | J48: הרצליה | K48: יבנה | L48: ירושלים | M48: חיפה | N48: באר שבע | O48: קרית אתא
C49: רבעון 1 | D49: מוצר חינם | E49: זיכוי ברכישה הבאה | F49: אין הטבה | G49: הנחה על הרכישה הבאה | H49: זיכוי ברכישה הבאה | I49: מוצר חינם | J49: זיכוי ברכישה הבאה | K49: הנחה על הרכישה הבאה | L49: אין הטבה | M49: זיכוי ברכישה הבאה | N49: אין הטבה | O49: הנחה על הרכישה הבאה
C50: רבעון 2 | D50: הנחה על הרכישה הבאה | E50: זיכוי ברכישה הבאה | F50: הנחה על הרכישה הבאה | G50: מוצר חינם | H50: אין הטבה | I50: זיכוי ברכישה הבאה | J50: הנחה על הרכישה הבאה | K50: מוצר חינם | L50: זיכוי ברכישה הבאה | M50: הנחה על הרכישה הבאה | N50: מוצר חינם | O50: הנחה על הרכישה הבאה
C51: רבעון 3 | D51: אין הטבה | E51: הנחה על הרכישה הבאה | F51: מוצר חינם | G51: הנחה על הרכישה הבאה | H51: זיכוי ברכישה הבאה | I51: הנחה על הרכישה הבאה | J51: מוצר חינם | K51: זיכוי ברכישה הבאה | L51: זיכוי ברכישה הבאה | M51: מוצר חינם | N51: זיכוי ברכישה הבאה | O51: אין הטבה
C52: רבעון 4 | D52: מוצר חינם | E52: הנחה על הרכישה הבאה | F52: זיכוי ברכישה הבאה | G52: זיכוי ברכישה הבאה | H52: הנחה על הרכישה הבאה | I52: מוצר חינם | J52: זיכוי ברכישה הבאה | K52: אין הטבה | L52: זיכוי ברכישה הבאה | M52: אין הטבה | N52: זיכוי ברכישה הבאה | O52: מוצר חינם

Sheet xlookup + xlookup
A1: שם פרטי לקוח | B1: שם משפחה לקוח | C1: כתובת דוא"ל | D1: תאריך הרכישה | E1: שעת הרכישה | F1: דגם הרכב | G1: סיווג הרכב | H1: שם הסוכנות | I1: מיקום הסוכנות | J1: תאריך עליית הרכב לכביש | K1: מחיר יבואן | L1: מספר ק"מ | M1: שם משתמש | N1: סיסמה | O1: מחיר רכישה | R1: תוספת סיווג | S1: אחוזXמחיר יבואן | T1: אחוז ממחיר יבואן | U1: שם החברה | V1: מיקום קו תחתון
A2: יוסי | B2: שמעון | C2: ELVLSUAM@colman.ac.il | D2: 2022-08-02 | E2: 17:10:35 | F2: Mazda_6 | G2: פרטי | H2: רכבי דניאלס | I2: יהוד | J2: 2010-06-29 | K2: 132100 | L2: 53490 | M2: =MID(B2,'[2]נתוני עזר'!$A$10,'[2]נתוני עזר'!$A$11)&'[2]נתוני עזר'!$A$12&TEXT(D2,"MMM") -> מע#אוג | N2: =LEN(C2)&LEFT(F2,'[2]נתוני עזר'!$A$15)&HOUR(E2) -> 21Maz17 | O2: =S2+R2 -> 92570 | Q2: =_xlfn.XLOOKUP(LEFT(F2,SEARCH($Y$21,F2)-$Y$22),$Z$4:$Z$8,$Y$4:$Y$8,$Z$10)*K2+_xlfn.XLOOKUP(G2,$Z$14:$Z$17,$Y$14:$Y$17)/MINUTE(E2) -> 92570 | R2: =_xlfn.XLOOKUP(G2,$Z$14:$Z$17,$Y$14:$Y$17)/MINUTE(E2) -> 100 | S2: =T2*K2 -> 92470 | T2: =_xlfn.XLOOKUP(LEFT(F2,SEARCH($Y$21,F2)-$Y$22),$Z$4:$Z$8,$Y$4:$Y$8,$Z$10) -> 0.7 | U2: =LEFT(F2,SEARCH($Y$21,F2)-$Y$22) -> Mazda | V2: =SEARCH($Y$21,F2) -> 6 | Y2: טבלה מס' 1
A3: נטע | B3: פוקס | C3: KEZZLDMD@colman.ac.il | D3: 2022-05-03 | E3: 19:16:55 | F3: Mazda_6 | G3: פרטי | H3: גלגלי הזהב | I3: חולון | J3: 2011-03-29 | K3: 132100 | L3: 25829 | M3: =MID(B3,'[2]נתוני עזר'!$A$10,'[2]נתוני עזר'!$A$11)&'[2]נתוני עזר'!$A$12&TEXT(D3,"MMM") -> וק#מאי | N3: =LEN(C3)&LEFT(F3,'[2]נתוני עזר'!$A$15)&HOUR(E3) -> 21Maz19 | O3: =S3+R3 -> 92532.5 | Q3: =_xlfn.XLOOKUP(LEFT(F3,SEARCH($Y$21,F3)-$Y$22),$Z$4:$Z$8,$Y$4:$Y$8,$Z$10)*K3+_xlfn.XLOOKUP(G3,$Z$14:$Z$17,$Y$14:$Y$17)/MINUTE(E3) -> 92532.5 | R3: =_xlfn.XLOOKUP(G3,$Z$14:$Z$17,$Y$14:$Y$17)/MINUTE(E3) -> 62.5 | S3: =T3*K3 -> 92470 | T3: =_xlfn.XLOOKUP(LEFT(F3,SEARCH($Y$21,F3)-$Y$22),$Z$4:$Z$8,$Y$4:$Y$8,$Z$10) -> 0.7 | U3: =LEFT(F3,SEARCH($Y$21,F3)-$Y$22) -> Mazda | V3: =SEARCH($Y$21,F3) -> 6 | Y3: אחוז ממחיר יבואן | Z3: סוג רכב
A4: אורי | B4: גוזמן | C4: BEXLDPPA11@ynet.co.il | D4: 2022-02-19 | E4: 17:20:28.333 | F4: Citroen_C3 | G4: פרטי | H4: רכב דיל מאיר | I4: חיפה | J4: 2011-01-15 | K4: 125000 | L4: 65509 | M4: =MID(B4,'[2]נתוני עזר'!$A$10,'[2]נתוני עזר'!$A$11)&'[2]נתוני עזר'!$A$12&TEXT(D4,"MMM") -> וז#פבר | N4: =LEN(C4)&LEFT(F4,'[2]נתוני עזר'!$A$15)&HOUR(E4) -> 21Cit17 | O4: 68800 | Q4: 68800 | R4: 50 | S4: 68750 | T4: 0.55 | U4: Citroen | V4: 8 | Y4: 0.6 | Z4: Nissan
A5: אורן | B5: ברבור | C5: COZ66@walla.co.il | D5: 2022-06-28 | E5: 17:09:30.994 | F5: Honda_Civic | G5: פרטי | H5: גלגלי הזהב | I5: חולון | J5: 2009-05-24 | K5: 119200 | L5: 31704 | M5: =MID(B5,'[2]נתוני עזר'!$A$10,'[2]נתוני עזר'!$A$11)&'[2]נתוני עזר'!$A$12&TEXT(D5,"MMM") -> רב#יונ | N5: =LEN(C5)&LEFT(F5,'[2]נתוני עזר'!$A$15)&HOUR(E5) -> 17Hon17 | O5: 53751.11111 | Q5: 53751.11111 | R5: 111.1111111 | S5: 53640 | T5: 0.45 | U5: Honda | V5: 6 | Y5: 0.7 | Z5: Mazda
A6: אבי | B6: ברלב | C6: SVET6@walla.co.il | D6: 2022-11-08 | E6: 19:35:47.084 | F6: Citroen_C5 | G6: פרטי | H6: גלגלי הזהב | I6: חולון | J6: 2010-10-04 | K6: 114500 | L6: 28286 | M6: =MID(B6,'[2]נתוני עזר'!$A$10,'[2]נתוני עזר'!$A$11)&'[2]נתוני עזר'!$A$12&TEXT(D6,"MMM") -> רל#נוב | N6: =LEN(C6)&LEFT(F6,'[2]נתוני עזר'!$A$15)&HOUR(E6) -> 17Cit19 | O6: 63003.57143 | Q6: 63003.57143 | R6: 28.57142857 | S6: 62975 | T6: 0.55 | U6: Citroen | V6: 8 | Y6: 0.8 | Z6: BMW
A7: נוי | B7: סליקטר | C7: VWQXYKIY@colman.ac.il | D7: 2022-05-07 | E7: 18:16:10 | F7: Mazda_3 | G7: פרטי | H7: סוכנות המוביל | I7: תל אביב | J7: 2011-04-03 | K7: 99200 | L7: 99037 | M7: =MID(B7,'[2]נתוני עזר'!$A$10,'[2]נתוני עזר'!$A$11)&'[2]נתוני עזר'!$A$12&TEXT(D7,"MMM") -> לי#מאי | N7: =LEN(C7)&LEFT(F7,'[2]נתוני עזר'!$A$15)&HOUR(E7) -> 21Maz18 | O7: 69502.5 | Q7: 69502.5 | R7: 62.5 | S7: 69440 | T7: 0.7 | U7: Mazda | V7: 6 | Y7: 0.75 | Z7: Audi
A8: אמיר | B8: שרון | C8: AUTBPAME@ynet.co.il | D8: 2022-09-15 | E8: 16:07:25 | F8: BMW_Z4 | G8: פרטי | H8: סוכנות המוביל | I8: תל אביב | J8: 2011-08-11 | K8: 185200 | L8: 23650 | M8: =MID(B8,'[2]נתוני עזר'!$A$10,'[2]נתוני עזר'!$A$11)&'[2]נתוני עזר'!$A$12&TEXT(D8,"MMM") -> רו#ספט | N8: =LEN(C8)&LEFT(F8,'[2]נתוני עזר'!$A$15)&HOUR(E8) -> 19BMW16 | O8: 148302.8571 | Q8: 148302.8571 | R8: 142.8571429 | S8: 148160 | T8: 0.8 | U8: BMW | V8: 4 | Y8: 0.55 | Z8: Citroen
A9: אאוגן | B9: ליבוביץ | C9: YIDOJL@colman.ac.il | D9: 2022-07-29 | E9: 13:51:02 | F9: renault_kangoo | G9: מסחרי | H9: רכבי דניאלס | I9: יהוד | J9: 2011-06-25 | K9: 148000 | L9: 56507 | M9: =MID(B9,'[2]נתוני עזר'!$A$10,'[2]נתוני עזר'!$A$11)&'[2]נתוני עזר'!$A$12&TEXT(D9,"MMM") -> יב#יול | N9: =LEN(C9)&LEFT(F9,'[2]נתוני עזר'!$A$15)&HOUR(E9) -> 19ren13 | O9: 66623.52941 | Q9: 66623.52941 | R9: 23.52941176 | S9: 66600 | T9: 0.45 | U9: renault | V9: 8
A10: מיכל | B10: בן עמי | C10: KE78OMD@colman.ac.il | D10: 2022-10-31 | E10: 13:33:55 | F10: toyota_hilux | G10: מסחרי | H10: סוכנות המוביל | I10: תל אביב | J10: 2010-09-27 | K10: 135200 | L10: 76935 | M10: =MID(B10,'[2]נתוני עזר'!$A$10,'[2]נתוני עזר'!$A$11)&'[2]נתוני עזר'!$A$12&TEXT(D10,"MMM") -> ן #אוק | N10: =LEN(C10)&LEFT(F10,'[2]נתוני עזר'!$A$15)&HOUR(E10) -> 20toy13 | O10: 60876.36364 | Q10: 60876.36364 | R10: 36.36363636 | S10: 60840 | T10: 0.45 | U10: toyota | V10: 7 | Z10: 0.45
A11: מושיקו | B11: דגנוש | C11: BDZJHBUB@colman.ac.il | D11: 2022-06-19 | E11: 16:20:30.696 | F11: Audi_A4 | G11: פרטי | H11: רכב דיל מאיר | I11: חיפה | J11: 2008-05-15 | K11: 133200 | L11: 43076 | M11: =MID(B11,'[2]נתוני עזר'!$A$10,'[2]נתוני עזר'!$A$11)&'[2]נתוני עזר'!$A$12&TEXT(D11,"MMM") -> גנ#יונ | N11: =LEN(C11)&LEFT(F11,'[2]נתוני עזר'!$A$15)&HOUR(E11) -> 21Aud16 | O11: 99950 | Q11: 99950 | R11: 50 | S11: 99900 | T11: 0.75 | U11: Audi | V11: 5
A12: אבי | B12: היינריך | C12: FF22WT@ynet.co.il | D12: 2022-06-03 | E12: 15:46:52 | F12: Nissan_Juke | G12: גיפ | H12: רכב דיל מאיר | I12: חיפה | J12: 2008-04-30 | K12: 133200 | L12: 13221 | M12: =MID(B12,'[2]נתוני עזר'!$A$10,'[2]נתוני עזר'!$A$11)&'[2]נתוני עזר'!$A$12&TEXT(D12,"MMM") -> יי#יונ | N12: =LEN(C12)&LEFT(F12,'[2]נתוני עזר'!$A$15)&HOUR(E12) -> 17Nis15 | O12: 79950.43478 | Q12: 79950.43478 | R12: 30.43478261 | S12: 79920 | T12: 0.6 | U12: Nissan | V12: 7 | Y12: טבלה מס' 2
A13: עמית | B13: כהן | C13: EAUDGT@colman.ac.il | D13: 2022-09-14 | E13: 11:51:37.007 | F13: Honda_Accord | G13: פרטי | H13: סוכנות המוביל | I13: תל אביב | J13: 2011-08-10 | K13: 125900 | L13: 40682 | M13: =MID(B13,'[2]נתוני עזר'!$A$10,'[2]נתוני עזר'!$A$11)&'[2]נתוני עזר'!$A$12&TEXT(D13,"MMM") -> הן#ספט | N13: =LEN(C13)&LEFT(F13,'[2]נתוני עזר'!$A$15)&HOUR(E13) -> 19Hon11 | O13: 56674.60784 | Q13: 56674.60784 | R13: 19.60784314 | S13: 56655 | T13: 0.45 | U13: Honda | V13: 6 | Y13: תוספת סיווג | Z13: סווג הרכב
A14: אריק | B14: לוין | C14: FFNGQQWT@ynet.co.il | D14: 2023-01-10 | E14: 14:09:00.555 | F14: Audi_A4 | G14: פרטי | H14: רכב דיל | I14: בני ברק | J14: 2008-12-06 | K14: 125300 | L14: 23927 | M14: =MID(B14,'[2]נתוני עזר'!$A$10,'[2]נתוני עזר'!$A$11)&'[2]נתוני עזר'!$A$12&TEXT(D14,"MMM") -> וי#ינו | N14: =LEN(C14)&LEFT(F14,'[2]נתוני עזר'!$A$15)&HOUR(E14) -> 19Aud14 | O14: 0 | Y14: 1000 | Z14: פרטי
A15: מור | B15: גולדברג | C15: JXI45LUBY@colman.ac.il | D15: 2022-03-28 | E15: 14:01:39 | F15: Nissan_Micra | G15: פרטי | H15: גלגלי הזהב | I15: חולון | J15: 2008-02-24 | K15: 117200 | L15: 28169 | M15: =MID(B15,'[2]נתוני עזר'!$A$10,'[2]נתוני עזר'!$A$11)&'[2]נתוני עזר'!$A$12&TEXT(D15,"MMM") -> ול#מרץ | N15: =LEN(C15)&LEFT(F15,'[2]נתוני עזר'!$A$15)&HOUR(E15) -> 22Nis14 | O15: 0 | Y15: 1200 | Z15: מסחרי
A16: ענבר | B16: יפת | C16: KIEAUDGT@colman.ac.il | D16: 2022-09-10 | E16: 14:32:09 | F16: Nissan_Pathfinder | G16: מסחרי | H16: גלגלי הזהב | I16: חולון | J16: 2011-08-06 | K16: 114500 | L16: 22743 | M16: =MID(B16,'[2]נתוני עזר'!$A$10,'[2]נתוני עזר'!$A$11)&'[2]נתוני עזר'!$A$12&TEXT(D16,"MMM") -> פת#ספט | N16: =LEN(C16)&LEFT(F16,'[2]נתוני עזר'!$A$15)&HOUR(E16) -> 21Nis14 | O16: 0 | Y16: 1400 | Z16: גיפ
A17: עדי | B17: גירו | C17: EXOOYULR@colman.ac.il | D17: 2023-01-26 | E17: 14:23:21.892 | F17: Audi_A6 | G17: מנהלים | H17: רכבי דניאלס | I17: יהוד | J17: 2010-12-22 | K17: 114500 | L17: 10716 | M17: =MID(B17,'[2]נתוני עזר'!$A$10,'[2]נתוני עזר'!$A$11)&'[2]נתוני עזר'!$A$12&TEXT(D17,"MMM") -> יר#ינו | N17: =LEN(C17)&LEFT(F17,'[2]נתוני עזר'!$A$15)&HOUR(E17) -> 21Aud14 | O17: 0 | Y17: 1600 | Z17: מנהלים
A18: אלכס | B18: עמרמי ויצמן | C18: FAOL5@walla.co.il | D18: 2022-07-13 | E18: 13:55:29 | F18: Honda_Civic | G18: פרטי | H18: רכב דיל | I18: בני ברק | J18: 2008-06-09 | K18: 114500 | L18: 40383 | M18: =MID(B18,'[2]נתוני עזר'!$A$10,'[2]נתוני עזר'!$A$11)&'[2]נתוני עזר'!$A$12&TEXT(D18,"MMM") -> מר#יול | N18: =LEN(C18)&LEFT(F18,'[2]נתוני עזר'!$A$15)&HOUR(E18) -> 17Hon13 | O18: 0
A19: אבי | B19: אור אורטרגר | C19: CTA86@walla.co.il | D19: 2022-10-26 | E19: 15:48:53 | F19: Subaru_B4 | G19: פרטי | H19: רכב דיל | I19: בני ברק | J19: 2010-09-22 | K19: 112500 | L19: 20389 | M19: =MID(B19,'[2]נתוני עזר'!$A$10,'[2]נתוני עזר'!$A$11)&'[2]נתוני עזר'!$A$12&TEXT(D19,"MMM") -> ור#אוק | N19: =LEN(C19)&LEFT(F19,'[2]נתוני עזר'!$A$15)&HOUR(E19) -> 17Sub15 | O19: 0
A20: רם | B20: אברמוביץ | C20: XPDDXH@colman.ac.il | D20: 2022-04-19 | E20: 16:37:49.888 | F20: toyota_hilux | G20: מסחרי | H20: רכב דיל מאיר | I20: חיפה | J20: 2010-03-15 | K20: 112000 | L20: 38679 | M20: =MID(B20,'[2]נתוני עזר'!$A$10,'[2]נתוני עזר'!$A$11)&'[2]נתוני עזר'!$A$12&TEXT(D20,"MMM") -> בר#אפר | N20: =LEN(C20)&LEFT(F20,'[2]נתוני עזר'!$A$15)&HOUR(E20) -> 19toy16 | O20: 0 | Y20: תאי עזר
A21: עומר | B21: יגאנה | C21: WTUUETX@ynet.co.il | D21: 2022-10-15 | E21: 13:38:56.356 | F21: Audi_A3 | G21: פרטי | H21: רכבי דניאלס | I21: יהוד | J21: 2009-09-11 | K21: 110410 | L21: 26284 | M21: =MID(B21,'[2]נתוני עזר'!$A$10,'[2]נתוני עזר'!$A$11)&'[2]נתוני עזר'!$A$12&TEXT(D21,"MMM") -> גא#אוק | N21: =LEN(C21)&LEFT(F21,'[2]נתוני עזר'!$A$15)&HOUR(E21) -> 18Aud13 | O21: 0 | Y21: _
A22: אסי | B22: וידר | C22: JXIELUBY@colman.ac.il | D22: 2022-05-15 | E22: 09:24:14.616 | F22: fiat_ducato | G22: מסחרי | H22: רכב דיל | I22: בני ברק | J22: 2008-04-11 | K22: 106000 | L22: 6474 | M22: =MID(B22,'[2]נתוני עזר'!$A$10,'[2]נתוני עזר'!$A$11)&'[2]נתוני עזר'!$A$12&TEXT(D22,"MMM") -> יד#מאי | N22: =LEN(C22)&LEFT(F22,'[2]נתוני עזר'!$A$15)&HOUR(E22) -> 21fia9 | O22: 0 | Y22: 1
A23: אאוריקה | B23: גורכוב | C23: MYGLDVTD@colman.ac.il | D23: 2022-06-21 | E23: 10:58:13.226 | F23: Nissan_Navare | G23: מסחרי | H23: סוכנות המוביל | I23: תל אביב | J23: 2011-05-17 | K23: 103000 | L23: 57178 | M23: =MID(B23,'[2]נתוני עזר'!$A$10,'[2]נתוני עזר'!$A$11)&'[2]נתוני עזר'!$A$12&TEXT(D23,"MMM") -> ור#יונ | N23: =LEN(C23)&LEFT(F23,'[2]נתוני עזר'!$A$15)&HOUR(E23) -> 21Nis10 | O23: 0
A24: אאוג'ן | B24: מנוליאו | C24: NYIAVES@colman.ac.il | D24: 2022-07-08 | E24: 16:17:18 | F24: BMW_325 | G24: פרטי | H24: סוכנות המוביל | I24: תל אביב | J24: 2011-06-04 | K24: 99600 | L24: 18823 | M24: =MID(B24,'[2]נתוני עזר'!$A$10,'[2]נתוני עזר'!$A$11)&'[2]נתוני עזר'!$A$12&TEXT(D24,"MMM") -> נו#יול | N24: =LEN(C24)&LEFT(F24,'[2]נתוני עזר'!$A$15)&HOUR(E24) -> 20BMW16 | O24: 0
A25: שירי | B25: מנור | C25: GIMI89FG@walla.co.il | D25: 2022-10-13 | E25: 14:29:31.541 | F25: Mazda_3 | G25: פרטי | H25: סוכנות המוביל | I25: תל אביב | J25: 2011-09-09 | K25: 92200 | L25: 63326 | M25: =MID(B25,'[2]נתוני עזר'!$A$10,'[2]נתוני עזר'!$A$11)&'[2]נתוני עזר'!$A$12&TEXT(D25,"MMM") -> נו#אוק | N25: =LEN(C25)&LEFT(F25,'[2]נתוני עזר'!$A$15)&HOUR(E25) -> 20Maz14 | O25: 0
A26: טלי | B26: רונן | C26: FADIKOL55@walla.co.il | D26: 2022-07-20 | E26: 12:51:18 | F26: Mazda_3 | G26: פרטי | H26: רכבי דניאלס | I26: יהוד | J26: 2009-06-16 | K26: 90890 | L26: 48294 | M26: =MID(B26,'[2]נתוני עזר'!$A$10,'[2]נתוני עזר'!$A$11)&'[2]נתוני עזר'!$A$12&TEXT(D26,"MMM") -> ונ#יול | N26: =LEN(C26)&LEFT(F26,'[2]נתוני עזר'!$A$15)&HOUR(E26) -> 21Maz12 | O26: 0
A27: שרה | B27: שוורץ | C27: RVPNJHQO33@ynet.co.il | D27: 2022-10-30 | E27: 12:56:34.880 | F27: Mazda_6 | G27: פרטי | H27: רכב דיל | I27: בני ברק | J27: 2010-09-26 | K27: 90890 | L27: 8931 | M27: =MID(B27,'[2]נתוני עזר'!$A$10,'[2]נתוני עזר'!$A$11)&'[2]נתוני עזר'!$A$12&TEXT(D27,"MMM") -> וו#אוק | N27: =LEN(C27)&LEFT(F27,'[2]נתוני עזר'!$A$15)&HOUR(E27) -> 21Maz12 | O27: 0
A28: יאנה | B28: גלון | C28: RAV8O@walla.co.il | D28: 2022-09-27 | E28: 09:29:23 | F28: Audi_A6 | G28: מנהלים | H28: גלגלי הזהב | I28: חולון | J28: 2008-08-23 | K28: 90890 | L28: 50833 | M28: =MID(B28,'[2]נתוני עזר'!$A$10,'[2]נתוני עזר'!$A$11)&'[2]נתוני עזר'!$A$12&TEXT(D28,"MMM") -> לו#ספט | N28: =LEN(C28)&LEFT(F28,'[2]נתוני עזר'!$A$15)&HOUR(E28) -> 17Aud9 | O28: 0
A29: תומר | B29: בוקאי | C29: RAV7U8O@walla.co.il | D29: 2022-11-26 | E29: 10:05:24 | F29: renault_kangoo | G29: מסחרי | H29: סוכנות המוביל | I29: תל אביב | J29: 2009-10-22 | K29: 90100 | L29: 74516 | M29: =MID(B29,'[2]נתוני עזר'!$A$10,'[2]נתוני עזר'!$A$11)&'[2]נתוני עזר'!$A$12&TEXT(D29,"MMM") -> וק#נוב | N29: =LEN(C29)&LEFT(F29,'[2]נתוני עזר'!$A$15)&HOUR(E29) -> 19ren10 | O29: 0
A30: דניאלה | B30: שטיין | C30: EXOOIS5@colman.ac.il | D30: 2022-10-09 | E30: 14:05:53.175 | F30: BMW_325 | G30: פרטי | H30: רכבי דניאלס | I30: יהוד | J30: 2010-09-05 | K30: 89000 | L30: 38944 | M30: =MID(B30,'[2]נתוני עזר'!$A$10,'[2]נתוני עזר'!$A$11)&'[2]נתוני עזר'!$A$12&TEXT(D30,"MMM") -> טי#אוק | N30: =LEN(C30)&LEFT(F30,'[2]נתוני עזר'!$A$15)&HOUR(E30) -> 20BMW14 | O30: 0
A31: מור | B31: אילומים | C31: YXYQGYVQ@colman.ac.il | D31: 2022-04-25 | E31: 09:02:29.426 | F31: Volkswagen_Passat | G31: פרטי | H31: סוכנות המוביל | I31: תל אביב | J31: 2008-03-21 | K31: 85300 | L31: 40146 | M31: =MID(B31,'[2]נתוני עזר'!$A$10,'[2]נתוני עזר'!$A$11)&'[2]נתוני עזר'!$A$12&TEXT(D31,"MMM") -> יל#אפר | N31: =LEN(C31)&LEFT(F31,'[2]נתוני עזר'!$A$15)&HOUR(E31) -> 21Vol9 | O31: 0
A32: אמה | B32: בנוב | C32: RV7HQO33@ynet.co.il | D32: 2022-03-28 | E32: 12:38:25.082 | F32: Honda_Civic | G32: פרטי | H32: רכבי דניאלס | I32: יהוד | J32: 2008-02-24 | K32: 79000 | L32: 33741 | M32: =MID(B32,'[2]נתוני עזר'!$A$10,'[2]נתוני עזר'!$A$11)&'[2]נתוני עזר'!$A$12&TEXT(D32,"MMM") -> נו#מרץ | N32: =LEN(C32)&LEFT(F32,'[2]נתוני עזר'!$A$15)&HOUR(E32) -> 19Hon12 | O32: 0
A33: גלי | B33: גרבר | C33: SVETR@walla.co.il | D33: 2022-08-07 | E33: 15:35:40.927 | F33: Hyundai_Tuscon | G33: גיפ | H33: סוכנות המוביל | I33: תל אביב | J33: 2009-07-03 | K33: 69900 | L33: 52888 | M33: =MID(B33,'[2]נתוני עזר'!$A$10,'[2]נתוני עזר'!$A$11)&'[2]נתוני עזר'!$A$12&TEXT(D33,"MMM") -> רב#אוג | N33: =LEN(C33)&LEFT(F33,'[2]נתוני עזר'!$A$15)&HOUR(E33) -> 17Hyu15 | O33: 0
A34: אבי | B34: רינגל | C34: BD12BUB@colman.ac.il | D34: 2022-05-17 | E34: 09:52:31.682 | F34: Subaru_B4 | G34: פרטי | H34: סוכנות המוביל | I34: תל אביב | J34: 2008-04-13 | K34: 42320 | L34: 34120 | M34: =MID(B34,'[2]נתוני עזר'!$A$10,'[2]נתוני עזר'!$A$11)&'[2]נתוני עזר'!$A$12&TEXT(D34,"MMM") -> ינ#מאי | N34: =LEN(C34)&LEFT(F34,'[2]נתוני עזר'!$A$15)&HOUR(E34) -> 20Sub9 | O34: 0
A35: צחי | B35: וינר | C35: JILI6@yahoo.com | D35: 2023-01-27 | E35: 19:07:43.211 | F35: Audi_A6 | G35: מנהלים | H35: סוכנות המוביל | I35: תל אביב | J35: 2010-12-23 | K35: 156000 | L35: 54194 | M35: =MID(B35,'[2]נתוני עזר'!$A$10,'[2]נתוני עזר'!$A$11)&'[2]נתוני עזר'!$A$12&TEXT(D35,"MMM") -> ינ#ינו | N35: =LEN(C35)&LEFT(F35,'[2]נתוני עזר'!$A$15)&HOUR(E35) -> 15Aud19 | O35: 0
A36: אריה | B36: אונרוביל | C36: TAB@hotmail.com | D36: 2022-09-21 | E36: 18:16:34.929 | F36: Hyundai_Tuscon | G36: גיפ | H36: רכב דיל מאיר | I36: חיפה | J36: 2010-08-17 | K36: 148000 | L36: 37483 | M36: =MID(B36,'[2]נתוני עזר'!$A$10,'[2]נתוני עזר'!$A$11)&'[2]נתוני עזר'!$A$12&TEXT(D36,"MMM") -> ונ#ספט | N36: =LEN(C36)&LEFT(F36,'[2]נתוני עזר'!$A$15)&HOUR(E36) -> 15Hyu18 | O36: 0
A37: רואי | B37: חנוביץ | C37: GT67JK@yahoo.com | D37: 2022-09-28 | E37: 17:02:19 | F37: Nissan_qashqai | G37: גיפ | H37: רכב דיל | I37: בני ברק | J37: 2009-08-24 | K37: 132100 | L37: 20688 | M37: =MID(B37,'[2]נתוני עזר'!$A$10,'[2]נתוני עזר'!$A$11)&'[2]נתוני עזר'!$A$12&TEXT(D37,"MMM") -> נו#ספט | N37: =LEN(C37)&LEFT(F37,'[2]נתוני עזר'!$A$15)&HOUR(E37) -> 16Nis17 | O37: 0
A38: לישי | B38: ברמן | C38: LCMAHAOP@hotmail.com | D38: 2022-04-11 | E38: 18:23:19.898 | F38: Nissan_Micra | G38: פרטי | H38: סוכנות המוביל | I38: תל אביב | J38: 2008-03-07 | K38: 114600 | L38: 56149 | M38: =MID(B38,'[2]נתוני עזר'!$A$10,'[2]נתוני עזר'!$A$11)&'[2]נתוני עזר'!$A$12&TEXT(D38,"MMM") -> רמ#אפר | N38: =LEN(C38)&LEFT(F38,'[2]נתוני עזר'!$A$15)&HOUR(E38) -> 20Nis18 | O38: 0
A39: לנה | B39: יצחקי | C39: TUKU7K@yahoo.com | D39: 2022-11-15 | E39: 19:26:56.881 | F39: toyota_hilux | G39: מסחרי | H39: רכב דיל | I39: בני ברק | J39: 2008-10-11 | K39: 98700 | L39: 39354 | M39: =MID(B39,'[2]נתוני עזר'!$A$10,'[2]נתוני עזר'!$A$11)&'[2]נתוני עזר'!$A$12&TEXT(D39,"MMM") -> צח#נוב | N39: =LEN(C39)&LEFT(F39,'[2]נתוני עזר'!$A$15)&HOUR(E39) -> 16toy19 | O39: 0
A40: דור | B40: וויינר | C40: RVHJHDT@gmail.com | D40: 2022-05-18 | E40: 17:02:22.317 | F40: Audi_A3 | G40: פרטי | H40: רכב דיל | I40: בני ברק | J40: 2009-04-14 | K40: 97800 | L40: 17489 | M40: =MID(B40,'[2]נתוני עזר'!$A$10,'[2]נתוני עזר'!$A$11)&'[2]נתוני עזר'!$A$12&TEXT(D40,"MMM") -> וי#מאי | N40: =LEN(C40)&LEFT(F40,'[2]נתוני עזר'!$A$15)&HOUR(E40) -> 17Aud17 | O40: 0
A41: נדב | B41: רווח | C41: RFANLGI22@gmail.com | D41: 2022-12-09 | E41: 10:49:57 | F41: Ford_Focus | G41: פרטי | H41: רכב דיל מאיר | I41: חיפה | J41: 2010-11-05 | K41: 148000 | L41: 60630 | M41: =MID(B41,'[2]נתוני עזר'!$A$10,'[2]נתוני עזר'!$A$11)&'[2]נתוני עזר'!$A$12&TEXT(D41,"MMM") -> וו#דצמ | N41: =LEN(C41)&LEFT(F41,'[2]נתוני עזר'!$A$15)&HOUR(E41) -> 19For10 | O41: 0
A42: אלון | B42: כהן | C42: XIJDGGVC@gmail.com | D42: 2022-12-09 | E42: 14:58:59.772 | F42: Nissan_Navare | G42: מסחרי | H42: גלגלי הזהב | I42: חולון | J42: 2011-11-05 | K42: 133500 | L42: 30206 | M42: =MID(B42,'[2]נתוני עזר'!$A$10,'[2]נתוני עזר'!$A$11)&'[2]נתוני עזר'!$A$12&TEXT(D42,"MMM") -> הן#דצמ | N42: =LEN(C42)&LEFT(F42,'[2]נתוני עזר'!$A$15)&HOUR(E42) -> 18Nis14 | O42: 0
A43: אאוריקה | B43: יאסין | C43: YEGB@hotmail.com | D43: 2022-08-25 | E43: 14:44:53.260 | F43: Citroen_C3 | G43: פרטי | H43: רכב דיל מאיר | I43: חיפה | J43: 2010-07-21 | K43: 133200 | L43: 37698 | M43: =MID(B43,'[2]נתוני עזר'!$A$10,'[2]נתוני עזר'!$A$11)&'[2]נתוני עזר'!$A$12&TEXT(D43,"MMM") -> אס#אוג | N43: =LEN(C43)&LEFT(F43,'[2]נתוני עזר'!$A$15)&HOUR(E43) -> 16Cit14 | O43: 0
A44: שירי | B44: הסנר | C44: GZBJLAY@gmail.com | D44: 2022-12-20 | E44: 16:33:01.363 | F44: Hyundai_Tuscon | G44: גיפ | H44: רכב דיל מאיר | I44: חיפה | J44: 2011-11-16 | K44: 124900 | L44: 49309 | M44: =MID(B44,'[2]נתוני עזר'!$A$10,'[2]נתוני עזר'!$A$11)&'[2]נתוני עזר'!$A$12&TEXT(D44,"MMM") -> סנ#דצמ | N44: =LEN(C44)&LEFT(F44,'[2]נתוני עזר'!$A$15)&HOUR(E44) -> 17Hyu16 | O44: 0
A45: נועם | B45: מי דן | C45: PAB@hotmail.com | D45: 2022-06-23 | E45: 16:43:58.850 | F45: Volkswagen_Golf | G45: פרטי | H45: רכב דיל מאיר | I45: חיפה | J45: 2009-05-19 | K45: 122300 | L45: 6330 | M45: =MID(B45,'[2]נתוני עזר'!$A$10,'[2]נתוני עזר'!$A$11)&'[2]נתוני עזר'!$A$12&TEXT(D45,"MMM") -> י #יונ | N45: =LEN(C45)&LEFT(F45,'[2]נתוני עזר'!$A$15)&HOUR(E45) -> 15Vol16 | O45: 0
A46: אסי | B46: כצוביץ | C46: MIKI6@yahoo.com | D46: 2023-01-26 | E46: 12:36:06.172 | F46: Honda_Accord | G46: פרטי | H46: רכבי דניאלס | I46: יהוד | J46: 2008-12-22 | K46: 118800 | L46: 43882 | M46: =MID(B46,'[2]נתוני עזר'!$A$10,'[2]נתוני עזר'!$A$11)&'[2]נתוני עזר'!$A$12&TEXT(D46,"MMM") -> צו#ינו | N46: =LEN(C46)&LEFT(F46,'[2]נתוני עזר'!$A$15)&HOUR(E46) -> 15Hon12 | O46: 0
A47: אורי | B47: לוין | C47: GGHH77JK@yahoo.com | D47: 2022-03-12 | E47: 12:46:17.416 | F47: Nissan_Pathfinder | G47: מסחרי | H47: סוכנות המוביל | I47: תל אביב | J47: 2009-02-08 | K47: 117800 | L47: 36392 | M47: =MID(B47,'[2]נתוני עזר'!$A$10,'[2]נתוני עזר'!$A$11)&'[2]נתוני עזר'!$A$12&TEXT(D47,"MMM") -> וי#מרץ | N47: =LEN(C47)&LEFT(F47,'[2]נתוני עזר'!$A$15)&HOUR(E47) -> 18Nis12 | O47: 0
A48: אבי | B48: ממלידר | C48: YAKI5@yahoo.com | D48: 2022-12-02 | E48: 15:22:52 | F48: Nissan_qashqai | G48: גיפ | H48: רכבי דניאלס | I48: יהוד | J48: 2010-10-28 | K48: 114600 | L48: 31480 | M48: =MID(B48,'[2]נתוני עזר'!$A$10,'[2]נתוני עזר'!$A$11)&'[2]נתוני עזר'!$A$12&TEXT(D48,"MMM") -> מל#דצמ | N48: =LEN(C48)&LEFT(F48,'[2]נתוני עזר'!$A$15)&HOUR(E48) -> 15Nis15 | O48: 0
A49: ירדן | B49: קלנר | C49: ARIPOR5@yahoo.com | D49: 2022-11-28 | E49: 12:39:01 | F49: Ford_Focus | G49: פרטי | H49: רכב דיל | I49: בני ברק | J49: 2011-10-24 | K49: 112000 | L49: 7902 | M49: =MID(B49,'[2]נתוני עזר'!$A$10,'[2]נתוני עזר'!$A$11)&'[2]נתוני עזר'!$A$12&TEXT(D49,"MMM") -> לנ#נוב | N49: =LEN(C49)&LEFT(F49,'[2]נתוני עזר'!$A$15)&HOUR(E49) -> 17For12 | O49: 0
A50: טל | B50: בן סלומון | C50: TIMO5GH@yahoo.com | D50: 2022-07-01 | E50: 12:36:10.706 | F50: Citroen_C5 | G50: פרטי | H50: גלגלי הזהב | I50: חולון | J50: 2010-05-27 | K50: 112000 | L50: 49972 | M50: =MID(B50,'[2]נתוני עזר'!$A$10,'[2]נתוני עזר'!$A$11)&'[2]נתוני עזר'!$A$12&TEXT(D50,"MMM") -> ן #יול | N50: =LEN(C50)&LEFT(F50,'[2]נתוני עזר'!$A$15)&HOUR(E50) -> 17Cit12 | O50: 0
A51: אודי | B51: חיים | C51: PADI5@yahoo.com | D51: 2022-10-02 | E51: 14:03:12 | F51: Citroen_C5 | G51: פרטי | H51: רכב דיל | I51: בני ברק | J51: 2010-08-28 | K51: 110410 | L51: 12170 | M51: =MID(B51,'[2]נתוני עזר'!$A$10,'[2]נתוני עזר'!$A$11)&'[2]נתוני עזר'!$A$12&TEXT(D51,"MMM") -> יי#אוק | N51: =LEN(C51)&LEFT(F51,'[2]נתוני עזר'!$A$15)&HOUR(E51) -> 15Cit14 | O51: 0
A52: גדי | B52: ראפס | C52: GILIUU8@gmail.com | D52: 2022-03-05 | E52: 10:06:50.571 | F52: Mazda_6 | G52: פרטי | H52: גלגלי הזהב | I52: חולון | J52: 2009-02-01 | K52: 110410 | L52: 74616 | M52: =MID(B52,'[2]נתוני עזר'!$A$10,'[2]נתוני עזר'!$A$11)&'[2]נתוני עזר'!$A$12&TEXT(D52,"MMM") -> אפ#מרץ | N52: =LEN(C52)&LEFT(F52,'[2]נתוני עזר'!$A$15)&HOUR(E52) -> 17Maz10 | O52: 0
A53: מירב | B53: ברטס | C53: GH77JK@yahoo.com | D53: 2022-06-24 | E53: 13:49:00 | F53: Nissan_Juke | G53: גיפ | H53: גלגלי הזהב | I53: חולון | J53: 2008-05-20 | K53: 97800 | L53: 45473 | M53: =MID(B53,'[2]נתוני עזר'!$A$10,'[2]נתוני עזר'!$A$11)&'[2]נתוני עזר'!$A$12&TEXT(D53,"MMM") -> רט#יונ | N53: =LEN(C53)&LEFT(F53,'[2]נתוני עזר'!$A$15)&HOUR(E53) -> 16Nis13 | O53: 0
A54: ליה | B54: רוטשילד | C54: R5HJ9DT@gmail.com | D54: 2022-04-14 | E54: 15:23:17.829 | F54: Nissan_Juke | G54: גיפ | H54: רכבי דניאלס | I54: יהוד | J54: 2009-03-10 | K54: 95000 | L54: 39959 | M54: =MID(B54,'[2]נתוני עזר'!$A$10,'[2]נתוני עזר'!$A$11)&'[2]נתוני עזר'!$A$12&TEXT(D54,"MMM") -> וט#אפר | N54: =LEN(C54)&LEFT(F54,'[2]נתוני עזר'!$A$15)&HOUR(E54) -> 17Nis15 | O54: 0
A55: עמרי | B55: יגאנה | C55: HRNFSEKR@gmail.com | D55: 2022-12-03 | E55: 13:54:01 | F55: BMW_540 | G55: פרטי | H55: רכב דיל מאיר | I55: חיפה | J55: 2011-10-29 | K55: 80900 | L55: 79021 | M55: =MID(B55,'[2]נתוני עזר'!$A$10,'[2]נתוני עזר'!$A$11)&'[2]נתוני עזר'!$A$12&TEXT(D55,"MMM") -> גא#דצמ | N55: =LEN(C55)&LEFT(F55,'[2]נתוני עזר'!$A$15)&HOUR(E55) -> 18BMW13 | O55: 0
A56: דן | B56: טננבאום | C56: OQAPSDFQ@hotmail.com | D56: 2022-05-31 | E56: 11:59:30 | F56: renault_kangoo | G56: מסחרי | H56: רכב דיל | I56: בני ברק | J56: 2010-04-27 | K56: 76000 | L56: 33193 | M56: =MID(B56,'[2]נתוני עזר'!$A$10,'[2]נתוני עזר'!$A$11)&'[2]נתוני עזר'!$A$12&TEXT(D56,"MMM") -> ננ#מאי | N56: =LEN(C56)&LEFT(F56,'[2]נתוני עזר'!$A$15)&HOUR(E56) -> 20ren11 | O56: 0
A57: מיטל | B57: דורון | C57: TUTUU7@yahoo.com | D57: 2023-01-15 | E57: 16:12:41 | F57: fiat_ducato | G57: מסחרי | H57: סוכנות המוביל | I57: תל אביב | J57: 2010-12-11 | K57: 58100 | L57: 29954 | M57: =MID(B57,'[2]נתוני עזר'!$A$10,'[2]נתוני עזר'!$A$11)&'[2]נתוני עזר'!$A$12&TEXT(D57,"MMM") -> ור#ינו | N57: =LEN(C57)&LEFT(F57,'[2]נתוני עזר'!$A$15)&HOUR(E57) -> 16fia16 | O57: 0
V59: תאי עזר

Sheet search X 3
A1: מספר לקוח | B1: שם לקוח | C1: כתובת דוא"ל | D1: מעמד לקוח | E1: תחילת ההשקעה | F1: סכום השקעה | G1: מספר קרן | H1: דמי ניהול | I1: ערך השקעה נכון להיום | K1: סיסמה | M1: ההפרש יגלה את אורך השרת שבאמצע | N1: חיפוש מיקום התו @ | O1: חיפוש מיקום התו .
A2: 1855 | B2: NI_IAV | C2: NI_IAV@colman.ac.il | D2: שכיר | E2: 2022-09-15 | F2: 2500 | G2: 10 | H2: 0.009 | I2: 16761.87789 | K2: =MID(C2,N2+$Q$7,M2-$Q$7)&DAY(E2) -> colman15 | M2: =O2-N2 -> 7 | N2: =SEARCH($Q$9,C2) -> 7 | O2: =SEARCH($Q$8,C2) -> 14
A3: 1856 | B3: KF_GLD | C3: KF_GLD@colman.ac.il | D3: עצמאי | E3: 2022-03-12 | F3: 146726 | G3: 13 | H3: 0.0029 | I3: 214094.1126 | K3: =MID(C3,N3+$Q$7,M3-$Q$7)&DAY(E3) -> colman12 | M3: =O3-N3 -> 7 | N3: =SEARCH($Q$9,C3) -> 7 | O3: =SEARCH($Q$8,C3) -> 14
A4: 1857 | B4: CC_GB | C4: CC_GB@hotmail.com | D4: שכיר | E4: 2022-09-29 | F4: 253094 | G4: 10 | H4: 0.006 | I4: 307637.3388 | K4: hotmail29 | M4: 8 | N4: 6 | O4: 14
A5: 1858 | B5: BJ_VLS | C5: BJ_VLS@colman.ac.il | D5: שכיר | E5: 2022-12-29 | F5: 70131 | G5: 14 | H5: 0.001 | I5: 332458.0998 | K5: colman29 | M5: 7 | N5: 7 | O5: 14
A6: 1859 | B6: DE_APS | C6: DE_APS@hotmail.com | D6: שכיר | E6: 2022-02-05 | F6: 63372 | G6: 15 | H6: 0.001 | I6: 1229261.975 | K6: hotmail5 | M6: 8 | N6: 7 | O6: 15 | Q6: תאי עזר
A7: 1860 | B7: BJ_DDX | C7: BJ_DDX@colman.ac.il | D7: עצמאי | E7: 2022-05-19 | F7: 72483 | G7: 15 | H7: 0.001 | I7: 1877660.419 | K7: colman19 | M7: 7 | N7: 7 | O7: 14 | Q7: 1
A8: 1861 | B8: CK_UUE | C8: CK_UUE@ynet.co.il | D8: עצמאי | E8: 2022-07-11 | F8: 108877 | G8: 13 | H8: 0.0029 | I8: 986671.1231 | K8: ynet11 | M8: 5 | N8: 7 | O8: =SEARCH($Q$8,C8) -> 12 | Q8: .
A9: 1862 | B9: JK_67J | C9: JK_67J@yahoo.com | D9: עצמאי | E9: 2022-05-05 | F9: 96681 | G9: 10 | H9: 0.007 | I9: 191421.767 | K9: yahoo5 | M9: 6 | N9: 7 | O9: 13 | Q9: @
A10: 1863 | B10: DJ_IPO | C10: DJ_IPO@yahoo.com | D10: עצמאי | E10: 2022-10-27 | F10: 66590 | G10: 15 | H10: 0.001 | I10: 377756.6835 | K10: yahoo27 | M10: 6 | N10: 7 | O10: 13
A11: 1864 | B11: LB_MI8 | C11: LB_MI8@walla.co.il | D11: בעל שליטה | E11: 2022-05-26 | F11: 224708 | G11: 10 | H11: 0.006 | I11: 3453180.52
A12: 1865 | B12: LM_TBP | C12: LM_TBP@ynet.co.il | D12: שכיר | E12: 2022-07-17 | F12: 49492 | G12: 14 | H12: 0.0011 | I12: 2044762.053
A13: 1866 | B13: BK_UDG | C13: BK_UDG@colman.ac.il | D13: שכיר | E13: 2022-04-28 | F13: 76982 | G13: 13 | H13: 0.0039 | I13: 2617985.431
A14: 1867 | B14: DK_EAU | C14: DK_EAU@colman.ac.il | D14: בעל שליטה | E14: 2022-09-13 | F14: 184883 | G14: 10 | H14: 0.006 | I14: 2226133.638
A15: 1868 | B15: KL_XLD | C15: KL_XLD@ynet.co.il | D15: בעל שליטה | E15: 2022-10-12 | F15: 8780 | G15: 10 | H15: 0.009 | I15: 122381.7519
A16: 1869 | B16: NE_ANL | C16: NE_ANL@gmail.com | D16: שכיר | E16: 2022-11-18 | F16: 46900 | G16: 14 | H16: 0.0011 | I16: 80582.93183
A17: 1870 | B17: MK_MO5 | C17: MK_MO5@yahoo.com | D17: שכיר | E17: 2022-05-25 | F17: 162174 | G17: 14 | H17: 0.0008 | I17: 1078268.713
A18: 1871 | B18: LM_V7U | C18: LM_V7U@walla.co.il | D18: שכיר | E18: 2022-12-09 | F18: 10321 | G18: 14 | H18: 0.0011 | I18: 372444.8688
A19: 1872 | B19: FD_DIK | C19: FD_DIK@walla.co.il | D19: שכיר | E19: 2022-06-22 | F19: 56091 | G19: 15 | H19: 0.001 | I19: 1453028.304
A20: 1873 | B20: KD_HH7 | C20: KD_HH7@yahoo.com | D20: עצמאי | E20: 2022-07-10 | F20: 12866 | G20: 10 | H20: 0.008 | I20: 133822.7353
A21: 1874 | B21: EL_NGQ | C21: EL_NGQ@ynet.co.il | D21: עצמאי | E21: 2022-07-01 | F21: 71270 | G21: 13 | H21: 0.0039 | I21: 142479.5203
A22: 1875 | B22: KK_ZJH | C22: KK_ZJH@colman.ac.il | D22: עצמאי | E22: 2022-02-01 | F22: 10129 | G22: 14 | H22: 0.0011 | I22: 22812.4486
A23: 1876 | B23: MC_IEL | C23: MC_IEL@colman.ac.il | D23: בעל שליטה | E23: 2022-01-17 | F23: 143689 | G23: 13 | H23: 0.0029 | I23: 1900016.8
A24: 1877 | B24: FJ_YQG | C24: FJ_YQG@colman.ac.il | D24: בעל שליטה | E24: 2022-02-09 | F24: 25719 | G24: 12 | H24: 0.0058 | I24: 186489.1191
A25: 1878 | B25: AI_MAH | C25: AI_MAH@hotmail.com | D25: שכיר | E25: 2022-09-16 | F25: 215746 | G25: 14 | H25: 0.0008 | I25: 1094342.881
A26: 1879 | B26: GI_JDG | C26: GI_JDG@gmail.com | D26: בעל שליטה | E26: 2022-11-28 | F26: 131191 | G26: 10 | H26: 0.006 | I26: 203520.3
A27: 1880 | B27: SSS

Sheet רגישות סדר 1
A1: מספר לקוח | B1: שם פרטי | C1: שם משפחה | D1: כתובת אימייל | E1: מספר טלפון נייד | F1: עיר מגורים | G1: תאריך הצטרפות למועדון לקוחות | H1: מוצר מועדף | I1: סיווג המוצר | J1: רמת שביעות רצון מהשירות | K1: סכום קנייה ממוצעת | L1: ממוצע מספר היחידות בהזמנה | M1: שעת ביצוע ההזמנה | N1: שעת קבלת המשלוח | O1: שם משתמש | P1: סיסמה | Q1: סיווג לקוח | R1: הנחה | S1: עלות משלוח
A2: 1 | B2: אבי | C2: שחר | D2: avi@hotmail.com | E2: 053-2223333 | F2: תל אביב | G2: 2014-03-22 | H2: Palermo Kaza | I2: קפסולות קפה | J2: 7 | K2: 320 | L2: 7 | M2: 16:30:00 | N2: 17:15:00 | O2: =LEFT(B2,Q1A_1)&MID(C2,Q1A_3,Q1A_1)&Q1A_KRIA&DAY(G2) -> אר!22 | P2: =LEN(I2)&RIGHT(H2,Q1A_2)&HOUR(M2) -> 11za16 | Q2: =_xlfn.XLOOKUP(K2,'[1]נתוני עזר'!$C$3:$C$6,'[1]נתוני עזר'!$D$3:$D$6,,-1) -> חברים לקפה | R2: =_xlfn.XLOOKUP(L2,$A$48:$A$51,_xlfn.XLOOKUP(I2,$B$47:$D$47,$B$48:$D$51),,-1)*K2 -> 6.4 | S2: =IF(AND(I2=$N$55,L2<$P$55),$P$55*L2,IF(AND(F2=$N$58,HOUR(M2)>$P$56),$P$56*L2,$P$57*L2)) -> 112
A3: 2 | B3: אביב | C3: גור | D3: aviv@gov.il | E3: 053-1112222 | F3: ירושלים | G3: 2013-04-11 | H3: Altission | I3: קפסולות קפה | J3: 7 | K3: 1200 | L3: 17 | M3: 16:15:00 | N3: 17:00:00 | O3: =LEFT(B3,Q1A_1)&MID(C3,Q1A_3,Q1A_1)&Q1A_KRIA&DAY(G3) -> אר!11 | P3: =LEN(I3)&RIGHT(H3,Q1A_2)&HOUR(M3) -> 11on16 | Q3: =_xlfn.XLOOKUP(K3,'[1]נתוני עזר'!$C$3:$C$6,'[1]נתוני עזר'!$D$3:$D$6,,-1) -> כוכבי קפה | R3: =_xlfn.XLOOKUP(L3,$A$48:$A$51,_xlfn.XLOOKUP(I3,$B$47:$D$47,$B$48:$D$51),,-1)*K3 -> 60 | S3: =IF(AND(I3=$N$55,L3<$P$55),$P$55*L3,IF(AND(F3=$N$58,HOUR(M3)>$P$56),$P$56*L3,$P$57*L3)) -> 272
A4: 3 | B4: אורן | C4: כהן | D4: oren@gmail.com | E4: 050-4445555 | F4: רמת גן | G4: 2013-12-01 | H4: Ispirazione Napolion | I4: קפסולות קפה | J4: 2 | K4: 200 | L4: 9 | M4: 14:30:00 | N4: 15:15:00 | O4: =LEFT(B4,Q1A_1)&MID(C4,Q1A_3,Q1A_1)&Q1A_KRIA&DAY(G4) -> אן!1 | P4: =LEN(I4)&RIGHT(H4,Q1A_2)&HOUR(M4) -> 11on14 | Q4: =_xlfn.XLOOKUP(K4,'[1]נתוני עזר'!$C$3:$C$6,'[1]נתוני עזר'!$D$3:$D$6,,-1) -> טעימות קפה | R4: =_xlfn.XLOOKUP(L4,$A$48:$A$51,_xlfn.XLOOKUP(I4,$B$47:$D$47,$B$48:$D$51),,-1)*K4 -> 4 | S4: =IF(AND(I4=$N$55,L4<$P$55),$P$55*L4,IF(AND(F4=$N$58,HOUR(M4)>$P$56),$P$56*L4,$P$57*L4)) -> 144
A5: 4 | B5: איליה | C5: קליין | D5: ilia@gmail.com | E5: 053-1234567 | F5: חיפה | G5: 2016-09-14 | H5: Vertuo Ne | I5: מכונות קפה | J5: 7 | K5: 600 | L5: 17 | M5: 15:30:00 | N5: 16:15:00 | O5: =LEFT(B5,Q1A_1)&MID(C5,Q1A_3,Q1A_1)&Q1A_KRIA&DAY(G5) -> אי!14 | P5: =LEN(I5)&RIGHT(H5,Q1A_2)&HOUR(M5) -> 10Ne15 | Q5: =_xlfn.XLOOKUP(K5,'[1]נתוני עזר'!$C$3:$C$6,'[1]נתוני עזר'!$D$3:$D$6,,-1) -> מומחי קפה | R5: =_xlfn.XLOOKUP(L5,$A$48:$A$51,_xlfn.XLOOKUP(I5,$B$47:$D$47,$B$48:$D$51),,-1)*K5 -> 36 | S5: 272
A6: 5 | B6: אילן | C6: רון | D6: ilan@hotmail.com | E6: 053-9998888 | F6: רעננה | G6: 2016-04-25 | H6: Sccuro | I6: קפסולות קפה | J6: 6 | K6: 700 | L6: 17 | M6: 17:00:00 | N6: 17:45:00 | O6: =LEFT(B6,Q1A_1)&MID(C6,Q1A_3,Q1A_1)&Q1A_KRIA&DAY(G6) -> אן!25 | P6: =LEN(I6)&RIGHT(H6,Q1A_2)&HOUR(M6) -> 11ro17 | Q6: =_xlfn.XLOOKUP(K6,'[1]נתוני עזר'!$C$3:$C$6,'[1]נתוני עזר'!$D$3:$D$6,,-1) -> מומחי קפה | R6: =_xlfn.XLOOKUP(L6,$A$48:$A$51,_xlfn.XLOOKUP(I6,$B$47:$D$47,$B$48:$D$51),,-1)*K6 -> 35 | S6: 272
A7: 6 | B7: אלון | C7: פלג | D7: alon@gmail.com | E7: 052-6667777 | F7: נתניה | G7: 2013-07-16 | H7: זוג ספלי קפוצ'ינו | I7: אביזרים נלווים | J7: 7 | K7: 600 | L7: 17 | M7: 12:45:00 | N7: 13:30:00 | O7: =LEFT(B7,Q1A_1)&MID(C7,Q1A_3,Q1A_1)&Q1A_KRIA&DAY(G7) -> אג!16 | P7: =LEN(I7)&RIGHT(H7,Q1A_2)&HOUR(M7) -> 14ו 12 | Q7: =_xlfn.XLOOKUP(K7,'[1]נתוני עזר'!$C$3:$C$6,'[1]נתוני עזר'!$D$3:$D$6,,-1) -> מומחי קפה | R7: =_xlfn.XLOOKUP(L7,$A$48:$A$51,_xlfn.XLOOKUP(I7,$B$47:$D$47,$B$48:$D$51),,-1)*K7 -> 24 | S7: 272
A8: 7 | B8: אלונה | C8: רובינוביץ | D8: alona@yahoo.com | E8: 053-5556666 | F8: אילת | G8: 2016-10-08 | H8: Odacioo | I8: קפסולות קפה | J8: 7 | K8: 500 | L8: 14 | M8: 18:15:00 | N8: 19:00:00 | O8: =LEFT(B8,Q1A_1)&MID(C8,Q1A_3,Q1A_1)&Q1A_KRIA&DAY(G8) -> אב!8 | P8: =LEN(I8)&RIGHT(H8,Q1A_2)&HOUR(M8) -> 11oo18 | Q8: =_xlfn.XLOOKUP(K8,'[1]נתוני עזר'!$C$3:$C$6,'[1]נתוני עזר'!$D$3:$D$6,,-1) -> חברים לקפה | R8: =_xlfn.XLOOKUP(L8,$A$48:$A$51,_xlfn.XLOOKUP(I8,$B$47:$D$47,$B$48:$D$51),,-1)*K8 -> 15 | S8: 224
A9: 8 | B9: אמיר | C9: גיל | D9: amir@gov.il | E9: 052-5556666 | F9: רמת גן | G9: 2014-03-03 | H9: Creatista Pluss | I9: מכונות קפה | J9: 7 | K9: 500 | L9: 18 | M9: 21:30:00 | N9: 22:15:00 | O9: =LEFT(B9,Q1A_1)&MID(C9,Q1A_3,Q1A_1)&Q1A_KRIA&DAY(G9) -> אל!3 | P9: =LEN(I9)&RIGHT(H9,Q1A_2)&HOUR(M9) -> 10ss21 | Q9: =_xlfn.XLOOKUP(K9,'[1]נתוני עזר'!$C$3:$C$6,'[1]נתוני עזר'!$D$3:$D$6,,-1) -> חברים לקפה | R9: =_xlfn.XLOOKUP(L9,$A$48:$A$51,_xlfn.XLOOKUP(I9,$B$47:$D$47,$B$48:$D$51),,-1)*K9 -> 30 | S9: 288
A10: 9 | B10: גיל | C10: כהן | D10: gil@gmail.com | E10: 050-5556666 | F10: רעננה | G10: 2015-11-17 | H10: Stormion | I10: קפסולות קפה | J10: 7 | K10: 680 | L10: 20 | M10: 21:45:00 | N10: 22:30:00 | O10: =LEFT(B10,Q1A_1)&MID(C10,Q1A_3,Q1A_1)&Q1A_KRIA&DAY(G10) -> גן!17 | P10: =LEN(I10)&RIGHT(H10,Q1A_2)&HOUR(M10) -> 11on21 | Q10: =_xlfn.XLOOKUP(K10,'[1]נתוני עזר'!$C$3:$C$6,'[1]נתוני עזר'!$D$3:$D$6,,-1) -> מומחי קפה | R10: =_xlfn.XLOOKUP(L10,$A$48:$A$51,_xlfn.XLOOKUP(I10,$B$47:$D$47,$B$48:$D$51),,-1)*K10 -> 40.8 | S10: 320
A11: 10 | B11: דור | C11: לוי | D11: dor@gmail.com | E11: 050-5556666 | F11: פתח תקווה | G11: 2015-06-03 | H11: Lattissima Onn | I11: מכונות קפה | J11: 2 | K11: 300 | L11: 8 | M11: 18:45:00 | N11: 19:30:00 | O11: =LEFT(B11,Q1A_1)&MID(C11,Q1A_3,Q1A_1)&Q1A_KRIA&DAY(G11) -> די!3 | P11: =LEN(I11)&RIGHT(H11,Q1A_2)&HOUR(M11) -> 10nn18 | Q11: =_xlfn.XLOOKUP(K11,'[1]נתוני עזר'!$C$3:$C$6,'[1]נתוני עזר'!$D$3:$D$6,,-1) -> טעימות קפה | R11: =_xlfn.XLOOKUP(L11,$A$48:$A$51,_xlfn.XLOOKUP(I11,$B$47:$D$47,$B$48:$D$51),,-1)*K11 -> 9 | S11: 64
A12: 11 | B12: דינה | C12: לייבה | D12: dina@yahoo.com | E12: 052-8765432 | F12: פתח תקווה | G12: 2019-04-02 | H12: Vertuo Pl | I12: מכונות קפה | J12: 7 | K12: 400 | L12: 10 | M12: 20:30:00 | N12: 21:15:00 | O12: =LEFT(B12,Q1A_1)&MID(C12,Q1A_3,Q1A_1)&Q1A_KRIA&DAY(G12) -> די!2 | P12: =LEN(I12)&RIGHT(H12,Q1A_2)&HOUR(M12) -> 10Pl20 | Q12: =_xlfn.XLOOKUP(K12,'[1]נתוני עזר'!$C$3:$C$6,'[1]נתוני עזר'!$D$3:$D$6,,-1) -> חברים לקפה | R12: =_xlfn.XLOOKUP(L12,$A$48:$A$51,_xlfn.XLOOKUP(I12,$B$47:$D$47,$B$48:$D$51),,-1)*K12 -> 12 | S12: 80
A13: 12 | B13: דנה | C13: מלמד | D13: dana@yahoo.com | E13: 052-8889999 | F13: באר שבע | G13: 2017-02-28 | H13: כוסות אספרסו קריסטל | I13: אביזרים נלווים | J13: 3 | K13: 250 | L13: 7 | M13: 21:00:00 | N13: 21:45:00 | O13: =LEFT(B13,Q1A_1)&MID(C13,Q1A_3,Q1A_1)&Q1A_KRIA&DAY(G13) -> דמ!28 | P13: =LEN(I13)&RIGHT(H13,Q1A_2)&HOUR(M13) -> 14ל 21 | Q13: =_xlfn.XLOOKUP(K13,'[1]נתוני עזר'!$C$3:$C$6,'[1]נתוני עזר'!$D$3:$D$6,,-1) -> טעימות קפה | R13: =_xlfn.XLOOKUP(L13,$A$48:$A$51,_xlfn.XLOOKUP(I13,$B$47:$D$47,$B$48:$D$51),,-1)*K13 -> 2.5 | S13: 112
A14: 13 | B14: דני | C14: חיון | D14: danny@hotmail.com | E14: 050-1234567 | F14: רעננה | G14: 2023-05-03 | H14: Romm | I14: קפסולות קפה | J14: 3 | K14: 600 | L14: 16 | M14: 18:20:00 | N14: 19:00:00 | O14: =LEFT(B14,Q1A_1)&MID(C14,Q1A_3,Q1A_1)&Q1A_KRIA&DAY(G14) -> דו!3 | P14: =LEN(I14)&RIGHT(H14,Q1A_2)&HOUR(M14) -> 11mm18 | Q14: =_xlfn.XLOOKUP(K14,'[1]נתוני עזר'!$C$3:$C$6,'[1]נתוני עזר'!$D$3:$D$6,,-1) -> מומחי קפה | R14: =_xlfn.XLOOKUP(L14,$A$48:$A$51,_xlfn.XLOOKUP(I14,$B$47:$D$47,$B$48:$D$51),,-1)*K14 -> 30 | S14: 256
A15: 14 | B15: דניאל | C15: מינץ | D15: dan@yahoo.com | E15: 052-4445555 | F15: ירושלים | G15: 2020-11-08 | H15: Grann Latisimma | I15: מכונות קפה | J15: 4 | K15: 1000 | L15: 19 | M15: 21:15:00 | N15: 22:00:00 | O15: =LEFT(B15,Q1A_1)&MID(C15,Q1A_3,Q1A_1)&Q1A_KRIA&DAY(G15) -> דנ!8 | P15: =LEN(I15)&RIGHT(H15,Q1A_2)&HOUR(M15) -> 10ma21 | Q15: =_xlfn.XLOOKUP(K15,'[1]נתוני עזר'!$C$3:$C$6,'[1]נתוני עזר'!$D$3:$D$6,,-1) -> כוכבי קפה | R15: =_xlfn.XLOOKUP(L15,$A$48:$A$51,_xlfn.XLOOKUP(I15,$B$47:$D$47,$B$48:$D$51),,-1)*K15 -> 60 | S15: =IF(AND(I15=$N$55,L15<$P$55),$P$55*L15,IF(AND(F15=$N$58,HOUR(M15)>$P$56),$P$56*L15,$P$57*L15)) -> 304
A16: 15 | B16: יהונתן | C16: גלעדי | D16: yonatan@gov.il | E16: 053-4445555 | F16: חיפה | G16: 2015-03-26 | H16: ESENZA PLUSS | I16: מכונות קפה | J16: 5 | K16: 650 | L16: 17 | M16: 18:00:00 | N16: 18:45:00 | O16: =LEFT(B16,Q1A_1)&MID(C16,Q1A_3,Q1A_1)&Q1A_KRIA&DAY(G16) -> יע!26 | P16: =LEN(I16)&RIGHT(H16,Q1A_2)&HOUR(M16) -> 10SS18 | Q16: =_xlfn.XLOOKUP(K16,'[1]נתוני עזר'!$C$3:$C$6,'[1]נתוני עזר'!$D$3:$D$6,,-1) -> מומחי קפה | R16: =_xlfn.XLOOKUP(L16,$A$48:$A$51,_xlfn.XLOOKUP(I16,$B$47:$D$47,$B$48:$D$51),,-1)*K16 -> 39 | S16: =IF(AND(I16=$N$55,L16<$P$55),$P$55*L16,IF(AND(F16=$N$58,HOUR(M16)>$P$56),$P$56*L16,$P$57*L16)) -> 272
A17: 16 | B17: יואב | C17: פרידמן | D17: yoav@gmail.com | E17: 054-8889999 | F17: רמת גן | G17: 2014-09-30 | H17: כוס מאג Festive | I17: אביזרים נלווים | J17: 5 | K17: 650 | L17: 18 | M17: 15:45:00 | N17: 16:30:00 | O17: =LEFT(B17,Q1A_1)&MID(C17,Q1A_3,Q1A_1)&Q1A_KRIA&DAY(G17) -> יי!30 | P17: =LEN(I17)&RIGHT(H17,Q1A_2)&HOUR(M17) -> 14ve15 | Q17: =_xlfn.XLOOKUP(K17,'[1]נתוני עזר'!$C$3:$C$6,'[1]נתוני עזר'!$D$3:$D$6,,-1) -> מומחי קפה | R17: =_xlfn.XLOOKUP(L17,$A$48:$A$51,_xlfn.XLOOKUP(I17,$B$47:$D$47,$B$48:$D$51),,-1)*K17 -> 26 | S17: =IF(AND(I17=$N$55,L17<$P$55),$P$55*L17,IF(AND(F17=$N$58,HOUR(M17)>$P$56),$P$56*L17,$P$57*L17)) -> 288
A18: 17 | B18: יובל | C18: שרי | D18: yuval@gmail.com | E18: 054-6667777 | F18: חולון | G18: 2018-07-09 | H18: Palermo Kaza | I18: קפסולות קפה | J18: 7 | K18: 800 | L18: 18 | M18: 08:30:00 | N18: 09:15:00 | O18: =LEFT(B18,Q1A_1)&MID(C18,Q1A_3,Q1A_1)&Q1A_KRIA&DAY(G18) -> יי!9 | P18: =LEN(I18)&RIGHT(H18,Q1A_2)&HOUR(M18) -> 11za8 | Q18: =_xlfn.XLOOKUP(K18,'[1]נתוני עזר'!$C$3:$C$6,'[1]נתוני עזר'!$D$3:$D$6,,-1) -> כוכבי קפה | R18: =_xlfn.XLOOKUP(L18,$A$48:$A$51,_xlfn.XLOOKUP(I18,$B$47:$D$47,$B$48:$D$51),,-1)*K18 -> 40 | S18: =IF(AND(I18=$N$55,L18<$P$55),$P$55*L18,IF(AND(F18=$N$58,HOUR(M18)>$P$56),$P$56*L18,$P$57*L18)) -> 288
A19: 18 | B19: יוסי | C19: כהן | D19: yossi@gmail.com | E19: 053-7778888 | F19: אילת | G19: 2023-01-15 | H19: Ristro | I19: קפסולות קפה | J19: 3 | K19: 400 | L19: 18 | M19: 10:30:00 | N19: 11:00:00 | O19: =LEFT(B19,Q1A_1)&MID(C19,Q1A_3,Q1A_1)&Q1A_KRIA&DAY(G19) -> ין!15 | P19: =LEN(I19)&RIGHT(H19,Q1A_2)&HOUR(M19) -> 11ro10 | Q19: =_xlfn.XLOOKUP(K19,'[1]נתוני עזר'!$C$3:$C$6,'[1]נתוני עזר'!$D$3:$D$6,,-1) -> חברים לקפה | R19: =_xlfn.XLOOKUP(L19,$A$48:$A$51,_xlfn.XLOOKUP(I19,$B$47:$D$47,$B$48:$D$51),,-1)*K19 -> 20 | S19: 288
A20: 19 | B20: יעל | C20: גולדשטיין | D20: yael@colman.ac.il | E20: 054-4445555 | F20: רעננה | G20: 2019-06-30 | H20: Intenso | I20: קפסולות קפה | J20: 3 | K20: 450 | L20: 13 | M20: 13:30:00 | N20: 14:15:00 | O20: =LEFT(B20,Q1A_1)&MID(C20,Q1A_3,Q1A_1)&Q1A_KRIA&DAY(G20) -> יל!30 | P20: =LEN(I20)&RIGHT(H20,Q1A_2)&HOUR(M20) -> 11so13 | Q20: =_xlfn.XLOOKUP(K20,'[1]נתוני עזר'!$C$3:$C$6,'[1]נתוני עזר'!$D$3:$D$6,,-1) -> חברים לקפה | R20: =_xlfn.XLOOKUP(L20,$A$48:$A$51,_xlfn.XLOOKUP(I20,$B$47:$D$47,$B$48:$D$51),,-1)*K20 -> 13.5 | S20: 208
A21: 20 | B21: יעל | C21: רוזנברג | D21: yael@yahoo.com | E21: 050-9876543 | F21: תל אביב | G21: 2022-04-19 | H21: Vertuo Pl | I21: מכונות קפה | J21: 5 | K21: 500 | L21: 14 | M21: 14:00:00 | N21: 14:45:00 | O21: =LEFT(B21,Q1A_1)&MID(C21,Q1A_3,Q1A_1)&Q1A_KRIA&DAY(G21) -> יז!19 | P21: =LEN(I21)&RIGHT(H21,Q1A_2)&HOUR(M21) -> 10Pl14 | Q21: =_xlfn.XLOOKUP(K21,'[1]נתוני עזר'!$C$3:$C$6,'[1]נתוני עזר'!$D$3:$D$6,,-1) -> חברים לקפה | R21: =_xlfn.XLOOKUP(L21,$A$48:$A$51,_xlfn.XLOOKUP(I21,$B$47:$D$47,$B$48:$D$51),,-1)*K21 -> 20 | S21: 224
A22: 21 | B22: יפה | C22: קרן | D22: yafeh@gmail.com | E22: 054-1112222 | F22: חולון | G22: 2020-06-27 | H22: Sccuro | I22: קפסולות קפה | J22: 5 | K22: 450 | L22: 13 | M22: 14:30:00 | N22: 15:15:00 | O22: =LEFT(B22,Q1A_1)&MID(C22,Q1A_3,Q1A_1)&Q1A_KRIA&DAY(G22) -> ין!27 | P22: =LEN(I22)&RIGHT(H22,Q1A_2)&HOUR(M22) -> 11ro14 | Q22: =_xlfn.XLOOKUP(K22,'[1]נתוני עזר'!$C$3:$C$6,'[1]נתוני עזר'!$D$3:$D$6,,-1) -> חברים לקפה | R22: =_xlfn.XLOOKUP(L22,$A$48:$A$51,_xlfn.XLOOKUP(I22,$B$47:$D$47,$B$48:$D$51),,-1)*K22 -> 13.5 | S22: 208
A23: 22 | B23: מאיה | C23: אליהו | D23: maya@muni.il | E23: 053-1112233 | F23: באר שבע | G23: 2014-10-18 | H23: Pixie | I23: מכונות קפה | J23: 4 | K23: 500 | L23: 14 | M23: 11:30:00 | N23: 12:15:00 | O23: =LEFT(B23,Q1A_1)&MID(C23,Q1A_3,Q1A_1)&Q1A_KRIA&DAY(G23) -> מי!18 | P23: =LEN(I23)&RIGHT(H23,Q1A_2)&HOUR(M23) -> 10ie11 | Q23: =_xlfn.XLOOKUP(K23,'[1]נתוני עזר'!$C$3:$C$6,'[1]נתוני עזר'!$D$3:$D$6,,-1) -> חברים לקפה | R23: =_xlfn.XLOOKUP(L23,$A$48:$A$51,_xlfn.XLOOKUP(I23,$B$47:$D$47,$B$48:$D$51),,-1)*K23 -> 20 | S23: 224
A24: 23 | B24: מרים | C24: אזולאי | D24: miriam@net.il | E24: 050-6667777 | F24: רמת גן | G24: 2016-05-19 | H24: כוס מאג Festive | I24: אביזרים נלווים | J24: 5 | K24: 1500 | L24: 20 | M24: 11:00:00 | N24: 11:45:00 | O24: =LEFT(B24,Q1A_1)&MID(C24,Q1A_3,Q1A_1)&Q1A_KRIA&DAY(G24) -> מו!19 | P24: =LEN(I24)&RIGHT(H24,Q1A_2)&HOUR(M24) -> 14ve11 | Q24: =_xlfn.XLOOKUP(K24,'[1]נתוני עזר'!$C$3:$C$6,'[1]נתוני עזר'!$D$3:$D$6,,-1) -> כוכבי קפה | R24: =_xlfn.XLOOKUP(L24,$A$48:$A$51,_xlfn.XLOOKUP(I24,$B$47:$D$47,$B$48:$D$51),,-1)*K24 -> 75 | S24: 320
A25: 24 | B25: נועה | C25: חיים | D25: noa@org.il | E25: 054-1239876 | F25: תל אביב | G25: 2015-10-21 | H25: כוסות אספרסו קריסטל | I25: אביזרים נלווים | J25: 6 | K25: 550 | L25: 19 | M25: 14:00:00 | N25: 14:45:00 | O25: =LEFT(B25,Q1A_1)&MID(C25,Q1A_3,Q1A_1)&Q1A_KRIA&DAY(G25) -> ני!21 | P25: =LEN(I25)&RIGHT(H25,Q1A_2)&HOUR(M25) -> 14ל 14 | Q25: =_xlfn.XLOOKUP(K25,'[1]נתוני עזר'!$C$3:$C$6,'[1]נתוני עזר'!$D$3:$D$6,,-1) -> מומחי קפה | R25: =_xlfn.XLOOKUP(L25,$A$48:$A$51,_xlfn.XLOOKUP(I25,$B$47:$D$47,$B$48:$D$51),,-1)*K25 -> 22 | S25: 304
A26: 25 | B26: נועה | C26: יוסף | D26: noa@muni.il | E26: 054-6667777 | F26: תל אביב | G26: 2017-06-12 | H26: CITIS PLATINUM | I26: מכונות קפה | J26: 6 | K26: 350 | L26: 15 | M26: 14:15:00 | N26: 15:00:00 | O26: =LEFT(B26,Q1A_1)&MID(C26,Q1A_3,Q1A_1)&Q1A_KRIA&DAY(G26) -> נס!12 | P26: =LEN(I26)&RIGHT(H26,Q1A_2)&HOUR(M26) -> 10UM14 | Q26: =_xlfn.XLOOKUP(K26,'[1]נתוני עזר'!$C$3:$C$6,'[1]נתוני עזר'!$D$3:$D$6,,-1) -> חברים לקפה | R26: =_xlfn.XLOOKUP(L26,$A$48:$A$51,_xlfn.XLOOKUP(I26,$B$47:$D$47,$B$48:$D$51),,-1)*K26 -> 21 | S26: =IF(AND(I26=$N$55,L26<$P$55),$P$55*L26,IF(AND(F26=$N$58,HOUR(M26)>$P$56),$P$56*L26,$P$57*L26)) -> 240
A27: 26 | B27: נועה | C27: יחיאל | D27: noa@muni.il | E27: 052-9876543 | F27: נתניה | G27: 2018-09-05 | H27: Altission | I27: קפסולות קפה | J27: 6 | K27: 350 | L27: 15 | M27: 09:00:00 | N27: 09:45:00 | O27: =LEFT(B27,Q1A_1)&MID(C27,Q1A_3,Q1A_1)&Q1A_KRIA&DAY(G27) -> ני!5 | P27: =LEN(I27)&RIGHT(H27,Q1A_2)&HOUR(M27) -> 11on9 | Q27: =_xlfn.XLOOKUP(K27,'[1]נתוני עזר'!$C$3:$C$6,'[1]נתוני עזר'!$D$3:$D$6,,-1) -> חברים לקפה | R27: =_xlfn.XLOOKUP(L27,$A$48:$A$51,_xlfn.XLOOKUP(I27,$B$47:$D$47,$B$48:$D$51),,-1)*K27 -> 17.5 | S27: =IF(AND(I27=$N$55,L27<$P$55),$P$55*L27,IF(AND(F27=$N$58,HOUR(M27)>$P$56),$P$56*L27,$P$57*L27)) -> 240
A28: 27 | B28: נועם | C28: שור | D28: noam@gmail.com | E28: 050-1112222 | F28: חולון | G28: 2013-01-07 | H28: Atelierer | I28: מכונות קפה | J28: 6 | K28: 450 | L28: 18 | M28: 09:45:00 | N28: 10:30:00 | O28: =LEFT(B28,Q1A_1)&MID(C28,Q1A_3,Q1A_1)&Q1A_KRIA&DAY(G28) -> נר!7 | P28: =LEN(I28)&RIGHT(H28,Q1A_2)&HOUR(M28) -> 10er9 | Q28: =_xlfn.XLOOKUP(K28,'[1]נתוני עזר'!$C$3:$C$6,'[1]נתוני עזר'!$D$3:$D$6,,-1) -> חברים לקפה | R28: =_xlfn.XLOOKUP(L28,$A$48:$A$51,_xlfn.XLOOKUP(I28,$B$47:$D$47,$B$48:$D$51),,-1)*K28 -> 27 | S28: =IF(AND(I28=$N$55,L28<$P$55),$P$55*L28,IF(AND(F28=$N$58,HOUR(M28)>$P$56),$P$56*L28,$P$57*L28)) -> 288
A29: 28 | B29: נועם | C29: יצחקי | D29: noam@yahoo.com | E29: 050-8889999 | F29: רמת גן | G29: 2019-12-05 | H29: מקציף חלב אירוצ'ינו | I29: אביזרים נלווים | J29: 7 | K29: 450 | L29: 13 | M29: 10:30:00 | N29: 11:15:00 | O29: =LEFT(B29,Q1A_1)&MID(C29,Q1A_3,Q1A_1)&Q1A_KRIA&DAY(G29) -> נח!5 | P29: =LEN(I29)&RIGHT(H29,Q1A_2)&HOUR(M29) -> 14נו10 | Q29: =_xlfn.XLOOKUP(K29,'[1]נתוני עזר'!$C$3:$C$6,'[1]נתוני עזר'!$D$3:$D$6,,-1) -> חברים לקפה | R29: =_xlfn.XLOOKUP(L29,$A$48:$A$51,_xlfn.XLOOKUP(I29,$B$47:$D$47,$B$48:$D$51),,-1)*K29 -> 9 | S29: 208
A30: 29 | B30: ניסן | C30: דויד | D30: nissan@gov.il | E30: 050-3334444 | F30: אשדוד | G30: 2015-01-14 | H30: Intenso | I30: קפסולות קפה | J30: 7 | K30: 350 | L30: 15 | M30: 11:45:00 | N30: 12:30:00 | O30: =LEFT(B30,Q1A_1)&MID(C30,Q1A_3,Q1A_1)&Q1A_KRIA&DAY(G30) -> ני!14 | P30: =LEN(I30)&RIGHT(H30,Q1A_2)&HOUR(M30) -> 11so11 | Q30: =_xlfn.XLOOKUP(K30,'[1]נתוני עזר'!$C$3:$C$6,'[1]נתוני עזר'!$D$3:$D$6,,-1) -> חברים לקפה | R30: =_xlfn.XLOOKUP(L30,$A$48:$A$51,_xlfn.XLOOKUP(I30,$B$47:$D$47,$B$48:$D$51),,-1)*K30 -> 17.5 | S30: 240
A31: 30 | B31: ניר | C31: גולדברג | D31: nir@colman.ac.il | E31: 052-5556666 | F31: פתח תקווה | G31: 2020-03-09 | H31: Citi & Milk | I31: מכונות קפה | J31: 6 | K31: 400 | L31: 12 | M31: 16:00:00 | N31: 16:45:00 | O31: =LEFT(B31,Q1A_1)&MID(C31,Q1A_3,Q1A_1)&Q1A_KRIA&DAY(G31) -> נל!9 | P31: =LEN(I31)&RIGHT(H31,Q1A_2)&HOUR(M31) -> 10lk16 | Q31: =_xlfn.XLOOKUP(K31,'[1]נתוני עזר'!$C$3:$C$6,'[1]נתוני עזר'!$D$3:$D$6,,-1) -> חברים לקפה | R31: =_xlfn.XLOOKUP(L31,$A$48:$A$51,_xlfn.XLOOKUP(I31,$B$47:$D$47,$B$48:$D$51),,-1)*K31 -> 16 | S31: 96
A32: 31 | B32: ניר | C32: סולם | D32: nir@gmail.com | E32: 052-1234567 | F32: חיפה | G32: 2017-11-26 | H32: Vertuo Ne | I32: מכונות קפה | J32: 6 | K32: 400 | L32: 17 | M32: 10:15:00 | N32: 11:00:00 | O32: =LEFT(B32,Q1A_1)&MID(C32,Q1A_3,Q1A_1)&Q1A_KRIA&DAY(G32) -> נל!26 | P32: =LEN(I32)&RIGHT(H32,Q1A_2)&HOUR(M32) -> 10Ne10 | Q32: =_xlfn.XLOOKUP(K32,'[1]נתוני עזר'!$C$3:$C$6,'[1]נתוני עזר'!$D$3:$D$6,,-1) -> חברים לקפה | R32: =_xlfn.XLOOKUP(L32,$A$48:$A$51,_xlfn.XLOOKUP(I32,$B$47:$D$47,$B$48:$D$51),,-1)*K32 -> 24 | S32: 272
A33: 32 | B33: עדי | C33: אברהם | D33: adi@hotmail.com | E33: 054-5556666 | F33: נתניה | G33: 2017-08-14 | H33: Essenza Mini | I33: מכונות קפה | J33: 4 | K33: 650 | L33: 18 | M33: 19:15:00 | N33: 20:00:00 | O33: =LEFT(B33,Q1A_1)&MID(C33,Q1A_3,Q1A_1)&Q1A_KRIA&DAY(G33) -> ער!14 | P33: =LEN(I33)&RIGHT(H33,Q1A_2)&HOUR(M33) -> 10ni19 | Q33: =_xlfn.XLOOKUP(K33,'[1]נתוני עזר'!$C$3:$C$6,'[1]נתוני עזר'!$D$3:$D$6,,-1) -> מומחי קפה | R33: =_xlfn.XLOOKUP(L33,$A$48:$A$51,_xlfn.XLOOKUP(I33,$B$47:$D$47,$B$48:$D$51),,-1)*K33 -> 39 | S33: 288
A34: 33 | B34: עדן | C34: חיים | D34: eden@hotmail.com | E34: 054-1112233 | F34: חיפה | G34: 2013-09-17 | H34: Atelierer | I34: מכונות קפה | J34: 7 | K34: 850 | L34: 19 | M34: 17:30:00 | N34: 18:15:00 | O34: =LEFT(B34,Q1A_1)&MID(C34,Q1A_3,Q1A_1)&Q1A_KRIA&DAY(G34) -> עי!17 | P34: =LEN(I34)&RIGHT(H34,Q1A_2)&HOUR(M34) -> 10er17 | Q34: =_xlfn.XLOOKUP(K34,'[1]נתוני עזר'!$C$3:$C$6,'[1]נתוני עזר'!$D$3:$D$6,,-1) -> כוכבי קפה | R34: =_xlfn.XLOOKUP(L34,$A$48:$A$51,_xlfn.XLOOKUP(I34,$B$47:$D$47,$B$48:$D$51),,-1)*K34 -> 51 | S34: 304
A35: 34 | B35: עירית | C35: גולן | D35: yael@bgu.ac.il | E35: 050-1239876 | F35: פתח תקווה | G35: 2014-08-03 | H35: Kazar | I35: קפסולות קפה | J35: 7 | K35: 900 | L35: 19 | M35: 13:15:00 | N35: 14:00:00 | O35: =LEFT(B35,Q1A_1)&MID(C35,Q1A_3,Q1A_1)&Q1A_KRIA&DAY(G35) -> על!3 | P35: =LEN(I35)&RIGHT(H35,Q1A_2)&HOUR(M35) -> 11ar13 | Q35: =_xlfn.XLOOKUP(K35,'[1]נתוני עזר'!$C$3:$C$6,'[1]נתוני עזר'!$D$3:$D$6,,-1) -> כוכבי קפה | R35: =_xlfn.XLOOKUP(L35,$A$48:$A$51,_xlfn.XLOOKUP(I35,$B$47:$D$47,$B$48:$D$51),,-1)*K35 -> 45 | S35: 152
A36: 35 | B36: קובי | C36: גבע | D36: yam@org.il | E36: 054-3334444 | F36: נתניה | G36: 2018-12-27 | H36: Creatista Pluss | I36: מכונות קפה | J36: 7 | K36: 935 | L36: 19 | M36: 12:00:00 | N36: 12:45:00 | O36: =LEFT(B36,Q1A_1)&MID(C36,Q1A_3,Q1A_1)&Q1A_KRIA&DAY(G36) -> קע!27 | P36: =LEN(I36)&RIGHT(H36,Q1A_2)&HOUR(M36) -> 10ss12 | Q36: =_xlfn.XLOOKUP(K36,'[1]נתוני עזר'!$C$3:$C$6,'[1]נתוני עזר'!$D$3:$D$6,,-1) -> כוכבי קפה | R36: =_xlfn.XLOOKUP(L36,$A$48:$A$51,_xlfn.XLOOKUP(I36,$B$47:$D$47,$B$48:$D$51),,-1)*K36 -> 56.1 | S36: 304
A37: 36 | B37: רבקה | C37: אביב | D37: rivka@org.il | E37: 054-9876543 | F37: אשדוד | G37: 2012-08-10 | H37: Kazar | I37: קפסולות קפה | J37: 7 | K37: 890 | L37: 19 | M37: 12:15:00 | N37: 13:00:00 | O37: =LEFT(B37,Q1A_1)&MID(C37,Q1A_3,Q1A_1)&Q1A_KRIA&DAY(G37) -> רי!10 | P37: =LEN(I37)&RIGHT(H37,Q1A_2)&HOUR(M37) -> 11ar12 | Q37: =_xlfn.XLOOKUP(K37,'[1]נתוני עזר'!$C$3:$C$6,'[1]נתוני עזר'!$D$3:$D$6,,-1) -> כוכבי קפה | R37: =_xlfn.XLOOKUP(L37,$A$48:$A$51,_xlfn.XLOOKUP(I37,$B$47:$D$47,$B$48:$D$51),,-1)*K37 -> 44.5 | S37: =IF(AND(I37=$N$55,L37<$P$55),$P$55*L37,IF(AND(F37=$N$58,HOUR(M37)>$P$56),$P$56*L37,$P$57*L37)) -> 304
A38: 37 | B38: רוני | C38: ברקוביץ' | D38: roni@org.il | E38: 053-6667777 | F38: פתח תקווה | G38: 2021-05-24 | H38: כוסות אספרסו קריסטל | I38: אביזרים נלווים | J38: 5 | K38: 600 | L38: 8 | M38: 17:45:00 | N38: 18:30:00 | O38: =LEFT(B38,Q1A_1)&MID(C38,Q1A_3,Q1A_1)&Q1A_KRIA&DAY(G38) -> רק!24 | P38: =LEN(I38)&RIGHT(H38,Q1A_2)&HOUR(M38) -> 14ל 17 | Q38: =_xlfn.XLOOKUP(K38,'[1]נתוני עזר'!$C$3:$C$6,'[1]נתוני עזר'!$D$3:$D$6,,-1) -> מומחי קפה | R38: =_xlfn.XLOOKUP(L38,$A$48:$A$51,_xlfn.XLOOKUP(I38,$B$47:$D$47,$B$48:$D$51),,-1)*K38 -> 6 | S38: =IF(AND(I38=$N$55,L38<$P$55),$P$55*L38,IF(AND(F38=$N$58,HOUR(M38)>$P$56),$P$56*L38,$P$57*L38)) -> 64
A39: 38 | B39: שיר | C39: אהרונוביץ | D39: shir@yahoo.com | E39: 052-1112233 | F39: חיפה | G39: 2021-02-08 | H39: Odacioo | I39: קפסולות קפה | J39: 3 | K39: 500 | L39: 11 | M39: 10:00:00 | N39: 10:45:00 | O39: =LEFT(B39,Q1A_1)&MID(C39,Q1A_3,Q1A_1)&Q1A_KRIA&DAY(G39) -> שר!8 | P39: =LEN(I39)&RIGHT(H39,Q1A_2)&HOUR(M39) -> 11oo10 | Q39: =_xlfn.XLOOKUP(K39,'[1]נתוני עזר'!$C$3:$C$6,'[1]נתוני עזר'!$D$3:$D$6,,-1) -> חברים לקפה | R39: =_xlfn.XLOOKUP(L39,$A$48:$A$51,_xlfn.XLOOKUP(I39,$B$47:$D$47,$B$48:$D$51),,-1)*K39 -> 10 | S39: =IF(AND(I39=$N$55,L39<$P$55),$P$55*L39,IF(AND(F39=$N$58,HOUR(M39)>$P$56),$P$56*L39,$P$57*L39)) -> 176
A40: 39 | B40: שרה | C40: לוי | D40: sarah@yahoo.com | E40: 052-1239876 | F40: נתניה | G40: 2022-11-20 | H40: Diavol | I40: קפסולות קפה | J40: 3 | K40: 350 | L40: 10 | M40: 14:45:00 | N40: 15:30:00 | O40: =LEFT(B40,Q1A_1)&MID(C40,Q1A_3,Q1A_1)&Q1A_KRIA&DAY(G40) -> שי!20 | P40: =LEN(I40)&RIGHT(H40,Q1A_2)&HOUR(M40) -> 11ol14 | Q40: =_xlfn.XLOOKUP(K40,'[1]נתוני עזר'!$C$3:$C$6,'[1]נתוני עזר'!$D$3:$D$6,,-1) -> חברים לקפה | R40: =_xlfn.XLOOKUP(L40,$A$48:$A$51,_xlfn.XLOOKUP(I40,$B$47:$D$47,$B$48:$D$51),,-1)*K40 -> 7 | S40: 160
A41: 40 | B41: תמר | C41: כהן | D41: tamar@gmail.com | E41: 052-3334444 | F41: חיפה | G41: 2019-09-22 | H41: Stormion | I41: קפסולות קפה | J41: 1 | K41: 500 | L41: 7 | M41: 19:45:00 | N41: 20:30:00 | O41: =LEFT(B41,Q1A_1)&MID(C41,Q1A_3,Q1A_1)&Q1A_KRIA&DAY(G41) -> תן!22 | P41: =LEN(I41)&RIGHT(H41,Q1A_2)&HOUR(M41) -> 11on19 | Q41: =_xlfn.XLOOKUP(K41,'[1]נתוני עזר'!$C$3:$C$6,'[1]נתוני עזר'!$D$3:$D$6,,-1) -> חברים לקפה | R41: =_xlfn.XLOOKUP(L41,$A$48:$A$51,_xlfn.XLOOKUP(I41,$B$47:$D$47,$B$48:$D$51),,-1)*K41 -> 10 | S41: 112
A42: 41 | B42: תמר | C42: זריף | D42: tamar@org.il | E42: 053-8889999 | F42: פתח תקווה | G42: 2018-02-13 | H42: זוג ספלי קפוצ'ינו | I42: אביזרים נלווים | J42: 7 | K42: 700 | L42: 14 | M42: 19:30:00 | N42: 20:15:00 | O42: =LEFT(B42,Q1A_1)&MID(C42,Q1A_3,Q1A_1)&Q1A_KRIA&DAY(G42) -> תי!13 | P42: =LEN(I42)&RIGHT(H42,Q1A_2)&HOUR(M42) -> 14ו 19 | Q42: =_xlfn.XLOOKUP(K42,'[1]נתוני עזר'!$C$3:$C$6,'[1]נתוני עזר'!$D$3:$D$6,,-1) -> מומחי קפה | R42: =_xlfn.XLOOKUP(L42,$A$48:$A$51,_xlfn.XLOOKUP(I42,$B$47:$D$47,$B$48:$D$51),,-1)*K42 -> 14 | S42: 112
S44: =AVERAGE(S2:S42) -> 223.804878 | T44: עלות משלוח ממוצעת לכלל הלקוחות
A45: נתונים עבור שאלה 2 סעיף ב':
A46: הנחה לחברי מועדון הלקוחות
A47: סיווג מוצר ממוצע מספר המוצרים בהזמנה | B47: אביזרים נלווים | C47: קפסולות קפה | D47: מכונות קפה | R47: =_xleta.SUM -> 
A48: 7 | B48: 0.01 | C48: 0.02 | D48: 0.03
A49: 12 | B49: 0.02 | C49: 0.03 | D49: 0.04
A50: 15 | B50: 0.04 | C50: 0.05 | D50: 0.06
A51: 20 | B51: 0.05 | C51: 0.06 | D51: 0.07
N54: שאלה 4 סעיף א:
N55: קפסולות קפה | P55: 7
B56: סיווג מוצר | D56: רמת שביעות רצון | N56: 8 | O56: 8 | P56: 8
B57: קפסולות קפה | D57: 7 | O57: 3 | P57: =P56+$O$56 -> 16
N58: פתח תקווה | P58: =P57+$O$57 -> 19
N59: =N56+$O$56 -> 16
N61: =N59+$O$57 -> 19
L64: חוק: בכל פעם שידברו על משתמש ועל לחצן חובה לעבוד עם מאקרו
L66: חוק
L67: בכל פעם שיאמרו "ערך ראשוני או ההתחלתי" וגם "מרווחים" או "קפיצות" אנו בניתוח רגישות.
A68: =_xlfn.XLOOKUP(23,$A$2:$A$42,$Q$2:$Q$42) -> כוכבי קפה | L68: זיהינו משתנה יחיד שערכיו משתנים ולכן מדובר על ניתוח רגישות מסדר ראשון
G69: שאלה 3 סעיף ב
A70: =SUMIF(Q2:Q42,_xlfn.XLOOKUP(23,$A$2:$A$42,$Q$2:$Q$42),R2:R42) -> 431.6 | B70: שאלה 3 א
G71: סכום ההנחות של כולם | I71: =SUM(R2:R42) -> 1068.3 | M71: ערך ראשוני | N71: 0.4
H72: =N71 -> 0.4 | I72: 1778.9
H73: =H72+$N$73 -> 0.45 | I73: 1872.4 | M73: מרווחים | N73: 0.05
H74: =H73+$N$73 -> 0.5 | I74: 1965.9
H75: 0.55 | I75: 2059.4
H76: 0.6 | I76: 2152.9
H77: 0.65 | I77: 2246.4
H78: 0.7 | I78: 2339.9
H79: 0.75 | I79: 2433.4
H80: 0.8 | I80: 2526.9
H81: 0.85 | I81: 2620.4

Sheet רגישות סדר 1 DMIN
A1: שם פרטי לקוח | B1: שם משפחה לקוח | C1: כתובת דוא"ל | D1: תאריך הרכישה | E1: שעת הרכישה | F1: דגם הרכב | G1: סיווג הרכב | H1: שם הסוכנות | I1: מיקום הסוכנות | J1: תאריך עליית הרכב לכביש | K1: מחיר יבואן | L1: מספר ק"מ | M1: שם משתמש | N1: סיסמה | O1: מחיר רכישה
A2: יוסי | B2: שמעון | C2: ELVLSUAM@colman.ac.il | D2: 2022-08-02 | E2: 17:10:35 | F2: Mazda_6 | G2: פרטי | H2: רכבי דניאלס | I2: יהוד | J2: 2010-06-29 | K2: 132100 | L2: 53490 | M2: =MID(B2,'[3]נתוני עזר'!$A$10,'[3]נתוני עזר'!$A$11)&'[3]נתוני עזר'!$A$12&TEXT(D2,"MMM") -> מע#אוג | N2: =LEN(C2)&LEFT(F2,'[3]נתוני עזר'!$A$15)&HOUR(E2) -> 21Maz17 | O2: =_xlfn.XLOOKUP(LEFT(F2,SEARCH('[3]נתוני עזר'!$A$24,'[4]ניתוח רגישות'!F2)-'[3]נתוני עזר'!$A$25),$U$4:$U$8,$T$4:$T$8,$U$10)*K2+_xlfn.XLOOKUP(G2,$U$14:$U$17,$T$14:$T$17)/MINUTE(E2) -> 92570 | T2: טבלה מס' 1
A3: נטע | B3: פוקס | C3: KEZZLDMD@colman.ac.il | D3: 2022-05-03 | E3: 19:16:55 | F3: Mazda_6 | G3: פרטי | H3: גלגלי הזהב | I3: חולון | J3: 2011-03-29 | K3: 132100 | L3: 25829 | M3: =MID(B3,'[3]נתוני עזר'!$A$10,'[3]נתוני עזר'!$A$11)&'[3]נתוני עזר'!$A$12&TEXT(D3,"MMM") -> וק#מאי | N3: =LEN(C3)&LEFT(F3,'[3]נתוני עזר'!$A$15)&HOUR(E3) -> 21Maz19 | O3: =_xlfn.XLOOKUP(LEFT(F3,SEARCH('[3]נתוני עזר'!$A$24,'[4]ניתוח רגישות'!F3)-'[3]נתוני עזר'!$A$25),$U$4:$U$8,$T$4:$T$8,$U$10)*K3+_xlfn.XLOOKUP(G3,$U$14:$U$17,$T$14:$T$17)/MINUTE(E3) -> 92532.5 | T3: אחוז ממחיר יבואן | U3: סוג רכב
A4: אורי | B4: גוזמן | C4: BEXLDPPA11@ynet.co.il | D4: 2022-02-19 | E4: 17:20:28.333 | F4: Citroen_C3 | G4: פרטי | H4: רכב דיל מאיר | I4: חיפה | J4: 2011-01-15 | K4: 125000 | L4: 65509 | M4: =MID(B4,'[3]נתוני עזר'!$A$10,'[3]נתוני עזר'!$A$11)&'[3]נתוני עזר'!$A$12&TEXT(D4,"MMM") -> וז#פבר | N4: =LEN(C4)&LEFT(F4,'[3]נתוני עזר'!$A$15)&HOUR(E4) -> 21Cit17 | O4: =_xlfn.XLOOKUP(LEFT(F4,SEARCH('[3]נתוני עזר'!$A$24,'[4]ניתוח רגישות'!F4)-'[3]נתוני עזר'!$A$25),$U$4:$U$8,$T$4:$T$8,$U$10)*K4+_xlfn.XLOOKUP(G4,$U$14:$U$17,$T$14:$T$17)/MINUTE(E4) -> 68800 | T4: 0.6 | U4: Nissan
A5: אורן | B5: ברבור | C5: COZ66@walla.co.il | D5: 2022-06-28 | E5: 17:09:30.994 | F5: Honda_Civic | G5: פרטי | H5: גלגלי הזהב | I5: חולון | J5: 2009-05-24 | K5: 119200 | L5: 31704 | M5: =MID(B5,'[3]נתוני עזר'!$A$10,'[3]נתוני עזר'!$A$11)&'[3]נתוני עזר'!$A$12&TEXT(D5,"MMM") -> רב#יונ | N5: =LEN(C5)&LEFT(F5,'[3]נתוני עזר'!$A$15)&HOUR(E5) -> 17Hon17 | O5: =_xlfn.XLOOKUP(LEFT(F5,SEARCH('[3]נתוני עזר'!$A$24,'[4]ניתוח רגישות'!F5)-'[3]נתוני עזר'!$A$25),$U$4:$U$8,$T$4:$T$8,$U$10)*K5+_xlfn.XLOOKUP(G5,$U$14:$U$17,$T$14:$T$17)/MINUTE(E5) -> 53751.11111 | T5: 0.7 | U5: Mazda
A6: אבי | B6: ברלב | C6: SVET6@walla.co.il | D6: 2022-11-08 | E6: 19:35:47.084 | F6: Citroen_C5 | G6: פרטי | H6: גלגלי הזהב | I6: חולון | J6: 2010-10-04 | K6: 114500 | L6: 28286 | M6: =MID(B6,'[3]נתוני עזר'!$A$10,'[3]נתוני עזר'!$A$11)&'[3]נתוני עזר'!$A$12&TEXT(D6,"MMM") -> רל#נוב | N6: =LEN(C6)&LEFT(F6,'[3]נתוני עזר'!$A$15)&HOUR(E6) -> 17Cit19 | O6: =_xlfn.XLOOKUP(LEFT(F6,SEARCH('[3]נתוני עזר'!$A$24,'[4]ניתוח רגישות'!F6)-'[3]נתוני עזר'!$A$25),$U$4:$U$8,$T$4:$T$8,$U$10)*K6+_xlfn.XLOOKUP(G6,$U$14:$U$17,$T$14:$T$17)/MINUTE(E6) -> 63003.57143 | T6: 0.8 | U6: BMW
A7: נוי | B7: סליקטר | C7: VWQXYKIY@colman.ac.il | D7: 2022-05-07 | E7: 18:16:10 | F7: Mazda_3 | G7: פרטי | H7: סוכנות המוביל | I7: תל אביב | J7: 2011-04-03 | K7: 99200 | L7: 99037 | M7: =MID(B7,'[3]נתוני עזר'!$A$10,'[3]נתוני עזר'!$A$11)&'[3]נתוני עזר'!$A$12&TEXT(D7,"MMM") -> לי#מאי | N7: =LEN(C7)&LEFT(F7,'[3]נתוני עזר'!$A$15)&HOUR(E7) -> 21Maz18 | O7: =_xlfn.XLOOKUP(LEFT(F7,SEARCH('[3]נתוני עזר'!$A$24,'[4]ניתוח רגישות'!F7)-'[3]נתוני עזר'!$A$25),$U$4:$U$8,$T$4:$T$8,$U$10)*K7+_xlfn.XLOOKUP(G7,$U$14:$U$17,$T$14:$T$17)/MINUTE(E7) -> 69502.5 | T7: 0.75 | U7: Audi
A8: אמיר | B8: שרון | C8: AUTBPAME@ynet.co.il | D8: 2022-09-15 | E8: 16:07:25 | F8: BMW_Z4 | G8: פרטי | H8: סוכנות המוביל | I8: תל אביב | J8: 2011-08-11 | K8: 185200 | L8: 23650 | M8: =MID(B8,'[3]נתוני עזר'!$A$10,'[3]נתוני עזר'!$A$11)&'[3]נתוני עזר'!$A$12&TEXT(D8,"MMM") -> רו#ספט | N8: =LEN(C8)&LEFT(F8,'[3]נתוני עזר'!$A$15)&HOUR(E8) -> 19BMW16 | O8: =_xlfn.XLOOKUP(LEFT(F8,SEARCH('[3]נתוני עזר'!$A$24,'[4]ניתוח רגישות'!F8)-'[3]נתוני עזר'!$A$25),$U$4:$U$8,$T$4:$T$8,$U$10)*K8+_xlfn.XLOOKUP(G8,$U$14:$U$17,$T$14:$T$17)/MINUTE(E8) -> 148302.8571 | T8: 0.55 | U8: Citroen
A9: אאוגן | B9: ליבוביץ | C9: YIDOJL@colman.ac.il | D9: 2022-07-29 | E9: 13:51:02 | F9: renault_kangoo | G9: מסחרי | H9: רכבי דניאלס | I9: יהוד | J9: 2011-06-25 | K9: 148000 | L9: 56507 | M9: =MID(B9,'[3]נתוני עזר'!$A$10,'[3]נתוני עזר'!$A$11)&'[3]נתוני עזר'!$A$12&TEXT(D9,"MMM") -> יב#יול | N9: =LEN(C9)&LEFT(F9,'[3]נתוני עזר'!$A$15)&HOUR(E9) -> 19ren13 | O9: =_xlfn.XLOOKUP(LEFT(F9,SEARCH('[3]נתוני עזר'!$A$24,'[4]ניתוח רגישות'!F9)-'[3]נתוני עזר'!$A$25),$U$4:$U$8,$T$4:$T$8,$U$10)*K9+_xlfn.XLOOKUP(G9,$U$14:$U$17,$T$14:$T$17)/MINUTE(E9) -> 66623.52941
A10: מיכל | B10: בן עמי | C10: KE78OMD@colman.ac.il | D10: 2022-10-31 | E10: 13:33:55 | F10: toyota_hilux | G10: מסחרי | H10: סוכנות המוביל | I10: תל אביב | J10: 2010-09-27 | K10: 135200 | L10: 76935 | M10: =MID(B10,'[3]נתוני עזר'!$A$10,'[3]נתוני עזר'!$A$11)&'[3]נתוני עזר'!$A$12&TEXT(D10,"MMM") -> ן #אוק | N10: =LEN(C10)&LEFT(F10,'[3]נתוני עזר'!$A$15)&HOUR(E10) -> 20toy13 | O10: =_xlfn.XLOOKUP(LEFT(F10,SEARCH('[3]נתוני עזר'!$A$24,'[4]ניתוח רגישות'!F10)-'[3]נתוני עזר'!$A$25),$U$4:$U$8,$T$4:$T$8,$U$10)*K10+_xlfn.XLOOKUP(G10,$U$14:$U$17,$T$14:$T$17)/MINUTE(E10) -> 60876.36364 | Q10: =SUM(O2:O37) -> 2458551.666 | U10: 0.45
A11: מושיקו | B11: דגנוש | C11: BDZJHBUB@colman.ac.il | D11: 2022-06-19 | E11: 16:20:30.696 | F11: Audi_A4 | G11: פרטי | H11: רכב דיל מאיר | I11: חיפה | J11: 2008-05-15 | K11: 133200 | L11: 43076 | M11: =MID(B11,'[3]נתוני עזר'!$A$10,'[3]נתוני עזר'!$A$11)&'[3]נתוני עזר'!$A$12&TEXT(D11,"MMM") -> גנ#יונ | N11: =LEN(C11)&LEFT(F11,'[3]נתוני עזר'!$A$15)&HOUR(E11) -> 21Aud16 | O11: =_xlfn.XLOOKUP(LEFT(F11,SEARCH('[3]נתוני עזר'!$A$24,'[4]ניתוח רגישות'!F11)-'[3]נתוני עזר'!$A$25),$U$4:$U$8,$T$4:$T$8,$U$10)*K11+_xlfn.XLOOKUP(G11,$U$14:$U$17,$T$14:$T$17)/MINUTE(E11) -> 99950
A12: אבי | B12: היינריך | C12: FF22WT@ynet.co.il | D12: 2022-06-03 | E12: 15:46:52 | F12: Nissan_Juke | G12: גיפ | H12: רכב דיל מאיר | I12: חיפה | J12: 2008-04-30 | K12: 133200 | L12: 13221 | M12: =MID(B12,'[3]נתוני עזר'!$A$10,'[3]נתוני עזר'!$A$11)&'[3]נתוני עזר'!$A$12&TEXT(D12,"MMM") -> יי#יונ | N12: =LEN(C12)&LEFT(F12,'[3]נתוני עזר'!$A$15)&HOUR(E12) -> 17Nis15 | O12: =_xlfn.XLOOKUP(LEFT(F12,SEARCH('[3]נתוני עזר'!$A$24,'[4]ניתוח רגישות'!F12)-'[3]נתוני עזר'!$A$25),$U$4:$U$8,$T$4:$T$8,$U$10)*K12+_xlfn.XLOOKUP(G12,$U$14:$U$17,$T$14:$T$17)/MINUTE(E12) -> 79950.43478 | T12: טבלה מס' 2
A13: עמית | B13: כהן | C13: EAUDGT@colman.ac.il | D13: 2022-09-14 | E13: 11:51:37.007 | F13: Honda_Accord | G13: פרטי | H13: סוכנות המוביל | I13: תל אביב | J13: 2011-08-10 | K13: 125900 | L13: 40682 | M13: =MID(B13,'[3]נתוני עזר'!$A$10,'[3]נתוני עזר'!$A$11)&'[3]נתוני עזר'!$A$12&TEXT(D13,"MMM") -> הן#ספט | N13: =LEN(C13)&LEFT(F13,'[3]נתוני עזר'!$A$15)&HOUR(E13) -> 19Hon11 | O13: =_xlfn.XLOOKUP(LEFT(F13,SEARCH('[3]נתוני עזר'!$A$24,'[4]ניתוח רגישות'!F13)-'[3]נתוני עזר'!$A$25),$U$4:$U$8,$T$4:$T$8,$U$10)*K13+_xlfn.XLOOKUP(G13,$U$14:$U$17,$T$14:$T$17)/MINUTE(E13) -> 56674.60784 | T13: תוספת סיווג | U13: סווג הרכב
A14: אריק | B14: לוין | C14: FFNGQQWT@ynet.co.il | D14: 2023-01-10 | E14: 14:09:00.555 | F14: Audi_A4 | G14: פרטי | H14: רכב דיל | I14: בני ברק | J14: 2008-12-06 | K14: 125300 | L14: 23927 | M14: =MID(B14,'[3]נתוני עזר'!$A$10,'[3]נתוני עזר'!$A$11)&'[3]נתוני עזר'!$A$12&TEXT(D14,"MMM") -> וי#ינו | N14: =LEN(C14)&LEFT(F14,'[3]נתוני עזר'!$A$15)&HOUR(E14) -> 19Aud14 | O14: =_xlfn.XLOOKUP(LEFT(F14,SEARCH('[3]נתוני עזר'!$A$24,'[4]ניתוח רגישות'!F14)-'[3]נתוני עזר'!$A$25),$U$4:$U$8,$T$4:$T$8,$U$10)*K14+_xlfn.XLOOKUP(G14,$U$14:$U$17,$T$14:$T$17)/MINUTE(E14) -> 94086.11111 | T14: 1000 | U14: פרטי
A15: מור | B15: גולדברג | C15: JXI45LUBY@colman.ac.il | D15: 2022-03-28 | E15: 14:01:39 | F15: Nissan_Micra | G15: פרטי | H15: גלגלי הזהב | I15: חולון | J15: 2008-02-24 | K15: 117200 | L15: 28169 | M15: =MID(B15,'[3]נתוני עזר'!$A$10,'[3]נתוני עזר'!$A$11)&'[3]נתוני עזר'!$A$12&TEXT(D15,"MMM") -> ול#מרץ | N15: =LEN(C15)&LEFT(F15,'[3]נתוני עזר'!$A$15)&HOUR(E15) -> 22Nis14 | O15: =_xlfn.XLOOKUP(LEFT(F15,SEARCH('[3]נתוני עזר'!$A$24,'[4]ניתוח רגישות'!F15)-'[3]נתוני עזר'!$A$25),$U$4:$U$8,$T$4:$T$8,$U$10)*K15+_xlfn.XLOOKUP(G15,$U$14:$U$17,$T$14:$T$17)/MINUTE(E15) -> 71320 | T15: 1200 | U15: מסחרי
A16: ענבר | B16: יפת | C16: KIEAUDGT@colman.ac.il | D16: 2022-09-10 | E16: 14:32:09 | F16: Nissan_Pathfinder | G16: מסחרי | H16: גלגלי הזהב | I16: חולון | J16: 2011-08-06 | K16: 114500 | L16: 22743 | M16: =MID(B16,'[3]נתוני עזר'!$A$10,'[3]נתוני עזר'!$A$11)&'[3]נתוני עזר'!$A$12&TEXT(D16,"MMM") -> פת#ספט | N16: =LEN(C16)&LEFT(F16,'[3]נתוני עזר'!$A$15)&HOUR(E16) -> 21Nis14 | O16: =_xlfn.XLOOKUP(LEFT(F16,SEARCH('[3]נתוני עזר'!$A$24,'[4]ניתוח רגישות'!F16)-'[3]נתוני עזר'!$A$25),$U$4:$U$8,$T$4:$T$8,$U$10)*K16+_xlfn.XLOOKUP(G16,$U$14:$U$17,$T$14:$T$17)/MINUTE(E16) -> 68737.5 | T16: 1400 | U16: גיפ
A17: עדי | B17: גירו | C17: EXOOYULR@colman.ac.il | D17: 2023-01-26 | E17: 14:23:21.892 | F17: Audi_A6 | G17: מנהלים | H17: רכבי דניאלס | I17: יהוד | J17: 2010-12-22 | K17: 114500 | L17: 10716 | M17: =MID(B17,'[3]נתוני עזר'!$A$10,'[3]נתוני עזר'!$A$11)&'[3]נתוני עזר'!$A$12&TEXT(D17,"MMM") -> יר#ינו | N17: =LEN(C17)&LEFT(F17,'[3]נתוני עזר'!$A$15)&HOUR(E17) -> 21Aud14 | O17: =_xlfn.XLOOKUP(LEFT(F17,SEARCH('[3]נתוני עזר'!$A$24,'[4]ניתוח רגישות'!F17)-'[3]נתוני עזר'!$A$25),$U$4:$U$8,$T$4:$T$8,$U$10)*K17+_xlfn.XLOOKUP(G17,$U$14:$U$17,$T$14:$T$17)/MINUTE(E17) -> 85944.56522 | T17: 1600 | U17: מנהלים
A18: אלכס | B18: עמרמי ויצמן | C18: FAOL5@walla.co.il | D18: 2022-07-13 | E18: 13:55:29 | F18: Honda_Civic | G18: פרטי | H18: רכב דיל | I18: בני ברק | J18: 2008-06-09 | K18: 114500 | L18: 40383 | M18: =MID(B18,'[3]נתוני עזר'!$A$10,'[3]נתוני עזר'!$A$11)&'[3]נתוני עזר'!$A$12&TEXT(D18,"MMM") -> מר#יול | N18: =LEN(C18)&LEFT(F18,'[3]נתוני עזר'!$A$15)&HOUR(E18) -> 17Hon13 | O18: =_xlfn.XLOOKUP(LEFT(F18,SEARCH('[3]נתוני עזר'!$A$24,'[4]ניתוח רגישות'!F18)-'[3]נתוני עזר'!$A$25),$U$4:$U$8,$T$4:$T$8,$U$10)*K18+_xlfn.XLOOKUP(G18,$U$14:$U$17,$T$14:$T$17)/MINUTE(E18) -> 51543.18182
A19: אבי | B19: אור אורטרגר | C19: CTA86@walla.co.il | D19: 2022-10-26 | E19: 15:48:53 | F19: Subaru_B4 | G19: פרטי | H19: רכב דיל | I19: בני ברק | J19: 2010-09-22 | K19: 112500 | L19: 20389 | M19: =MID(B19,'[3]נתוני עזר'!$A$10,'[3]נתוני עזר'!$A$11)&'[3]נתוני עזר'!$A$12&TEXT(D19,"MMM") -> ור#אוק | N19: =LEN(C19)&LEFT(F19,'[3]נתוני עזר'!$A$15)&HOUR(E19) -> 17Sub15 | O19: =_xlfn.XLOOKUP(LEFT(F19,SEARCH('[3]נתוני עזר'!$A$24,'[4]ניתוח רגישות'!F19)-'[3]נתוני עזר'!$A$25),$U$4:$U$8,$T$4:$T$8,$U$10)*K19+_xlfn.XLOOKUP(G19,$U$14:$U$17,$T$14:$T$17)/MINUTE(E19) -> 50645.83333
A20: רם | B20: אברמוביץ | C20: XPDDXH@colman.ac.il | D20: 2022-04-19 | E20: 16:37:49.888 | F20: toyota_hilux | G20: מסחרי | H20: רכב דיל מאיר | I20: חיפה | J20: 2010-03-15 | K20: 112000 | L20: 38679 | M20: =MID(B20,'[3]נתוני עזר'!$A$10,'[3]נתוני עזר'!$A$11)&'[3]נתוני עזר'!$A$12&TEXT(D20,"MMM") -> בר#אפר | N20: =LEN(C20)&LEFT(F20,'[3]נתוני עזר'!$A$15)&HOUR(E20) -> 19toy16 | O20: =_xlfn.XLOOKUP(LEFT(F20,SEARCH('[3]נתוני עזר'!$A$24,'[4]ניתוח רגישות'!F20)-'[3]נתוני עזר'!$A$25),$U$4:$U$8,$T$4:$T$8,$U$10)*K20+_xlfn.XLOOKUP(G20,$U$14:$U$17,$T$14:$T$17)/MINUTE(E20) -> 50432.43243
A21: עומר | B21: יגאנה | C21: WTUUETX@ynet.co.il | D21: 2022-10-15 | E21: 13:38:56.356 | F21: Audi_A3 | G21: פרטי | H21: רכבי דניאלס | I21: יהוד | J21: 2009-09-11 | K21: 110410 | L21: 26284 | M21: =MID(B21,'[3]נתוני עזר'!$A$10,'[3]נתוני עזר'!$A$11)&'[3]נתוני עזר'!$A$12&TEXT(D21,"MMM") -> גא#אוק | N21: =LEN(C21)&LEFT(F21,'[3]נתוני עזר'!$A$15)&HOUR(E21) -> 18Aud13 | O21: =_xlfn.XLOOKUP(LEFT(F21,SEARCH('[3]נתוני עזר'!$A$24,'[4]ניתוח רגישות'!F21)-'[3]נתוני עזר'!$A$25),$U$4:$U$8,$T$4:$T$8,$U$10)*K21+_xlfn.XLOOKUP(G21,$U$14:$U$17,$T$14:$T$17)/MINUTE(E21) -> 82833.81579
A22: אסי | B22: וידר | C22: JXIELUBY@colman.ac.il | D22: 2022-05-15 | E22: 09:24:14.616 | F22: fiat_ducato | G22: מסחרי | H22: רכב דיל | I22: בני ברק | J22: 2008-04-11 | K22: 106000 | L22: 6474 | M22: =MID(B22,'[3]נתוני עזר'!$A$10,'[3]נתוני עזר'!$A$11)&'[3]נתוני עזר'!$A$12&TEXT(D22,"MMM") -> יד#מאי | N22: =LEN(C22)&LEFT(F22,'[3]נתוני עזר'!$A$15)&HOUR(E22) -> 21fia9 | O22: =_xlfn.XLOOKUP(LEFT(F22,SEARCH('[3]נתוני עזר'!$A$24,'[4]ניתוח רגישות'!F22)-'[3]נתוני עזר'!$A$25),$U$4:$U$8,$T$4:$T$8,$U$10)*K22+_xlfn.XLOOKUP(G22,$U$14:$U$17,$T$14:$T$17)/MINUTE(E22) -> 47750
A23: אאוריקה | B23: גורכוב | C23: MYGLDVTD@colman.ac.il | D23: 2022-06-21 | E23: 10:58:13.226 | F23: Nissan_Navare | G23: מסחרי | H23: סוכנות המוביל | I23: תל אביב | J23: 2011-05-17 | K23: 103000 | L23: 57178 | M23: =MID(B23,'[3]נתוני עזר'!$A$10,'[3]נתוני עזר'!$A$11)&'[3]נתוני עזר'!$A$12&TEXT(D23,"MMM") -> ור#יונ | N23: =LEN(C23)&LEFT(F23,'[3]נתוני עזר'!$A$15)&HOUR(E23) -> 21Nis10 | O23: =_xlfn.XLOOKUP(LEFT(F23,SEARCH('[3]נתוני עזר'!$A$24,'[4]ניתוח רגישות'!F23)-'[3]נתוני עזר'!$A$25),$U$4:$U$8,$T$4:$T$8,$U$10)*K23+_xlfn.XLOOKUP(G23,$U$14:$U$17,$T$14:$T$17)/MINUTE(E23) -> 61820.68966 | T23: DSUM
A24: אאוג'ן | B24: מנוליאו | C24: NYIAVES@colman.ac.il | D24: 2022-07-08 | E24: 16:17:18 | F24: BMW_325 | G24: פרטי | H24: סוכנות המוביל | I24: תל אביב | J24: 2011-06-04 | K24: 99600 | L24: 18823 | M24: =MID(B24,'[3]נתוני עזר'!$A$10,'[3]נתוני עזר'!$A$11)&'[3]נתוני עזר'!$A$12&TEXT(D24,"MMM") -> נו#יול | N24: =LEN(C24)&LEFT(F24,'[3]נתוני עזר'!$A$15)&HOUR(E24) -> 20BMW16 | O24: =_xlfn.XLOOKUP(LEFT(F24,SEARCH('[3]נתוני עזר'!$A$24,'[4]ניתוח רגישות'!F24)-'[3]נתוני עזר'!$A$25),$U$4:$U$8,$T$4:$T$8,$U$10)*K24+_xlfn.XLOOKUP(G24,$U$14:$U$17,$T$14:$T$17)/MINUTE(E24) -> 79738.82353 | U24: טבלת קריטריונים
A25: שירי | B25: מנור | C25: GIMI89FG@walla.co.il | D25: 2022-10-13 | E25: 14:29:31.541 | F25: Mazda_3 | G25: פרטי | H25: סוכנות המוביל | I25: תל אביב | J25: 2011-09-09 | K25: 92200 | L25: 63326 | M25: =MID(B25,'[3]נתוני עזר'!$A$10,'[3]נתוני עזר'!$A$11)&'[3]נתוני עזר'!$A$12&TEXT(D25,"MMM") -> נו#אוק | N25: =LEN(C25)&LEFT(F25,'[3]נתוני עזר'!$A$15)&HOUR(E25) -> 20Maz14 | O25: =_xlfn.XLOOKUP(LEFT(F25,SEARCH('[3]נתוני עזר'!$A$24,'[4]ניתוח רגישות'!F25)-'[3]נתוני עזר'!$A$25),$U$4:$U$8,$T$4:$T$8,$U$10)*K25+_xlfn.XLOOKUP(G25,$U$14:$U$17,$T$14:$T$17)/MINUTE(E25) -> 64574.48276 | Q25: אפשר לפתור עם minifs במקום dmin
A26: טלי | B26: רונן | C26: FADIKOL55@walla.co.il | D26: 2022-07-20 | E26: 12:51:18 | F26: Mazda_3 | G26: פרטי | H26: רכבי דניאלס | I26: יהוד | J26: 2009-06-16 | K26: 90890 | L26: 48294 | M26: =MID(B26,'[3]נתוני עזר'!$A$10,'[3]נתוני עזר'!$A$11)&'[3]נתוני עזר'!$A$12&TEXT(D26,"MMM") -> ונ#יול | N26: =LEN(C26)&LEFT(F26,'[3]נתוני עזר'!$A$15)&HOUR(E26) -> 21Maz12 | O26: =_xlfn.XLOOKUP(LEFT(F26,SEARCH('[3]נתוני עזר'!$A$24,'[4]ניתוח רגישות'!F26)-'[3]נתוני עזר'!$A$25),$U$4:$U$8,$T$4:$T$8,$U$10)*K26+_xlfn.XLOOKUP(G26,$U$14:$U$17,$T$14:$T$17)/MINUTE(E26) -> 63642.60784 | Y26: תא עזר לערך ראשוני ולמרווחים
A27: שרה | B27: שוורץ | C27: RVPNJHQO33@ynet.co.il | D27: 2022-10-30 | E27: 12:56:34.880 | F27: Mazda_6 | G27: פרטי | H27: רכב דיל | I27: בני ברק | J27: 2010-09-26 | K27: 90890 | L27: 8931 | M27: =MID(B27,'[3]נתוני עזר'!$A$10,'[3]נתוני עזר'!$A$11)&'[3]נתוני עזר'!$A$12&TEXT(D27,"MMM") -> וו#אוק | N27: =LEN(C27)&LEFT(F27,'[3]נתוני עזר'!$A$15)&HOUR(E27) -> 21Maz12 | O27: =_xlfn.XLOOKUP(LEFT(F27,SEARCH('[3]נתוני עזר'!$A$24,'[4]ניתוח רגישות'!F27)-'[3]נתוני עזר'!$A$25),$U$4:$U$8,$T$4:$T$8,$U$10)*K27+_xlfn.XLOOKUP(G27,$U$14:$U$17,$T$14:$T$17)/MINUTE(E27) -> 63640.85714 | T27: מחיר יבואן | U27: מחיר יבואן | V27: מספר ק"מ | W27: מספר ק"מ | Z27: 0.5
A28: יאנה | B28: גלון | C28: RAV8O@walla.co.il | D28: 2022-09-27 | E28: 09:29:23 | F28: Audi_A6 | G28: מנהלים | H28: גלגלי הזהב | I28: חולון | J28: 2008-08-23 | K28: 90890 | L28: 50833 | M28: =MID(B28,'[3]נתוני עזר'!$A$10,'[3]נתוני עזר'!$A$11)&'[3]נתוני עזר'!$A$12&TEXT(D28,"MMM") -> לו#ספט | N28: =LEN(C28)&LEFT(F28,'[3]נתוני עזר'!$A$15)&HOUR(E28) -> 17Aud9 | O28: =_xlfn.XLOOKUP(LEFT(F28,SEARCH('[3]נתוני עזר'!$A$24,'[4]ניתוח רגישות'!F28)-'[3]נתוני עזר'!$A$25),$U$4:$U$8,$T$4:$T$8,$U$10)*K28+_xlfn.XLOOKUP(G28,$U$14:$U$17,$T$14:$T$17)/MINUTE(E28) -> 68222.67241 | T28: <=200000 | U28: >=100000
A29: תומר | B29: בוקאי | C29: RAV7U8O@walla.co.il | D29: 2022-11-26 | E29: 10:05:24 | F29: renault_kangoo | G29: מסחרי | H29: סוכנות המוביל | I29: תל אביב | J29: 2009-10-22 | K29: 90100 | L29: 74516 | M29: =MID(B29,'[3]נתוני עזר'!$A$10,'[3]נתוני עזר'!$A$11)&'[3]נתוני עזר'!$A$12&TEXT(D29,"MMM") -> וק#נוב | N29: =LEN(C29)&LEFT(F29,'[3]נתוני עזר'!$A$15)&HOUR(E29) -> 19ren10 | O29: =_xlfn.XLOOKUP(LEFT(F29,SEARCH('[3]נתוני עזר'!$A$24,'[4]ניתוח רגישות'!F29)-'[3]נתוני עזר'!$A$25),$U$4:$U$8,$T$4:$T$8,$U$10)*K29+_xlfn.XLOOKUP(G29,$U$14:$U$17,$T$14:$T$17)/MINUTE(E29) -> 40785 | V29: <=75000 | W29: >=25000 | Y29: תא עזר למרווחים
A30: דניאלה | B30: שטיין | C30: EXOOIS5@colman.ac.il | D30: 2022-10-09 | E30: 14:05:53.175 | F30: BMW_325 | G30: פרטי | H30: רכבי דניאלס | I30: יהוד | J30: 2010-09-05 | K30: 89000 | L30: 38944 | M30: =MID(B30,'[3]נתוני עזר'!$A$10,'[3]נתוני עזר'!$A$11)&'[3]נתוני עזר'!$A$12&TEXT(D30,"MMM") -> טי#אוק | N30: =LEN(C30)&LEFT(F30,'[3]נתוני עזר'!$A$15)&HOUR(E30) -> 20BMW14 | O30: =_xlfn.XLOOKUP(LEFT(F30,SEARCH('[3]נתוני עזר'!$A$24,'[4]ניתוח רגישות'!F30)-'[3]נתוני עזר'!$A$25),$U$4:$U$8,$T$4:$T$8,$U$10)*K30+_xlfn.XLOOKUP(G30,$U$14:$U$17,$T$14:$T$17)/MINUTE(E30) -> 71400 | Z30: 0.05
A31: מור | B31: אילומים | C31: YXYQGYVQ@colman.ac.il | D31: 2022-04-25 | E31: 09:02:29.426 | F31: Volkswagen_Passat | G31: פרטי | H31: סוכנות המוביל | I31: תל אביב | J31: 2008-03-21 | K31: 85300 | L31: 40146 | M31: =MID(B31,'[3]נתוני עזר'!$A$10,'[3]נתוני עזר'!$A$11)&'[3]נתוני עזר'!$A$12&TEXT(D31,"MMM") -> יל#אפר | N31: =LEN(C31)&LEFT(F31,'[3]נתוני עזר'!$A$15)&HOUR(E31) -> 21Vol9 | O31: =_xlfn.XLOOKUP(LEFT(F31,SEARCH('[3]נתוני עזר'!$A$24,'[4]ניתוח רגישות'!F31)-'[3]נתוני עזר'!$A$25),$U$4:$U$8,$T$4:$T$8,$U$10)*K31+_xlfn.XLOOKUP(G31,$U$14:$U$17,$T$14:$T$17)/MINUTE(E31) -> 38885
A32: אמה | B32: בנוב | C32: RV7HQO33@ynet.co.il | D32: 2022-03-28 | E32: 12:38:25.082 | F32: Honda_Civic | G32: פרטי | H32: רכבי דניאלס | I32: יהוד | J32: 2008-02-24 | K32: 79000 | L32: 33741 | M32: =MID(B32,'[3]נתוני עזר'!$A$10,'[3]נתוני עזר'!$A$11)&'[3]נתוני עזר'!$A$12&TEXT(D32,"MMM") -> נו#מרץ | N32: =LEN(C32)&LEFT(F32,'[3]נתוני עזר'!$A$15)&HOUR(E32) -> 19Hon12 | O32: =_xlfn.XLOOKUP(LEFT(F32,SEARCH('[3]נתוני עזר'!$A$24,'[4]ניתוח רגישות'!F32)-'[3]נתוני עזר'!$A$25),$U$4:$U$8,$T$4:$T$8,$U$10)*K32+_xlfn.XLOOKUP(G32,$U$14:$U$17,$T$14:$T$17)/MINUTE(E32) -> 35576.31579
A33: גלי | B33: גרבר | C33: SVETR@walla.co.il | D33: 2022-08-07 | E33: 15:35:40.927 | F33: Hyundai_Tuscon | G33: גיפ | H33: סוכנות המוביל | I33: תל אביב | J33: 2009-07-03 | K33: 69900 | L33: 52888 | M33: =MID(B33,'[3]נתוני עזר'!$A$10,'[3]נתוני עזר'!$A$11)&'[3]נתוני עזר'!$A$12&TEXT(D33,"MMM") -> רב#אוג | N33: =LEN(C33)&LEFT(F33,'[3]נתוני עזר'!$A$15)&HOUR(E33) -> 17Hyu15 | O33: =_xlfn.XLOOKUP(LEFT(F33,SEARCH('[3]נתוני עזר'!$A$24,'[4]ניתוח רגישות'!F33)-'[3]נתוני עזר'!$A$25),$U$4:$U$8,$T$4:$T$8,$U$10)*K33+_xlfn.XLOOKUP(G33,$U$14:$U$17,$T$14:$T$17)/MINUTE(E33) -> 31495 | T33: סך מחיר הרכישה למי שעמד בתנאים
A34: אבי | B34: רינגל | C34: BD12BUB@colman.ac.il | D34: 2022-05-17 | E34: 09:52:31.682 | F34: Subaru_B4 | G34: פרטי | H34: סוכנות המוביל | I34: תל אביב | J34: 2008-04-13 | K34: 42320 | L34: 34120 | M34: =MID(B34,'[3]נתוני עזר'!$A$10,'[3]נתוני עזר'!$A$11)&'[3]נתוני עזר'!$A$12&TEXT(D34,"MMM") -> ינ#מאי | N34: =LEN(C34)&LEFT(F34,'[3]נתוני עזר'!$A$15)&HOUR(E34) -> 20Sub9 | O34: =_xlfn.XLOOKUP(LEFT(F34,SEARCH('[3]נתוני עזר'!$A$24,'[4]ניתוח רגישות'!F34)-'[3]נתוני עזר'!$A$25),$U$4:$U$8,$T$4:$T$8,$U$10)*K34+_xlfn.XLOOKUP(G34,$U$14:$U$17,$T$14:$T$17)/MINUTE(E34) -> 19063.23077 | T34: =DSUM($A$1:$O$57,O1,$T$27:$W$29) -> 3310081.472
A35: צחי | B35: וינר | C35: JILI6@yahoo.com | D35: 2023-01-27 | E35: 19:07:43.211 | F35: Audi_A6 | G35: מנהלים | H35: סוכנות המוביל | I35: תל אביב | J35: 2010-12-23 | K35: 156000 | L35: 54194 | M35: =MID(B35,'[3]נתוני עזר'!$A$10,'[3]נתוני עזר'!$A$11)&'[3]נתוני עזר'!$A$12&TEXT(D35,"MMM") -> ינ#ינו | N35: =LEN(C35)&LEFT(F35,'[3]נתוני עזר'!$A$15)&HOUR(E35) -> 15Aud19 | O35: =_xlfn.XLOOKUP(LEFT(F35,SEARCH('[3]נתוני עזר'!$A$24,'[4]ניתוח רגישות'!F35)-'[3]נתוני עזר'!$A$25),$U$4:$U$8,$T$4:$T$8,$U$10)*K35+_xlfn.XLOOKUP(G35,$U$14:$U$17,$T$14:$T$17)/MINUTE(E35) -> 117228.5714 | S35: =Z27 -> 0.5 | T35: 3427417.472
A36: אריה | B36: אונרוביל | C36: TAB@hotmail.com | D36: 2022-09-21 | E36: 18:16:34.929 | F36: Hyundai_Tuscon | G36: גיפ | H36: רכב דיל מאיר | I36: חיפה | J36: 2010-08-17 | K36: 148000 | L36: 37483 | M36: =MID(B36,'[3]נתוני עזר'!$A$10,'[3]נתוני עזר'!$A$11)&'[3]נתוני עזר'!$A$12&TEXT(D36,"MMM") -> ונ#ספט | N36: =LEN(C36)&LEFT(F36,'[3]נתוני עזר'!$A$15)&HOUR(E36) -> 15Hyu18 | O36: =_xlfn.XLOOKUP(LEFT(F36,SEARCH('[3]נתוני עזר'!$A$24,'[4]ניתוח רגישות'!F36)-'[3]נתוני עזר'!$A$25),$U$4:$U$8,$T$4:$T$8,$U$10)*K36+_xlfn.XLOOKUP(G36,$U$14:$U$17,$T$14:$T$17)/MINUTE(E36) -> 66687.5 | S36: =S35+$Z$30 -> 0.55 | T36: 3544753.472
A37: רואי | B37: חנוביץ | C37: GT67JK@yahoo.com | D37: 2022-09-28 | E37: 17:02:19 | F37: Nissan_qashqai | G37: גיפ | H37: רכב דיל | I37: בני ברק | J37: 2009-08-24 | K37: 132100 | L37: 20688 | M37: =MID(B37,'[3]נתוני עזר'!$A$10,'[3]נתוני עזר'!$A$11)&'[3]נתוני עזר'!$A$12&TEXT(D37,"MMM") -> נו#ספט | N37: =LEN(C37)&LEFT(F37,'[3]נתוני עזר'!$A$15)&HOUR(E37) -> 16Nis17 | O37: =_xlfn.XLOOKUP(LEFT(F37,SEARCH('[3]נתוני עזר'!$A$24,'[4]ניתוח רגישות'!F37)-'[3]נתוני עזר'!$A$25),$U$4:$U$8,$T$4:$T$8,$U$10)*K37+_xlfn.XLOOKUP(G37,$U$14:$U$17,$T$14:$T$17)/MINUTE(E37) -> 79960 | S37: =S36+$Z$30 -> 0.6 | T37: 3662089.472
A38: לישי | B38: ברמן | C38: LCMAHAOP@hotmail.com | D38: 2022-04-11 | E38: 18:23:19.898 | F38: Nissan_Micra | G38: פרטי | H38: סוכנות המוביל | I38: תל אביב | J38: 2008-03-07 | K38: 114600 | L38: 56149 | M38: =MID(B38,'[3]נתוני עזר'!$A$10,'[3]נתוני עזר'!$A$11)&'[3]נתוני עזר'!$A$12&TEXT(D38,"MMM") -> רמ#אפר | N38: =LEN(C38)&LEFT(F38,'[3]נתוני עזר'!$A$15)&HOUR(E38) -> 20Nis18 | O38: =_xlfn.XLOOKUP(LEFT(F38,SEARCH('[3]נתוני עזר'!$A$24,'[4]ניתוח רגישות'!F38)-'[3]נתוני עזר'!$A$25),$U$4:$U$8,$T$4:$T$8,$U$10)*K38+_xlfn.XLOOKUP(G38,$U$14:$U$17,$T$14:$T$17)/MINUTE(E38) -> 68803.47826 | S38: 0.65 | T38: 3779425.472
A39: לנה | B39: יצחקי | C39: TUKU7K@yahoo.com | D39: 2022-11-15 | E39: 19:26:56.881 | F39: toyota_hilux | G39: מסחרי | H39: רכב דיל | I39: בני ברק | J39: 2008-10-11 | K39: 98700 | L39: 39354 | M39: =MID(B39,'[3]נתוני עזר'!$A$10,'[3]נתוני עזר'!$A$11)&'[3]נתוני עזר'!$A$12&TEXT(D39,"MMM") -> צח#נוב | N39: =LEN(C39)&LEFT(F39,'[3]נתוני עזר'!$A$15)&HOUR(E39) -> 16toy19 | O39: =_xlfn.XLOOKUP(LEFT(F39,SEARCH('[3]נתוני עזר'!$A$24,'[4]ניתוח רגישות'!F39)-'[3]נתוני עזר'!$A$25),$U$4:$U$8,$T$4:$T$8,$U$10)*K39+_xlfn.XLOOKUP(G39,$U$14:$U$17,$T$14:$T$17)/MINUTE(E39) -> 44461.15385 | S39: 0.7 | T39: 3896761.472
A40: דור | B40: וויינר | C40: RVHJHDT@gmail.com | D40: 2022-05-18 | E40: 17:02:22.317 | F40: Audi_A3 | G40: פרטי | H40: רכב דיל | I40: בני ברק | J40: 2009-04-14 | K40: 97800 | L40: 17489 | M40: =MID(B40,'[3]נתוני עזר'!$A$10,'[3]נתוני עזר'!$A$11)&'[3]נתוני עזר'!$A$12&TEXT(D40,"MMM") -> וי#מאי | N40: =LEN(C40)&LEFT(F40,'[3]נתוני עזר'!$A$15)&HOUR(E40) -> 17Aud17 | O40: =_xlfn.XLOOKUP(LEFT(F40,SEARCH('[3]נתוני עזר'!$A$24,'[4]ניתוח רגישות'!F40)-'[3]נתוני עזר'!$A$25),$U$4:$U$8,$T$4:$T$8,$U$10)*K40+_xlfn.XLOOKUP(G40,$U$14:$U$17,$T$14:$T$17)/MINUTE(E40) -> 73850 | S40: 0.75 | T40: 4014097.472
A41: נדב | B41: רווח | C41: RFANLGI22@gmail.com | D41: 2022-12-09 | E41: 10:49:57 | F41: Ford_Focus | G41: פרטי | H41: רכב דיל מאיר | I41: חיפה | J41: 2010-11-05 | K41: 148000 | L41: 60630 | M41: =MID(B41,'[3]נתוני עזר'!$A$10,'[3]נתוני עזר'!$A$11)&'[3]נתוני עזר'!$A$12&TEXT(D41,"MMM") -> וו#דצמ | N41: =LEN(C41)&LEFT(F41,'[3]נתוני עזר'!$A$15)&HOUR(E41) -> 19For10 | O41: =_xlfn.XLOOKUP(LEFT(F41,SEARCH('[3]נתוני עזר'!$A$24,'[4]ניתוח רגישות'!F41)-'[3]נתוני עזר'!$A$25),$U$4:$U$8,$T$4:$T$8,$U$10)*K41+_xlfn.XLOOKUP(G41,$U$14:$U$17,$T$14:$T$17)/MINUTE(E41) -> 66620.40816 | S41: 0.8 | T41: 4131433.472
A42: אלון | B42: כהן | C42: XIJDGGVC@gmail.com | D42: 2022-12-09 | E42: 14:58:59.772 | F42: Nissan_Navare | G42: מסחרי | H42: גלגלי הזהב | I42: חולון | J42: 2011-11-05 | K42: 133500 | L42: 30206 | M42: =MID(B42,'[3]נתוני עזר'!$A$10,'[3]נתוני עזר'!$A$11)&'[3]נתוני עזר'!$A$12&TEXT(D42,"MMM") -> הן#דצמ | N42: =LEN(C42)&LEFT(F42,'[3]נתוני עזר'!$A$15)&HOUR(E42) -> 18Nis14 | O42: =_xlfn.XLOOKUP(LEFT(F42,SEARCH('[3]נתוני עזר'!$A$24,'[4]ניתוח רגישות'!F42)-'[3]נתוני עזר'!$A$25),$U$4:$U$8,$T$4:$T$8,$U$10)*K42+_xlfn.XLOOKUP(G42,$U$14:$U$17,$T$14:$T$17)/MINUTE(E42) -> 80120.33898 | S42: 0.85 | T42: 4248769.472
A43: אאוריקה | B43: יאסין | C43: YEGB@hotmail.com | D43: 2022-08-25 | E43: 14:44:53.260 | F43: Citroen_C3 | G43: פרטי | H43: רכב דיל מאיר | I43: חיפה | J43: 2010-07-21 | K43: 133200 | L43: 37698 | M43: =MID(B43,'[3]נתוני עזר'!$A$10,'[3]נתוני עזר'!$A$11)&'[3]נתוני עזר'!$A$12&TEXT(D43,"MMM") -> אס#אוג | N43: =LEN(C43)&LEFT(F43,'[3]נתוני עזר'!$A$15)&HOUR(E43) -> 16Cit14 | O43: =_xlfn.XLOOKUP(LEFT(F43,SEARCH('[3]נתוני עזר'!$A$24,'[4]ניתוח רגישות'!F43)-'[3]נתוני עזר'!$A$25),$U$4:$U$8,$T$4:$T$8,$U$10)*K43+_xlfn.XLOOKUP(G43,$U$14:$U$17,$T$14:$T$17)/MINUTE(E43) -> 73282.72727 | S43: 0.9 | T43: 4366105.472
A44: שירי | B44: הסנר | C44: GZBJLAY@gmail.com | D44: 2022-12-20 | E44: 16:33:01.363 | F44: Hyundai_Tuscon | G44: גיפ | H44: רכב דיל מאיר | I44: חיפה | J44: 2011-11-16 | K44: 124900 | L44: 49309 | M44: =MID(B44,'[3]נתוני עזר'!$A$10,'[3]נתוני עזר'!$A$11)&'[3]נתוני עזר'!$A$12&TEXT(D44,"MMM") -> סנ#דצמ | N44: =LEN(C44)&LEFT(F44,'[3]נתוני עזר'!$A$15)&HOUR(E44) -> 17Hyu16 | O44: =_xlfn.XLOOKUP(LEFT(F44,SEARCH('[3]נתוני עזר'!$A$24,'[4]ניתוח רגישות'!F44)-'[3]נתוני עזר'!$A$25),$U$4:$U$8,$T$4:$T$8,$U$10)*K44+_xlfn.XLOOKUP(G44,$U$14:$U$17,$T$14:$T$17)/MINUTE(E44) -> 56247.42424 | S44: 0.95 | T44: 4483441.472
A45: נועם | B45: מי דן | C45: PAB@hotmail.com | D45: 2022-06-23 | E45: 16:43:58.850 | F45: Volkswagen_Golf | G45: פרטי | H45: רכב דיל מאיר | I45: חיפה | J45: 2009-05-19 | K45: 122300 | L45: 6330 | M45: =MID(B45,'[3]נתוני עזר'!$A$10,'[3]נתוני עזר'!$A$11)&'[3]נתוני עזר'!$A$12&TEXT(D45,"MMM") -> י #יונ | N45: =LEN(C45)&LEFT(F45,'[3]נתוני עזר'!$A$15)&HOUR(E45) -> 15Vol16 | O45: =_xlfn.XLOOKUP(LEFT(F45,SEARCH('[3]נתוני עזר'!$A$24,'[4]ניתוח רגישות'!F45)-'[3]נתוני עזר'!$A$25),$U$4:$U$8,$T$4:$T$8,$U$10)*K45+_xlfn.XLOOKUP(G45,$U$14:$U$17,$T$14:$T$17)/MINUTE(E45) -> 55058.25581
A46: אסי | B46: כצוביץ | C46: MIKI6@yahoo.com | D46: 2023-01-26 | E46: 12:36:06.172 | F46: Honda_Accord | G46: פרטי | H46: רכבי דניאלס | I46: יהוד | J46: 2008-12-22 | K46: 118800 | L46: 43882 | M46: =MID(B46,'[3]נתוני עזר'!$A$10,'[3]נתוני עזר'!$A$11)&'[3]נתוני עזר'!$A$12&TEXT(D46,"MMM") -> צו#ינו | N46: =LEN(C46)&LEFT(F46,'[3]נתוני עזר'!$A$15)&HOUR(E46) -> 15Hon12 | O46: =_xlfn.XLOOKUP(LEFT(F46,SEARCH('[3]נתוני עזר'!$A$24,'[4]ניתוח רגישות'!F46)-'[3]נתוני עזר'!$A$25),$U$4:$U$8,$T$4:$T$8,$U$10)*K46+_xlfn.XLOOKUP(G46,$U$14:$U$17,$T$14:$T$17)/MINUTE(E46) -> 53487.77778
A47: אורי | B47: לוין | C47: GGHH77JK@yahoo.com | D47: 2022-03-12 | E47: 12:46:17.416 | F47: Nissan_Pathfinder | G47: מסחרי | H47: סוכנות המוביל | I47: תל אביב | J47: 2009-02-08 | K47: 117800 | L47: 36392 | M47: =MID(B47,'[3]נתוני עזר'!$A$10,'[3]נתוני עזר'!$A$11)&'[3]נתוני עזר'!$A$12&TEXT(D47,"MMM") -> וי#מרץ | N47: =LEN(C47)&LEFT(F47,'[3]נתוני עזר'!$A$15)&HOUR(E47) -> 18Nis12 | O47: =_xlfn.XLOOKUP(LEFT(F47,SEARCH('[3]נתוני עזר'!$A$24,'[4]ניתוח רגישות'!F47)-'[3]נתוני עזר'!$A$25),$U$4:$U$8,$T$4:$T$8,$U$10)*K47+_xlfn.XLOOKUP(G47,$U$14:$U$17,$T$14:$T$17)/MINUTE(E47) -> 70706.08696
A48: אבי | B48: ממלידר | C48: YAKI5@yahoo.com | D48: 2022-12-02 | E48: 15:22:52 | F48: Nissan_qashqai | G48: גיפ | H48: רכבי דניאלס | I48: יהוד | J48: 2010-10-28 | K48: 114600 | L48: 31480 | M48: =MID(B48,'[3]נתוני עזר'!$A$10,'[3]נתוני עזר'!$A$11)&'[3]נתוני עזר'!$A$12&TEXT(D48,"MMM") -> מל#דצמ | N48: =LEN(C48)&LEFT(F48,'[3]נתוני עזר'!$A$15)&HOUR(E48) -> 15Nis15 | O48: =_xlfn.XLOOKUP(LEFT(F48,SEARCH('[3]נתוני עזר'!$A$24,'[4]ניתוח רגישות'!F48)-'[3]נתוני עזר'!$A$25),$U$4:$U$8,$T$4:$T$8,$U$10)*K48+_xlfn.XLOOKUP(G48,$U$14:$U$17,$T$14:$T$17)/MINUTE(E48) -> 68823.63636
A49: ירדן | B49: קלנר | C49: ARIPOR5@yahoo.com | D49: 2022-11-28 | E49: 12:39:01 | F49: Ford_Focus | G49: פרטי | H49: רכב דיל | I49: בני ברק | J49: 2011-10-24 | K49: 112000 | L49: 7902 | M49: =MID(B49,'[3]נתוני עזר'!$A$10,'[3]נתוני עזר'!$A$11)&'[3]נתוני עזר'!$A$12&TEXT(D49,"MMM") -> לנ#נוב | N49: =LEN(C49)&LEFT(F49,'[3]נתוני עזר'!$A$15)&HOUR(E49) -> 17For12 | O49: =_xlfn.XLOOKUP(LEFT(F49,SEARCH('[3]נתוני עזר'!$A$24,'[4]ניתוח רגישות'!F49)-'[3]נתוני עזר'!$A$25),$U$4:$U$8,$T$4:$T$8,$U$10)*K49+_xlfn.XLOOKUP(G49,$U$14:$U$17,$T$14:$T$17)/MINUTE(E49) -> 50425.64103
A50: טל | B50: בן סלומון | C50: TIMO5GH@yahoo.com | D50: 2022-07-01 | E50: 12:36:10.706 | F50: Citroen_C5 | G50: פרטי | H50: גלגלי הזהב | I50: חולון | J50: 2010-05-27 | K50: 112000 | L50: 49972 | M50: =MID(B50,'[3]נתוני עזר'!$A$10,'[3]נתוני עזר'!$A$11)&'[3]נתוני עזר'!$A$12&TEXT(D50,"MMM") -> ן #יול | N50: =LEN(C50)&LEFT(F50,'[3]נתוני עזר'!$A$15)&HOUR(E50) -> 17Cit12 | O50: =_xlfn.XLOOKUP(LEFT(F50,SEARCH('[3]נתוני עזר'!$A$24,'[4]ניתוח רגישות'!F50)-'[3]נתוני עזר'!$A$25),$U$4:$U$8,$T$4:$T$8,$U$10)*K50+_xlfn.XLOOKUP(G50,$U$14:$U$17,$T$14:$T$17)/MINUTE(E50) -> 61627.77778
A51: אודי | B51: חיים | C51: PADI5@yahoo.com | D51: 2022-10-02 | E51: 14:03:12 | F51: Citroen_C5 | G51: פרטי | H51: רכב דיל | I51: בני ברק | J51: 2010-08-28 | K51: 110410 | L51: 12170 | M51: =MID(B51,'[3]נתוני עזר'!$A$10,'[3]נתוני עזר'!$A$11)&'[3]נתוני עזר'!$A$12&TEXT(D51,"MMM") -> יי#אוק | N51: =LEN(C51)&LEFT(F51,'[3]נתוני עזר'!$A$15)&HOUR(E51) -> 15Cit14 | O51: =_xlfn.XLOOKUP(LEFT(F51,SEARCH('[3]נתוני עזר'!$A$24,'[4]ניתוח רגישות'!F51)-'[3]נתוני עזר'!$A$25),$U$4:$U$8,$T$4:$T$8,$U$10)*K51+_xlfn.XLOOKUP(G51,$U$14:$U$17,$T$14:$T$17)/MINUTE(E51) -> 61058.83333
A52: גדי | B52: ראפס | C52: GILIUU8@gmail.com | D52: 2022-03-05 | E52: 10:06:50.571 | F52: Mazda_6 | G52: פרטי | H52: גלגלי הזהב | I52: חולון | J52: 2009-02-01 | K52: 110410 | L52: 74616 | M52: =MID(B52,'[3]נתוני עזר'!$A$10,'[3]נתוני עזר'!$A$11)&'[3]נתוני עזר'!$A$12&TEXT(D52,"MMM") -> אפ#מרץ | N52: =LEN(C52)&LEFT(F52,'[3]נתוני עזר'!$A$15)&HOUR(E52) -> 17Maz10 | O52: =_xlfn.XLOOKUP(LEFT(F52,SEARCH('[3]נתוני עזר'!$A$24,'[4]ניתוח רגישות'!F52)-'[3]נתוני עזר'!$A$25),$U$4:$U$8,$T$4:$T$8,$U$10)*K52+_xlfn.XLOOKUP(G52,$U$14:$U$17,$T$14:$T$17)/MINUTE(E52) -> 77453.66667
A53: מירב | B53: ברטס | C53: GH77JK@yahoo.com | D53: 2022-06-24 | E53: 13:49:00 | F53: Nissan_Juke | G53: גיפ | H53: גלגלי הזהב | I53: חולון | J53: 2008-05-20 | K53: 97800 | L53: 45473 | M53: =MID(B53,'[3]נתוני עזר'!$A$10,'[3]נתוני עזר'!$A$11)&'[3]נתוני עזר'!$A$12&TEXT(D53,"MMM") -> רט#יונ | N53: =LEN(C53)&LEFT(F53,'[3]נתוני עזר'!$A$15)&HOUR(E53) -> 16Nis13 | O53: =_xlfn.XLOOKUP(LEFT(F53,SEARCH('[3]נתוני עזר'!$A$24,'[4]ניתוח רגישות'!F53)-'[3]נתוני עזר'!$A$25),$U$4:$U$8,$T$4:$T$8,$U$10)*K53+_xlfn.XLOOKUP(G53,$U$14:$U$17,$T$14:$T$17)/MINUTE(E53) -> 58708.57143
A54: ליה | B54: רוטשילד | C54: R5HJ9DT@gmail.com | D54: 2022-04-14 | E54: 15:23:17.829 | F54: Nissan_Juke | G54: גיפ | H54: רכבי דניאלס | I54: יהוד | J54: 2009-03-10 | K54: 95000 | L54: 39959 | M54: =MID(B54,'[3]נתוני עזר'!$A$10,'[3]נתוני עזר'!$A$11)&'[3]נתוני עזר'!$A$12&TEXT(D54,"MMM") -> וט#אפר | N54: =LEN(C54)&LEFT(F54,'[3]נתוני עזר'!$A$15)&HOUR(E54) -> 17Nis15 | O54: =_xlfn.XLOOKUP(LEFT(F54,SEARCH('[3]נתוני עזר'!$A$24,'[4]ניתוח רגישות'!F54)-'[3]נתוני עזר'!$A$25),$U$4:$U$8,$T$4:$T$8,$U$10)*K54+_xlfn.XLOOKUP(G54,$U$14:$U$17,$T$14:$T$17)/MINUTE(E54) -> 57060.86957
A55: עמרי | B55: יגאנה | C55: HRNFSEKR@gmail.com | D55: 2022-12-03 | E55: 13:54:01 | F55: BMW_540 | G55: פרטי | H55: רכב דיל מאיר | I55: חיפה | J55: 2011-10-29 | K55: 80900 | L55: 79021 | M55: =MID(B55,'[3]נתוני עזר'!$A$10,'[3]נתוני עזר'!$A$11)&'[3]נתוני עזר'!$A$12&TEXT(D55,"MMM") -> גא#דצמ | N55: =LEN(C55)&LEFT(F55,'[3]נתוני עזר'!$A$15)&HOUR(E55) -> 18BMW13 | O55: =_xlfn.XLOOKUP(LEFT(F55,SEARCH('[3]נתוני עזר'!$A$24,'[4]ניתוח רגישות'!F55)-'[3]נתוני עזר'!$A$25),$U$4:$U$8,$T$4:$T$8,$U$10)*K55+_xlfn.XLOOKUP(G55,$U$14:$U$17,$T$14:$T$17)/MINUTE(E55) -> 64738.51852
A56: דן | B56: טננבאום | C56: OQAPSDFQ@hotmail.com | D56: 2022-05-31 | E56: 11:59:30 | F56: renault_kangoo | G56: מסחרי | H56: רכב דיל | I56: בני ברק | J56: 2010-04-27 | K56: 76000 | L56: 33193 | M56: =MID(B56,'[3]נתוני עזר'!$A$10,'[3]נתוני עזר'!$A$11)&'[3]נתוני עזר'!$A$12&TEXT(D56,"MMM") -> ננ#מאי | N56: =LEN(C56)&LEFT(F56,'[3]נתוני עזר'!$A$15)&HOUR(E56) -> 20ren11 | O56: =_xlfn.XLOOKUP(LEFT(F56,SEARCH('[3]נתוני עזר'!$A$24,'[4]ניתוח רגישות'!F56)-'[3]נתוני עזר'!$A$25),$U$4:$U$8,$T$4:$T$8,$U$10)*K56+_xlfn.XLOOKUP(G56,$U$14:$U$17,$T$14:$T$17)/MINUTE(E56) -> 34220.33898
A57: מיטל | B57: דורון | C57: TUTUU7@yahoo.com | D57: 2023-01-15 | E57: 16:12:41 | F57: fiat_ducato | G57: מסחרי | H57: סוכנות המוביל | I57: תל אביב | J57: 2010-12-11 | K57: 58100 | L57: 29954 | M57: =MID(B57,'[3]נתוני עזר'!$A$10,'[3]נתוני עזר'!$A$11)&'[3]נתוני עזר'!$A$12&TEXT(D57,"MMM") -> ור#ינו | N57: =LEN(C57)&LEFT(F57,'[3]נתוני עזר'!$A$15)&HOUR(E57) -> 16fia16 | O57: =_xlfn.XLOOKUP(LEFT(F57,SEARCH('[3]נתוני עזר'!$A$24,'[4]ניתוח רגישות'!F57)-'[3]נתוני עזר'!$A$25),$U$4:$U$8,$T$4:$T$8,$U$10)*K57+_xlfn.XLOOKUP(G57,$U$14:$U$17,$T$14:$T$17)/MINUTE(E57) -> 26245

Sheet חתירה למטרה minIfs
A1: מספר לקוח | B1: שם לקוח | C1: כתובת דוא"ל | D1: מעמד לקוח | E1: תחילת ההשקעה | F1: סכום השקעה | G1: מספר קרן | H1: דמי ניהול | I1: ערך השקעה נכון להיום | J1: ערך השקעה נכון להיום בש"ח
A2: 1855 | B2: NI_IAV | C2: NI_IAV@colman.ac.il | D2: שכיר | E2: 2022-09-15 | F2: 2500 | G2: 10 | H2: 0.009 | I2: 16761.87789 | J2: =I2*$M$2 -> 410891.5986 | M2: 24.51345854 | N2: שער הדולר שנתון
A3: 1856 | B3: KF_GLD | C3: KF_GLD@colman.ac.il | D3: עצמאי | E3: 2022-03-12 | F3: 146726 | G3: 13 | H3: 0.0029 | I3: 214094.1126 | J3: =I3*$M$2 -> 5248187.153
A4: 1857 | B4: CC_GB | C4: CC_GB@hotmail.com | D4: שכיר | E4: 2022-09-29 | F4: 253094 | G4: 10 | H4: 0.006 | I4: 307637.3388 | J4: 7541255.151
A5: 1858 | B5: BJ_VLS | C5: BJ_VLS@colman.ac.il | D5: שכיר | E5: 2022-12-29 | F5: 70131 | G5: 14 | H5: 0.001 | I5: 332458.0998 | J5: 8149697.846
A6: 1859 | B6: DE_APS | C6: DE_APS@hotmail.com | D6: שכיר | E6: 2022-02-05 | F6: 63372 | G6: 15 | H6: 0.001 | I6: 1229261.975 | J6: 30133462.47
A7: 1860 | B7: BJ_DDX | C7: BJ_DDX@colman.ac.il | D7: עצמאי | E7: 2022-05-19 | F7: 72483 | G7: 15 | H7: 0.001 | I7: 1877660.419 | J7: 46027950.82
A8: 1861 | B8: CK_UUE | C8: CK_UUE@ynet.co.il | D8: עצמאי | E8: 2022-07-11 | F8: 108877 | G8: 13 | H8: 0.0029 | I8: 986671.1231 | J8: 24186721.67
A9: 1862 | B9: JK_67J | C9: JK_67J@yahoo.com | D9: עצמאי | E9: 2022-05-05 | F9: 96681 | G9: 10 | H9: 0.007 | I9: 191421.767 | J9: 4692409.548
A10: 1863 | B10: DJ_IPO | C10: DJ_IPO@yahoo.com | D10: עצמאי | E10: 2022-10-27 | F10: 66590 | G10: 15 | H10: 0.001 | I10: 377756.6835 | J10: 9260122.8 | L10: תשובה לסעיף א שאלה 4
A11: 1864 | B11: LB_MI8 | C11: LB_MI8@walla.co.il | D11: בעל שליטה | E11: 2022-05-26 | F11: 224708 | G11: 10 | H11: 0.006 | I11: 3453180.52 | J11: 84649397.49
A12: 1865 | B12: LM_TBP | C12: LM_TBP@ynet.co.il | D12: שכיר | E12: 2022-07-17 | F12: 49492 | G12: 14 | H12: 0.0011 | I12: 2044762.053 | J12: 50124189.82 | L12: שכיר | M12: =_xlfn.MINIFS($J$2:$J$26,$D$2:$D$26,L12) -> 410891.5986
A13: 1866 | B13: BK_UDG | C13: BK_UDG@colman.ac.il | D13: שכיר | E13: 2022-04-28 | F13: 76982 | G13: 13 | H13: 0.0039 | I13: 2617985.431 | J13: 64175877.31 | L13: עצמאי | M13: =_xlfn.MINIFS($J$2:$J$26,$D$2:$D$26,L13) -> 559212.013
A14: 1867 | B14: DK_EAU | C14: DK_EAU@colman.ac.il | D14: בעל שליטה | E14: 2022-09-13 | F14: 184883 | G14: 10 | H14: 0.006 | I14: 2226133.638 | J14: 54570234.65 | L14: בעל שליטה | M14: =_xlfn.MINIFS($J$2:$J$26,$D$2:$D$26,L14) -> 3000000
A15: 1868 | B15: KL_XLD | C15: KL_XLD@ynet.co.il | D15: בעל שליטה | E15: 2022-10-12 | F15: 8780 | G15: 10 | H15: 0.009 | I15: 122381.7519 | J15: 3000000
A16: 1869 | B16: NE_ANL | C16: NE_ANL@gmail.com | D16: שכיר | E16: 2022-11-18 | F16: 46900 | G16: 14 | H16: 0.0011 | I16: 80582.93183 | J16: 1975366.358
A17: 1870 | B17: MK_MO5 | C17: MK_MO5@yahoo.com | D17: שכיר | E17: 2022-05-25 | F17: 162174 | G17: 14 | H17: 0.0008 | I17: 1078268.713 | J17: 26432095.39 | L17: סעיף ב שאלה 4
A18: 1871 | B18: LM_V7U | C18: LM_V7U@walla.co.il | D18: שכיר | E18: 2022-12-09 | F18: 10321 | G18: 14 | H18: 0.0011 | I18: 372444.8688 | J18: 9129911.85 | L18: המילים "מה צריך להיות" שייכות רק לחתיר למטרה
A19: 1872 | B19: FD_DIK | C19: FD_DIK@walla.co.il | D19: שכיר | E19: 2022-06-22 | F19: 56091 | G19: 15 | H19: 0.001 | I19: 1453028.304 | J19: 35618749.08 | L19: בתוך "על ידי שינוי התא" נכניס תמיד את שם המשתנה שהופיע אחרי המילים "מה צריך להיות", אצלינו מדובר ב"שער הדולר"
A20: 1873 | B20: KD_HH7 | C20: KD_HH7@yahoo.com | D20: עצמאי | E20: 2022-07-10 | F20: 12866 | G20: 10 | H20: 0.008 | I20: 133822.7353 | J20: 3280458.073
A21: 1874 | B21: EL_NGQ | C21: EL_NGQ@ynet.co.il | D21: עצמאי | E21: 2022-07-01 | F21: 71270 | G21: 13 | H21: 0.0039 | I21: 142479.5203 | J21: 3492665.814 | L21: המילים "משתמש" ו"לחצן" אומרות שחובה כאן מאקרו
A22: 1875 | B22: KK_ZJH | C22: KK_ZJH@colman.ac.il | D22: עצמאי | E22: 2022-02-01 | F22: 10129 | G22: 14 | H22: 0.0011 | I22: 22812.4486 | J22: 559212.013
A23: 1876 | B23: MC_IEL | C23: MC_IEL@colman.ac.il | D23: בעל שליטה | E23: 2022-01-17 | F23: 143689 | G23: 13 | H23: 0.0029 | I23: 1900016.8 | J23: 46575983.06
A24: 1877 | B24: FJ_YQG | C24: FJ_YQG@colman.ac.il | D24: בעל שליטה | E24: 2022-02-09 | F24: 25719 | G24: 12 | H24: 0.0058 | I24: 186489.1191 | J24: 4571493.288
A25: 1878 | B25: AI_MAH | C25: AI_MAH@hotmail.com | D25: שכיר | E25: 2022-09-16 | F25: 215746 | G25: 14 | H25: 0.0008 | I25: 1094342.881 | J25: 26826128.83
A26: 1879 | B26: GI_JDG | C26: GI_JDG@gmail.com | D26: בעל שליטה | E26: 2022-11-28 | F26: 131191 | G26: 10 | H26: 0.006 | I26: 203520.3 | J26: 4988986.435
L30: סעיף ג שאלה 4
L31: המילים "מרווחים (קפיצות)" וינוע "בין לבין" מעידות על ניתוח רגישות
W32: ערך ראשון
L33: =M14 -> 3000000 | W33: 3.1
K34: 3.1 | L34: 379383.4307
K35: 3.3 | L35: 403859.7811 | W35: מרווח
K36: 3.5 | L36: 428336.1315 | W36: 0.2
K37: 3.7 | L37: 452812.4819
K38: 3.9 | L38: 477288.8322
K39: 4.1 | L39: 501765.1826
K40: 4.3 | L40: 526241.533
K41: 4.5 | L41: 550717.8833

Sheet סינון ומיון דינמיים
A1: מספר לקוח | B1: שם לקוח | C1: כתובת דוא"ל | D1: מעמד לקוח | E1: תחילת ההשקעה | F1: סכום השקעה בדולר | G1: מספר קרן | H1: דמי ניהול | I1: ערך השקעה נכון להיום | O1: תוצאות הסינון הדינאמי, שאלה 3 סעיף ג
A2: 1855 | B2: NI_IAV | C2: NI_IAV@colman.ac.il | D2: שכיר | E2: 2022-09-15 | F2: 2500 | G2: 10 | H2: 0.009 | I2: 16761.87789 | O2: =_xlfn._xlws.SORT(_xlfn._xlws.FILTER(A2:I26,(F2:F26>$G$36)+(D2:D26=$G$37)*(H2:H26>=$G$38)*(H2:H26<=$F$38)),U52,N52) -> 1859 | P2: KK_ZJH | Q2: KK_ZJH@colman.ac.il | R2: עצמאי | S2: 44593 | T2: 10129 | U2: 14 | V2: 0.0011 | W2: 22812.4486
A3: 1856 | B3: KF_GLD | C3: KF_GLD@colman.ac.il | D3: עצמאי | E3: 2022-03-12 | F3: 146726 | G3: 12 | H3: 0.0029 | I3: 214094.1126 | O3: 1863 | P3: DJ_IPO | Q3: DJ_IPO@yahoo.com | R3: עצמאי | S3: 44861 | T3: 66590 | U3: 15 | V3: 0.001 | W3: 377756.6835
A4: 1855 | B4: CC_GB | C4: CC_GB@hotmail.com | D4: שכיר | E4: 2022-09-29 | F4: 253094 | G4: 10 | H4: 0.006 | I4: 307637.3388 | O4: 1873 | P4: EL_NGQ | Q4: EL_NGQ@ynet.co.il | R4: עצמאי | S4: 44743 | T4: 71270 | U4: 13 | V4: 0.0039 | W4: 142479.5203
A5: 1858 | B5: BJ_VLS | C5: BJ_VLS@colman.ac.il | D5: שכיר | E5: 2022-12-29 | F5: 70131 | G5: 13 | H5: 0.001 | I5: 332458.0998 | O5: 1860 | P5: BJ_DDX | Q5: BJ_DDX@colman.ac.il | R5: עצמאי | S5: 44700 | T5: 72483 | U5: 15 | V5: 0.001 | W5: 1877660.419
A6: 1859 | B6: DE_APS | C6: DE_APS@hotmail.com | D6: שכיר | E6: 2022-02-05 | F6: 63372 | G6: 15 | H6: 0.001 | I6: 1229261.975 | O6: 1861 | P6: CK_UUE | Q6: CK_UUE@ynet.co.il | R6: עצמאי | S6: 44753 | T6: 108877 | U6: 13 | V6: 0.0029 | W6: 986671.1231
A7: 1860 | B7: BJ_DDX | C7: BJ_DDX@colman.ac.il | D7: עצמאי | E7: 2022-05-19 | F7: 72483 | G7: 15 | H7: 0.001 | I7: 1877660.419 | O7: 1856 | P7: KF_GLD | Q7: KF_GLD@colman.ac.il | R7: עצמאי | S7: 44632 | T7: 146726 | U7: 12 | V7: 0.0029 | W7: 214094.1126
A8: 1861 | B8: CK_UUE | C8: CK_UUE@ynet.co.il | D8: עצמאי | E8: 2022-07-11 | F8: 108877 | G8: 13 | H8: 0.0029 | I8: 986671.1231 | O8: 1855 | P8: CC_GB | Q8: CC_GB@hotmail.com | R8: שכיר | S8: 44833 | T8: 253094 | U8: 10 | V8: 0.006 | W8: 307637.3388
A9: 1861 | B9: JK_67J | C9: JK_67J@yahoo.com | D9: עצמאי | E9: 2022-05-05 | F9: 96681 | G9: 10 | H9: 0.007 | I9: 191421.767
A10: 1863 | B10: DJ_IPO | C10: DJ_IPO@yahoo.com | D10: עצמאי | E10: 2022-10-27 | F10: 66590 | G10: 15 | H10: 0.001 | I10: 377756.6835
A11: 1863 | B11: LB_MI8 | C11: LB_MI8@walla.co.il | D11: בעל שליטה | E11: 2022-05-26 | F11: 224708 | G11: 10 | H11: 0.006 | I11: 3453180.52
A12: 1865 | B12: LM_TBP | C12: LM_TBP@ynet.co.il | D12: שכיר | E12: 2022-07-17 | F12: 49492 | G12: 14 | H12: 0.0011 | I12: 2044762.053
A13: 1866 | B13: BK_UDG | C13: BK_UDG@colman.ac.il | D13: שכיר | E13: 2022-04-28 | F13: 76982 | G13: 13 | H13: 0.0039 | I13: 2617985.431
A14: 1867 | B14: DK_EAU | C14: DK_EAU@colman.ac.il | D14: בעל שליטה | E14: 2022-09-13 | F14: 184883 | G14: 10 | H14: 0.006 | I14: 2226133.638 | M14: תא עזר סעיף ב שאלה 3
A15: 1868 | B15: KL_XLD | C15: KL_XLD@ynet.co.il | D15: בעל שליטה | E15: 2022-10-12 | F15: 8780 | G15: 10 | H15: 0.009 | I15: 122381.7519 | M15: 2
A16: 1869 | B16: NE_ANL | C16: NE_ANL@gmail.com | D16: שכיר | E16: 2022-11-18 | F16: 46900 | G16: 14 | H16: 0.0011 | I16: 80582.93183
A17: 1869 | B17: MK_MO5 | C17: MK_MO5@yahoo.com | D17: שכיר | E17: 2022-05-25 | F17: 162174 | G17: 14 | H17: 0.0008 | I17: 1078268.713
A18: 1869 | B18: LM_V7U | C18: LM_V7U@walla.co.il | D18: שכיר | E18: 2022-12-09 | F18: 10321 | G18: 14 | H18: 0.0011 | I18: 372444.8688 | M18: שאלה 3 סעיף ג
A19: 1869 | B19: FD_DIK | C19: FD_DIK@walla.co.il | D19: שכיר | E19: 2022-06-22 | F19: 56091 | G19: 15 | H19: 0.001 | I19: 1453028.304 | M19: חוק
A20: 1873 | B20: KD_HH7 | C20: KD_HH7@yahoo.com | D20: עצמאי | E20: 2022-07-10 | F20: 12866 | G20: 10 | H20: 0.008 | I20: 133822.7353 | M20: המילים "דוח דינאמי" או "סינון דינמי" + קריטריונים בשאלה מעידות שמדובר על סינון FILTER
A21: 1873 | B21: EL_NGQ | C21: EL_NGQ@ynet.co.il | D21: עצמאי | E21: 2022-07-01 | F21: 71270 | G21: 13 | H21: 0.0039 | I21: 142479.5203
A22: 1859 | B22: KK_ZJH | C22: KK_ZJH@colman.ac.il | D22: עצמאי | E22: 2022-02-01 | F22: 10129 | G22: 14 | H22: 0.0011 | I22: 22812.4486
A23: 1859 | B23: MC_IEL | C23: MC_IEL@colman.ac.il | D23: בעל שליטה | E23: 2022-01-17 | F23: 143689 | G23: 13 | H23: 0.0029 | I23: 1900016.8 | M23: שאלה 3 סעיף ד
A24: 1876 | B24: FJ_YQG | C24: FJ_YQG@colman.ac.il | D24: בעל שליטה | E24: 2022-02-09 | F24: 25719 | G24: 12 | H24: 0.0058 | I24: 186489.1191 | M24: חוק
A25: 1867 | B25: AI_MAH | C25: AI_MAH@hotmail.com | D25: שכיר | E25: 2022-09-16 | F25: 215746 | G25: 14 | H25: 0.0008 | I25: 1094342.881 | M25: המילים "מיין דינאמית"
A26: 1879 | B26: GI_JDG | C26: GI_JDG@gmail.com | D26: בעל שליטה | E26: 2022-11-28 | F26: 131191 | G26: 10 | H26: 0.006 | I26: 203520.3 | M26: אומרות שמדובר ב SORT
M34: שער הדולר
F35: תאי עזר שאלה 3 ג סינון דינמי | M35: 4
G36: 250000
G37: עצמאי
F38: 0.005 | G38: 0.001
F40: דוח דינאמי =סינון דינאמי FILTER
B41: ב"מערך" | F41: נסמן את כל הטבלה, ללא כותרות, ללא קיבוע
B42: ב"כלול" | F42: בתנאים שנבנה נסמן את כל העמודה (לא רק תא ראשון), ללא כותרות: רק תאי העזר יקובעו! | M42: =COUNTIF($A$2:$A$26,A2)=1 -> FALSE
F43: פלוס או
F44: כפל וגם
B47: תאי עזר שאלה 3 סעיף ד | O47: שאלה 3 סעיף ד מיון דינאמי
N49: רשימה נפתחת שתאפשר לבחור סדר עולה או סדר יורד | U49: רשימה נפתחת שתאפשר לבחור עמודת מיון
D50: סדר עולה | E50: 1 | N50: סדר עולה | U50: סכום השקעה בדולר
D51: סדר יורד | E51: -1 | F51: מספר לקוח | G51: 1
F52: שם לקוח | G52: 2 | N52: =_xlfn.XLOOKUP(N50,$D$50:$D$51,$E$50:$E$51) -> 1 | U52: =_xlfn.XLOOKUP(U50,$F$51:$F$59,$G$51:$G$59) -> 6
F53: כתובת דוא"ל | G53: 3
F54: מעמד לקוח | G54: 4
F55: תחילת ההשקעה | G55: 5
F56: סכום השקעה בדולר | G56: 6
F57: מספר קרן | G57: 7
F58: דמי ניהול | G58: 8
F59: ערך השקעה נכון להיום | G59: 9

Sheet שם משתמש וסיסמה
A1: שם פרטי לקוח | B1: שם משפחה לקוח | C1: כתובת דוא"ל | D1: תאריך הרכישה | E1: שעת הרכישה | F1: דגם הרכב | G1: סיווג הרכב | H1: שם הסוכנות | I1: מיקום הסוכנות | J1: תאריך עליית הרכב לכביש | K1: מחיר יבואן | L1: מספר ק"מ | M1: שם משתמש | N1: סיסמה
A2: אאוגן | B2: ליבוביץ | C2: ELVLSUAM@colman.ac.il | D2: 2022-08-02 | E2: 17:10:35 | F2: Mazda_6 | G2: פרטי | H2: רכבי דניאלס | I2: יהוד | J2: 2010-06-29 | K2: 132100 | L2: 53490 | M2: =MID(B2,$S$22,$S$23)&$S$24&TEXT(D2,"mmm") -> יב#אוג | N2: =LEN(C2)&LEFT(F2,$S$30)&MINUTE(E2) -> 21Maz10 | R2: =RIGHT(C2,$R$36)=$R$35 -> TRUE | T2: טבלה מס' 1
A3: אאוג'ן | B3: מנוליאו | C3: KEZZLDMD@colman.ac.il | D3: 2022-05-03 | E3: 19:16:55 | F3: Mazda_6 | G3: פרטי | H3: גלגלי הזהב | I3: חולון | J3: 2011-03-29 | K3: 132100 | L3: 25829 | M3: נו#מאי | N3: 21Maz16 | R3: =RIGHT(C3,$R$36)=$R$35 -> TRUE | T3: אחוז ממחיר יבואן | U3: סוג רכב
A4: אאוריקה | B4: גורכוב | C4: BEXLDPPA11@ynet.co.il | D4: 2022-02-19 | E4: 17:20:28.333 | F4: Citroen_C3 | G4: פרטי | H4: רכב דיל מאיר | I4: חיפה | J4: 2011-01-15 | K4: 125000 | L4: 65509 | M4: ור#פבר | N4: 21Cit20 | R4: TRUE | T4: 0.6 | U4: Nissan
A5: אאוריקה | B5: יאסין | C5: COZ66@walla.co.il | D5: 2022-06-28 | E5: 17:09:30.994 | F5: Honda_Civic | G5: פרטי | H5: גלגלי הזהב | I5: חולון | J5: 2009-05-24 | K5: 119200 | L5: 31704 | M5: אס#יונ | N5: 17Hon9 | R5: TRUE | T5: 0.7 | U5: Mazda
A6: יוסי | B6: שמעון | C6: SVET6@walla.co.il | D6: 2022-11-08 | E6: 19:35:47.084 | F6: Citroen_C5 | G6: פרטי | H6: גלגלי הזהב | I6: חולון | J6: 2010-10-04 | K6: 114500 | L6: 28286 | M6: מע#נוב | N6: 17Cit35 | R6: TRUE | T6: 0.8 | U6: BMW
A7: דן | B7: טננבאום | C7: VWQXYKIY@colman.ac.il | D7: 2022-05-07 | E7: 18:16:10 | F7: Mazda_3 | G7: פרטי | H7: סוכנות המוביל | I7: תל אביב | J7: 2011-04-03 | K7: 99200 | L7: 99037 | M7: ננ#מאי | N7: 21Maz16 | R7: TRUE | T7: 0.75 | U7: Audi
A8: רם | B8: אברמוביץ | C8: AUTBPAME@ynet.co.il | D8: 2022-09-15 | E8: 16:07:25 | F8: BMW_Z4 | G8: פרטי | H8: סוכנות המוביל | I8: תל אביב | J8: 2011-08-11 | K8: 185200 | L8: 23650 | M8: בר#ספט | N8: 19BMW7 | R8: TRUE | T8: 0.55 | U8: Citroen
A9: עומר | B9: יגאנה | C9: YIDOJL@colman.ac.il | D9: 2022-07-29 | E9: 13:51:02 | F9: renault_kangoo | G9: מסחרי | H9: רכבי דניאלס | I9: יהוד | J9: 2011-06-25 | K9: 148000 | L9: 56507 | M9: גא#יול | N9: 19ren51 | R9: TRUE
A10: רואי | B10: חנוביץ | C10: KE78OMD@colman.ac.il | D10: 2022-10-31 | E10: 13:33:55 | F10: toyota_hilux | G10: מסחרי | H10: סוכנות המוביל | I10: תל אביב | J10: 2010-09-27 | K10: 135200 | L10: 76935 | M10: נו#אוק | N10: 20toy33 | R10: TRUE | U10: 0.45
A11: ירדן | B11: קלנר | C11: BDZJHBUB@colman.ac.il | D11: 2022-06-19 | E11: 16:20:30.696 | F11: Audi_A4 | G11: פרטי | H11: רכב דיל מאיר | I11: חיפה | J11: 2008-05-15 | K11: 133200 | L11: 43076 | M11: לנ#יונ | N11: 21Aud20 | R11: =RIGHT(C11,$R$36)=$R$35 -> TRUE
A12: שירי | B12: מנור | C12: FF22WT@ynet.co.il | D12: 2022-06-03 | E12: 15:46:52 | F12: Nissan_Juke | G12: גיפ | H12: רכב דיל מאיר | I12: חיפה | J12: 2008-04-30 | K12: 133200 | L12: 13221 | M12: נו#יונ | N12: 17Nis46 | R12: TRUE | T12: טבלה מס' 2
A13: אמיר | B13: שרון | C13: EAUDGT@colman.ac.il | D13: 2022-09-14 | E13: 11:51:37.007 | F13: Honda_Accord | G13: פרטי | H13: סוכנות המוביל | I13: תל אביב | J13: 2011-08-10 | K13: 125900 | L13: 40682 | M13: רו#ספט | N13: 19Hon51 | R13: TRUE | T13: תוספת סיווג | U13: סווג הרכב
A14: עמית | B14: כהן | C14: FFNGQQWT@ynet.co.il | D14: 2023-01-10 | E14: 14:09:00.555 | F14: Audi_A4 | G14: פרטי | H14: רכב דיל | I14: בני ברק | J14: 2008-12-06 | K14: 125300 | L14: 23927 | M14: הן#ינו | N14: 19Aud9 | R14: TRUE | T14: 1000 | U14: פרטי
A15: ענבר | B15: יפת | C15: JXI45LUBY@colman.ac.il | D15: 2022-03-28 | E15: 14:01:39 | F15: Nissan_Micra | G15: פרטי | H15: גלגלי הזהב | I15: חולון | J15: 2008-02-24 | K15: 117200 | L15: 28169 | M15: פת#מרץ | N15: 22Nis1 | R15: TRUE | T15: 1200 | U15: מסחרי
A16: אורי | B16: גוזמן | C16: KIEAUDGT@colman.ac.il | D16: 2022-09-10 | E16: 14:32:09 | F16: Nissan_Pathfinder | G16: מסחרי | H16: גלגלי הזהב | I16: חולון | J16: 2011-08-06 | K16: 114500 | L16: 22743 | M16: וז#ספט | N16: 21Nis32 | R16: TRUE | T16: 1400 | U16: גיפ
A17: נדב | B17: רווח | C17: EXOOYULR@colman.ac.il | D17: 2023-01-26 | E17: 14:23:21.892 | F17: Audi_A6 | G17: מנהלים | H17: רכבי דניאלס | I17: יהוד | J17: 2010-12-22 | K17: 114500 | L17: 10716 | M17: וו#ינו | N17: 21Aud23 | R17: TRUE | T17: 1600 | U17: מנהלים
A18: טל | B18: בן סלומון | C18: FAOL5@walla.co.il | D18: 2022-07-13 | E18: 13:55:29 | F18: Honda_Civic | G18: פרטי | H18: רכב דיל | I18: בני ברק | J18: 2008-06-09 | K18: 114500 | L18: 40383 | M18: ן #יול | N18: 17Hon55 | R18: TRUE
A19: תומר | B19: בוקאי | C19: CTA86@walla.co.il | D19: 2022-10-26 | E19: 15:48:53 | F19: Subaru_B4 | G19: פרטי | H19: רכב דיל | I19: בני ברק | J19: 2010-09-22 | K19: 112500 | L19: 20389 | M19: וק#אוק | N19: 17Sub48 | R19: TRUE
A20: טלי | B20: רונן | C20: XPDDXH@colman.ac.il | D20: 2022-04-19 | E20: 16:37:49.888 | F20: toyota_hilux | G20: מסחרי | H20: רכב דיל מאיר | I20: חיפה | J20: 2010-03-15 | K20: 112000 | L20: 38679 | M20: ונ#אפר | N20: 19toy37
A21: אורי | B21: לוין | C21: WTUUETX@ynet.co.il | D21: 2022-10-15 | E21: 13:38:56.356 | F21: Audi_A3 | G21: פרטי | H21: רכבי דניאלס | I21: יהוד | J21: 2009-09-11 | K21: 110410 | L21: 26284 | M21: וי#אוק | N21: 18Aud38 | R21: תאי עזר לכבוד שאלה 1 סעיף א 1
A22: אריק | B22: לוין | C22: JXIELUBY@colman.ac.il | D22: 2022-05-15 | E22: 09:24:14.616 | F22: fiat_ducato | G22: מסחרי | H22: רכב דיל | I22: בני ברק | J22: 2008-04-11 | K22: 106000 | L22: 6474 | M22: וי#מאי | N22: 21fia24 | R22: אות שנייה | S22: 2
A23: מושיקו | B23: דגנוש | C23: MYGLDVTD@colman.ac.il | D23: 2022-06-21 | E23: 10:58:13.226 | F23: Nissan_Navare | G23: מסחרי | H23: סוכנות המוביל | I23: תל אביב | J23: 2011-05-17 | K23: 103000 | L23: 57178 | M23: גנ#יונ | N23: 21Nis58 | R23: שנייה ושלישית | S23: 2
A24: אסי | B24: וידר | C24: NYIAVES@colman.ac.il | D24: 2022-07-08 | E24: 16:17:18 | F24: BMW_325 | G24: פרטי | H24: סוכנות המוביל | I24: תל אביב | J24: 2011-06-04 | K24: 99600 | L24: 18823 | M24: יד#יול | N24: 20BMW17 | S24: #
A25: מור | B25: אילומים | C25: GIMI89FG@walla.co.il | D25: 2022-10-13 | E25: 14:29:31.541 | F25: Mazda_3 | G25: פרטי | H25: סוכנות המוביל | I25: תל אביב | J25: 2011-09-09 | K25: 92200 | L25: 63326 | M25: יל#אוק | N25: 20Maz29
A26: לישי | B26: ברמן | C26: FADIKOL55@walla.co.il | D26: 2022-07-20 | E26: 12:51:18 | F26: Mazda_3 | G26: פרטי | H26: רכבי דניאלס | I26: יהוד | J26: 2009-06-16 | K26: 90890 | L26: 48294 | M26: רמ#יול | N26: 21Maz51
A27: אלון | B27: כהן | C27: RVPNJHQO33@ynet.co.il | D27: 2022-10-30 | E27: 12:56:34.880 | F27: Mazda_6 | G27: פרטי | H27: רכב דיל | I27: בני ברק | J27: 2010-09-26 | K27: 90890 | L27: 8931 | M27: הן#אוק | N27: 21Maz56
A28: עמרי | B28: יגאנה | C28: RAV8O@walla.co.il | D28: 2022-09-27 | E28: 09:29:23 | F28: Audi_A6 | G28: מנהלים | H28: גלגלי הזהב | I28: חולון | J28: 2008-08-23 | K28: 90890 | L28: 50833 | M28: גא#ספט | N28: 17Aud29 | R28: תאי עזר לכבוד שאלה 1 א 2
A29: נוי | B29: סליקטר | C29: RAV7U8O@walla.co.il | D29: 2022-11-26 | E29: 10:05:24 | F29: renault_kangoo | G29: מסחרי | H29: סוכנות המוביל | I29: תל אביב | J29: 2009-10-22 | K29: 90100 | L29: 74516 | M29: לי#נוב | N29: 19ren5
A30: נטע | B30: פוקס | C30: EXOOIS5@colman.ac.il | D30: 2022-10-09 | E30: 14:05:53.175 | F30: BMW_325 | G30: פרטי | H30: רכבי דניאלס | I30: יהוד | J30: 2010-09-05 | K30: 89000 | L30: 38944 | M30: וק#אוק | N30: 20BMW5 | S30: 3
A31: עדי | B31: גירו | C31: YXYQGYVQ@colman.ac.il | D31: 2022-04-25 | E31: 09:02:29.426 | F31: Volkswagen_Passat | G31: פרטי | H31: סוכנות המוביל | I31: תל אביב | J31: 2008-03-21 | K31: 85300 | L31: 40146 | M31: יר#אפר | N31: 21Vol2
A32: שרה | B32: שוורץ | C32: RV7HQO33@ynet.co.il | D32: 2022-03-28 | E32: 12:38:25.082 | F32: Honda_Civic | G32: פרטי | H32: רכבי דניאלס | I32: יהוד | J32: 2008-02-24 | K32: 79000 | L32: 33741 | M32: וו#מרץ | N32: 19Hon38
A33: אודי | B33: חיים | C33: SVETR@walla.co.il | D33: 2022-08-07 | E33: 15:35:40.927 | F33: Hyundai_Tuscon | G33: גיפ | H33: סוכנות המוביל | I33: תל אביב | J33: 2009-07-03 | K33: 69900 | L33: 52888 | M33: יי#אוג | N33: 17Hyu35
A34: גלי | B34: גרבר | C34: BD12BUB@colman.ac.il | D34: 2022-05-17 | E34: 09:52:31.682 | F34: Subaru_B4 | G34: פרטי | H34: סוכנות המוביל | I34: תל אביב | J34: 2008-04-13 | K34: 42320 | L34: 34120 | M34: =MID(B34,$S$22,$S$23)&$S$24&TEXT(D34,"mmm") -> רב#מאי | N34: =LEN(C34)&LEFT(F34,$S$30)&MINUTE(E34) -> 20Sub52 | R34: תא עזר סעיף ב 2
A35: אורן | B35: ברבור | C35: JILI6@yahoo.com | D35: 2023-01-27 | E35: 19:07:43.211 | F35: Audi_A6 | G35: מנהלים | H35: סוכנות המוביל | I35: תל אביב | J35: 2010-12-23 | K35: 156000 | L35: 54194 | M35: רב#ינו | N35: 15Aud7 | R35: il
A36: נועם | B36: מי דן | C36: TAB@hotmail.com | D36: 2022-09-21 | E36: 18:16:34.929 | F36: Hyundai_Tuscon | G36: גיפ | H36: רכב דיל מאיר | I36: חיפה | J36: 2010-08-17 | K36: 148000 | L36: 37483 | M36: י #ספט | N36: 15Hyu16 | R36: 2
A37: דור | B37: וויינר | C37: GT67JK@yahoo.com | D37: 2022-09-28 | E37: 17:02:19 | F37: Nissan_qashqai | G37: גיפ | H37: רכב דיל | I37: בני ברק | J37: 2009-08-24 | K37: 132100 | L37: 20688 | M37: וי#ספט | N37: 16Nis2
A38: שירי | B38: הסנר | C38: LCMAHAOP@hotmail.com | D38: 2022-04-11 | E38: 18:23:19.898 | F38: Nissan_Micra | G38: פרטי | H38: סוכנות המוביל | I38: תל אביב | J38: 2008-03-07 | K38: 114600 | L38: 56149 | M38: סנ#אפר | N38: 20Nis23
A39: צחי | B39: וינר | C39: TUKU7K@yahoo.com | D39: 2022-11-15 | E39: 19:26:56.881 | F39: toyota_hilux | G39: מסחרי | H39: רכב דיל | I39: בני ברק | J39: 2008-10-11 | K39: 98700 | L39: 39354 | M39: ינ#נוב | N39: 16toy26 | R39: תא עזר סעיף ב 3
A40: מיטל | B40: דורון | C40: RVHJHDT@gmail.com | D40: 2022-05-18 | E40: 17:02:22.317 | F40: Audi_A3 | G40: פרטי | H40: רכב דיל | I40: בני ברק | J40: 2009-04-14 | K40: 97800 | L40: 17489 | M40: ור#מאי | N40: 17Aud2 | R40: 17:00:00
A41: מיכל | B41: בן עמי | C41: RFANLGI22@gmail.com | D41: 2022-12-09 | E41: 10:49:57 | F41: Ford_Focus | G41: פרטי | H41: רכב דיל מאיר | I41: חיפה | J41: 2010-11-05 | K41: 148000 | L41: 60630 | M41: ן #דצמ | N41: 19For49
A42: דניאלה | B42: שטיין | C42: XIJDGGVC@gmail.com | D42: 2022-12-09 | E42: 14:58:59.772 | F42: Nissan_Navare | G42: מסחרי | H42: גלגלי הזהב | I42: חולון | J42: 2011-11-05 | K42: 133500 | L42: 30206 | M42: טי#דצמ | N42: 18Nis59
A43: אמה | B43: בנוב | C43: YEGB@hotmail.com | D43: 2022-08-25 | E43: 14:44:53.260 | F43: Citroen_C3 | G43: פרטי | H43: רכב דיל מאיר | I43: חיפה | J43: 2010-07-21 | K43: 133200 | L43: 37698 | M43: נו#אוג | N43: 16Cit44
A44: אבי | B44: ממלידר | C44: GZBJLAY@gmail.com | D44: 2022-12-20 | E44: 16:33:01.363 | F44: Hyundai_Tuscon | G44: גיפ | H44: רכב דיל מאיר | I44: חיפה | J44: 2011-11-16 | K44: 124900 | L44: 49309 | M44: מל#דצמ | N44: 17Hyu33
A45: אבי | B45: ברלב | C45: PAB@hotmail.com | D45: 2022-06-23 | E45: 16:43:58.850 | F45: Volkswagen_Golf | G45: פרטי | H45: רכב דיל מאיר | I45: חיפה | J45: 2009-05-19 | K45: 122300 | L45: 6330 | M45: רל#יונ | N45: 15Vol43
A46: אבי | B46: אור אורטרגר | C46: MIKI6@yahoo.com | D46: 2023-01-26 | E46: 12:36:06.172 | F46: Honda_Accord | G46: פרטי | H46: רכבי דניאלס | I46: יהוד | J46: 2008-12-22 | K46: 118800 | L46: 43882 | M46: ור#ינו | N46: 15Hon36
A47: אריה | B47: אונרוביל | C47: GGHH77JK@yahoo.com | D47: 2022-03-12 | E47: 12:46:17.416 | F47: Nissan_Pathfinder | G47: מסחרי | H47: סוכנות המוביל | I47: תל אביב | J47: 2009-02-08 | K47: 117800 | L47: 36392 | M47: ונ#מרץ | N47: 18Nis46
A48: ליה | B48: רוטשילד | C48: YAKI5@yahoo.com | D48: 2022-12-02 | E48: 15:22:52 | F48: Nissan_qashqai | G48: גיפ | H48: רכבי דניאלס | I48: יהוד | J48: 2010-10-28 | K48: 114600 | L48: 31480 | M48: וט#דצמ | N48: 15Nis22
A49: גדי | B49: ראפס | C49: ARIPOR5@yahoo.com | D49: 2022-11-28 | E49: 12:39:01 | F49: Ford_Focus | G49: פרטי | H49: רכב דיל | I49: בני ברק | J49: 2011-10-24 | K49: 112000 | L49: 7902 | M49: אפ#נוב | N49: 17For39
A50: אסי | B50: כצוביץ | C50: TIMO5GH@yahoo.com | D50: 2022-07-01 | E50: 12:36:10.706 | F50: Citroen_C5 | G50: פרטי | H50: גלגלי הזהב | I50: חולון | J50: 2010-05-27 | K50: 112000 | L50: 49972 | M50: צו#יול | N50: 17Cit36
A51: לנה | B51: יצחקי | C51: PADI5@yahoo.com | D51: 2022-10-02 | E51: 14:03:12 | F51: Citroen_C5 | G51: פרטי | H51: רכב דיל | I51: בני ברק | J51: 2010-08-28 | K51: 110410 | L51: 12170 | M51: צח#אוק | N51: 15Cit3
A52: יאנה | B52: גלון | C52: GILIUU8@gmail.com | D52: 2022-03-05 | E52: 10:06:50.571 | F52: Mazda_6 | G52: פרטי | H52: גלגלי הזהב | I52: חולון | J52: 2009-02-01 | K52: 110410 | L52: 74616 | M52: לו#מרץ | N52: 17Maz6
A53: אלכס | B53: עמרמי ויצמן | C53: GH77JK@yahoo.com | D53: 2022-06-24 | E53: 13:49:00 | F53: Nissan_Juke | G53: גיפ | H53: גלגלי הזהב | I53: חולון | J53: 2008-05-20 | K53: 97800 | L53: 45473 | M53: מר#יונ | N53: 16Nis49
A54: מירב | B54: ברטס | C54: R5HJ9DT@gmail.com | D54: 2022-04-14 | E54: 15:23:17.829 | F54: Nissan_Juke | G54: גיפ | H54: רכבי דניאלס | I54: יהוד | J54: 2009-03-10 | K54: 95000 | L54: 39959 | M54: רט#אפר | N54: 17Nis23
A55: אבי | B55: היינריך | C55: HRNFSEKR@gmail.com | D55: 2022-12-03 | E55: 13:54:01 | F55: BMW_540 | G55: פרטי | H55: רכב דיל מאיר | I55: חיפה | J55: 2011-10-29 | K55: 80900 | L55: 79021 | M55: יי#דצמ | N55: 18BMW54
A56: אבי | B56: רינגל | C56: OQAPSDFQ@hotmail.com | D56: 2022-05-31 | E56: 11:59:30 | F56: renault_kangoo | G56: מסחרי | H56: רכב דיל | I56: בני ברק | J56: 2010-04-27 | K56: 76000 | L56: 33193 | M56: ינ#מאי | N56: 20ren59
A57: מור | B57: גולדברג | C57: TUTUU7@yahoo.com | D57: 2023-01-15 | E57: 16:12:41 | F57: fiat_ducato | G57: מסחרי | H57: סוכנות המוביל | I57: תל אביב | J57: 2010-12-11 | K57: 58100 | L57: 29954 | M57: ול#ינו | N57: 16fia12

Sheet חשוב ביותר
